Service Area,Service Division,Expense Type,Expense Code,Detailed Expense Type,Payment Date,Transaction Number,Amount Exc Vat,Supplier Name
Adult and Health Services,Central/Other,Employees,080025,Agency Staff,14-Feb-2017,3244182-335794,"137,574.86",DE POEL MANAGED SERVICES LTD.
Adult and Health Services,Central/Other,Debtors,930133,Debtor IC+ Out of Hours - Home Care,14-Feb-2017,3244223-DOO34,"8,333.33",HOMECARE SUPPORT LTD T/A THE HUMAN SUPPORT GROUP.
Adult and Health Services,Central/Other,Debtors,930024,Debtor-free nursing care,22-Feb-2017,3248754-2362556,870.53,AKARI CARE LTD T/A AYCLIFFE CARE HOME.
Adult and Health Services,Central/Other,Debtors,930024,Debtor-free nursing care,22-Feb-2017,3248754-2362559,625.00,AKARI CARE LTD T/A AYCLIFFE CARE HOME.
Adult and Health Services,Central/Other,Debtors,930024,Debtor-free nursing care,22-Feb-2017,3248754-2362563,625.00,AKARI CARE LTD T/A AYCLIFFE CARE HOME.
Adult and Health Services,Central/Other,Debtors,930024,Debtor-free nursing care,22-Feb-2017,3248754-2362566,625.00,AKARI CARE LTD T/A AYCLIFFE CARE HOME.
Adult and Health Services,Central/Other,Debtors,930024,Debtor-free nursing care,22-Feb-2017,3248754-2362572,625.00,AKARI CARE LTD T/A AYCLIFFE CARE HOME.
Adult and Health Services,Central/Other,Debtors,930024,Debtor-free nursing care,22-Feb-2017,3248754-2362575,625.00,AKARI CARE LTD T/A AYCLIFFE CARE HOME.
Adult and Health Services,Central/Other,Debtors,930024,Debtor-free nursing care,22-Feb-2017,3248754-2362580,625.00,AKARI CARE LTD T/A AYCLIFFE CARE HOME.
Adult and Health Services,Central/Other,Debtors,930024,Debtor-free nursing care,22-Feb-2017,3248754-2362583,625.00,AKARI CARE LTD T/A AYCLIFFE CARE HOME.
Adult and Health Services,Central/Other,Debtors,930024,Debtor-free nursing care,22-Feb-2017,3248754-2362586,625.00,AKARI CARE LTD T/A AYCLIFFE CARE HOME.
Adult and Health Services,Central/Other,Debtors,930024,Debtor-free nursing care,22-Feb-2017,3248754-2362588,625.00,AKARI CARE LTD T/A AYCLIFFE CARE HOME.
Adult and Health Services,Central/Other,Debtors,930024,Debtor-free nursing care,22-Feb-2017,3248754-2362592,625.00,AKARI CARE LTD T/A AYCLIFFE CARE HOME.
Adult and Health Services,Central/Other,Debtors,930024,Debtor-free nursing care,22-Feb-2017,3248754-2362600,625.00,AKARI CARE LTD T/A AYCLIFFE CARE HOME.
Adult and Health Services,Central/Other,Debtors,930024,Debtor-free nursing care,22-Feb-2017,3248760-2360908,625.00,ALLIANCE CARE.
Adult and Health Services,Central/Other,Debtors,930024,Debtor-free nursing care,22-Feb-2017,3248760-2360917,625.00,ALLIANCE CARE.
Adult and Health Services,Central/Other,Debtors,930024,Debtor-free nursing care,22-Feb-2017,3248760-2360919,625.00,ALLIANCE CARE.
Adult and Health Services,Central/Other,Debtors,930024,Debtor-free nursing care,22-Feb-2017,3248760-2360926,625.00,ALLIANCE CARE.
Adult and Health Services,Central/Other,Debtors,930024,Debtor-free nursing care,22-Feb-2017,3248760-2360952,625.00,ALLIANCE CARE.
Adult and Health Services,Central/Other,Debtors,930024,Debtor-free nursing care,22-Feb-2017,3248760-2360959,625.00,ALLIANCE CARE.
Adult and Health Services,Central/Other,Debtors,930024,Debtor-free nursing care,22-Feb-2017,3248760-2363622,558.04,ALLIANCE CARE.
Adult and Health Services,Central/Other,Debtors,930024,Debtor-free nursing care,22-Feb-2017,3248766-2359936,625.00,ASCOT CARE NORTHEAST LTD.
Adult and Health Services,Central/Other,Debtors,930024,Debtor-free nursing care,22-Feb-2017,3248766-2359940,625.00,ASCOT CARE NORTHEAST LTD.
Adult and Health Services,Central/Other,Debtors,930024,Debtor-free nursing care,22-Feb-2017,3248766-2359945,625.00,ASCOT CARE NORTHEAST LTD.
Adult and Health Services,Central/Other,Debtors,930024,Debtor-free nursing care,22-Feb-2017,3248766-2359955,625.00,ASCOT CARE NORTHEAST LTD.
Adult and Health Services,Central/Other,Debtors,930024,Debtor-free nursing care,22-Feb-2017,3248782-2360499,625.00,BARCHESTER HEALTHCARE HOMES LTD.
Adult and Health Services,Central/Other,Debtors,930024,Debtor-free nursing care,22-Feb-2017,3248782-2360503,625.00,BARCHESTER HEALTHCARE HOMES LTD.
Adult and Health Services,Central/Other,Debtors,930024,Debtor-free nursing care,22-Feb-2017,3248782-2360504,625.00,BARCHESTER HEALTHCARE HOMES LTD.
Adult and Health Services,Central/Other,Debtors,930024,Debtor-free nursing care,22-Feb-2017,3248782-2360507,625.00,BARCHESTER HEALTHCARE HOMES LTD.
Adult and Health Services,Central/Other,Debtors,930024,Debtor-free nursing care,22-Feb-2017,3248782-2360508,625.00,BARCHESTER HEALTHCARE HOMES LTD.
Adult and Health Services,Central/Other,Debtors,930024,Debtor-free nursing care,22-Feb-2017,3248782-2360510,625.00,BARCHESTER HEALTHCARE HOMES LTD.
Adult and Health Services,Central/Other,Debtors,930024,Debtor-free nursing care,22-Feb-2017,3248782-2360513,625.00,BARCHESTER HEALTHCARE HOMES LTD.
Adult and Health Services,Central/Other,Debtors,930024,Debtor-free nursing care,22-Feb-2017,3248782-2360516,625.00,BARCHESTER HEALTHCARE HOMES LTD.
Adult and Health Services,Central/Other,Debtors,930024,Debtor-free nursing care,22-Feb-2017,3248782-2360519,625.00,BARCHESTER HEALTHCARE HOMES LTD.
Adult and Health Services,Central/Other,Debtors,930024,Debtor-free nursing care,22-Feb-2017,3248782-2360524,625.00,BARCHESTER HEALTHCARE HOMES LTD.
Adult and Health Services,Central/Other,Debtors,930024,Debtor-free nursing care,22-Feb-2017,3248782-2360526,625.00,BARCHESTER HEALTHCARE HOMES LTD.
Adult and Health Services,Central/Other,Debtors,930024,Debtor-free nursing care,22-Feb-2017,3248782-2360529,625.00,BARCHESTER HEALTHCARE HOMES LTD.
Adult and Health Services,Central/Other,Debtors,930024,Debtor-free nursing care,22-Feb-2017,3248782-2360534,625.00,BARCHESTER HEALTHCARE HOMES LTD.
Adult and Health Services,Central/Other,Debtors,930024,Debtor-free nursing care,22-Feb-2017,3248782-2360537,625.00,BARCHESTER HEALTHCARE HOMES LTD.
Adult and Health Services,Central/Other,Debtors,930024,Debtor-free nursing care,22-Feb-2017,3248782-2360540,625.00,BARCHESTER HEALTHCARE HOMES LTD.
Adult and Health Services,Central/Other,Debtors,930024,Debtor-free nursing care,22-Feb-2017,3248782-2360543,625.00,BARCHESTER HEALTHCARE HOMES LTD.
Adult and Health Services,Central/Other,Debtors,930024,Debtor-free nursing care,22-Feb-2017,3248782-2360546,625.00,BARCHESTER HEALTHCARE HOMES LTD.
Adult and Health Services,Central/Other,Debtors,930024,Debtor-free nursing care,22-Feb-2017,3248782-2360549,625.00,BARCHESTER HEALTHCARE HOMES LTD.
Adult and Health Services,Central/Other,Debtors,930024,Debtor-free nursing care,22-Feb-2017,3248782-2360551,625.00,BARCHESTER HEALTHCARE HOMES LTD.
Adult and Health Services,Central/Other,Debtors,930024,Debtor-free nursing care,22-Feb-2017,3248782-2360553,625.00,BARCHESTER HEALTHCARE HOMES LTD.
Adult and Health Services,Central/Other,Debtors,930024,Debtor-free nursing care,22-Feb-2017,3248782-2360556,625.00,BARCHESTER HEALTHCARE HOMES LTD.
Adult and Health Services,Central/Other,Debtors,930024,Debtor-free nursing care,22-Feb-2017,3248790-2360273,625.00,BENFIELD HALL RESIDENTIAL CARE.
Adult and Health Services,Central/Other,Debtors,930024,Debtor-free nursing care,22-Feb-2017,3248790-2360278,625.00,BENFIELD HALL RESIDENTIAL CARE.
Adult and Health Services,Central/Other,Debtors,930024,Debtor-free nursing care,22-Feb-2017,3248793-2359256,625.00,BISHOPSGATE LODGE.
Adult and Health Services,Central/Other,Debtors,930024,Debtor-free nursing care,22-Feb-2017,3248793-2359257,625.00,BISHOPSGATE LODGE.
Adult and Health Services,Central/Other,Debtors,930024,Debtor-free nursing care,22-Feb-2017,3248793-2359268,625.00,BISHOPSGATE LODGE.
Adult and Health Services,Central/Other,Debtors,930024,Debtor-free nursing care,22-Feb-2017,3248793-2359273,625.00,BISHOPSGATE LODGE.
Adult and Health Services,Central/Other,Debtors,930024,Debtor-free nursing care,22-Feb-2017,3248793-2359275,625.00,BISHOPSGATE LODGE.
Adult and Health Services,Central/Other,Debtors,930024,Debtor-free nursing care,22-Feb-2017,3248793-2359279,625.00,BISHOPSGATE LODGE.
Adult and Health Services,Central/Other,Debtors,930024,Debtor-free nursing care,22-Feb-2017,3248793-2359287,625.00,BISHOPSGATE LODGE.
Adult and Health Services,Central/Other,Debtors,930024,Debtor-free nursing care,22-Feb-2017,3248793-2359291,625.00,BISHOPSGATE LODGE.
Adult and Health Services,Central/Other,Debtors,930024,Debtor-free nursing care,22-Feb-2017,3248794-2362137,625.00,BOWES COURT CARE HOME.
Adult and Health Services,Central/Other,Debtors,930024,Debtor-free nursing care,22-Feb-2017,3248794-2362138,625.00,BOWES COURT CARE HOME.
Adult and Health Services,Central/Other,Debtors,930024,Debtor-free nursing care,22-Feb-2017,3248794-2362141,625.00,BOWES COURT CARE HOME.
Adult and Health Services,Central/Other,Debtors,930024,Debtor-free nursing care,22-Feb-2017,3248795-2359057,625.00,BRANCEPETH COURT.
Adult and Health Services,Central/Other,Debtors,930024,Debtor-free nursing care,22-Feb-2017,3248795-2359064,625.00,BRANCEPETH COURT.
Adult and Health Services,Central/Other,Debtors,930024,Debtor-free nursing care,22-Feb-2017,3248795-2359071,625.00,BRANCEPETH COURT.
Adult and Health Services,Central/Other,Debtors,930024,Debtor-free nursing care,22-Feb-2017,3248795-2359073,625.00,BRANCEPETH COURT.
Adult and Health Services,Central/Other,Debtors,930024,Debtor-free nursing care,22-Feb-2017,3248795-2359077,625.00,BRANCEPETH COURT.
Adult and Health Services,Central/Other,Debtors,930024,Debtor-free nursing care,22-Feb-2017,3248795-2359080,625.00,BRANCEPETH COURT.
Adult and Health Services,Central/Other,Debtors,930024,Debtor-free nursing care,22-Feb-2017,3248795-2359081,625.00,BRANCEPETH COURT.
Adult and Health Services,Central/Other,Debtors,930024,Debtor-free nursing care,22-Feb-2017,3248795-2359086,625.00,BRANCEPETH COURT.
Adult and Health Services,Central/Other,Debtors,930024,Debtor-free nursing care,22-Feb-2017,3248795-2359089,625.00,BRANCEPETH COURT.
Adult and Health Services,Central/Other,Debtors,930024,Debtor-free nursing care,22-Feb-2017,3248795-2359093,625.00,BRANCEPETH COURT.
Adult and Health Services,Central/Other,Debtors,930024,Debtor-free nursing care,22-Feb-2017,3248815-2360839,625.00,CRAIGARRAN CARE HOME WITH NURSING.
Adult and Health Services,Central/Other,Debtors,930024,Debtor-free nursing care,22-Feb-2017,3248815-2360842,625.00,CRAIGARRAN CARE HOME WITH NURSING.
Adult and Health Services,Central/Other,Debtors,930024,Debtor-free nursing care,22-Feb-2017,3248815-2360844,625.00,CRAIGARRAN CARE HOME WITH NURSING.
Adult and Health Services,Central/Other,Debtors,930024,Debtor-free nursing care,22-Feb-2017,3248815-2360849,625.00,CRAIGARRAN CARE HOME WITH NURSING.
Adult and Health Services,Central/Other,Debtors,930024,Debtor-free nursing care,22-Feb-2017,3248815-2360854,625.00,CRAIGARRAN CARE HOME WITH NURSING.
Adult and Health Services,Central/Other,Debtors,930024,Debtor-free nursing care,22-Feb-2017,3248815-2360856,625.00,CRAIGARRAN CARE HOME WITH NURSING.
Adult and Health Services,Central/Other,Debtors,930024,Debtor-free nursing care,22-Feb-2017,3248815-2360858,625.00,CRAIGARRAN CARE HOME WITH NURSING.
Adult and Health Services,Central/Other,Debtors,930024,Debtor-free nursing care,22-Feb-2017,3248815-2360860,625.00,CRAIGARRAN CARE HOME WITH NURSING.
Adult and Health Services,Central/Other,Debtors,930024,Debtor-free nursing care,22-Feb-2017,3248815-2360862,625.00,CRAIGARRAN CARE HOME WITH NURSING.
Adult and Health Services,Central/Other,Debtors,930024,Debtor-free nursing care,22-Feb-2017,3248815-2360865,625.00,CRAIGARRAN CARE HOME WITH NURSING.
Adult and Health Services,Central/Other,Debtors,930024,Debtor-free nursing care,22-Feb-2017,3248815-2360868,625.00,CRAIGARRAN CARE HOME WITH NURSING.
Adult and Health Services,Central/Other,Debtors,930024,Debtor-free nursing care,22-Feb-2017,3248815-2360870,625.00,CRAIGARRAN CARE HOME WITH NURSING.
Adult and Health Services,Central/Other,Debtors,930024,Debtor-free nursing care,22-Feb-2017,3248815-2360874,625.00,CRAIGARRAN CARE HOME WITH NURSING.
Adult and Health Services,Central/Other,Debtors,930024,Debtor-free nursing care,22-Feb-2017,3248816-2362409,625.00,CROFT HOUSE RESIDENTIAL HOME.
Adult and Health Services,Central/Other,Debtors,930024,Debtor-free nursing care,22-Feb-2017,3248816-2362418,625.00,CROFT HOUSE RESIDENTIAL HOME.
Adult and Health Services,Central/Other,Debtors,930024,Debtor-free nursing care,22-Feb-2017,3248816-2362421,625.00,CROFT HOUSE RESIDENTIAL HOME.
Adult and Health Services,Central/Other,Debtors,930024,Debtor-free nursing care,22-Feb-2017,3248816-2362423,625.00,CROFT HOUSE RESIDENTIAL HOME.
Adult and Health Services,Central/Other,Debtors,930024,Debtor-free nursing care,22-Feb-2017,3248816-2362425,625.00,CROFT HOUSE RESIDENTIAL HOME.
Adult and Health Services,Central/Other,Debtors,930024,Debtor-free nursing care,22-Feb-2017,3248816-2362432,625.00,CROFT HOUSE RESIDENTIAL HOME.
Adult and Health Services,Central/Other,Debtors,930024,Debtor-free nursing care,22-Feb-2017,3248816-2362440,625.00,CROFT HOUSE RESIDENTIAL HOME.
Adult and Health Services,Central/Other,Debtors,930024,Debtor-free nursing care,22-Feb-2017,3248816-2363519,513.39,CROFT HOUSE RESIDENTIAL HOME.
Adult and Health Services,Central/Other,Debtors,930024,Debtor-free nursing care,22-Feb-2017,3248821-2361332,625.00,DEFOE COURT.
Adult and Health Services,Central/Other,Debtors,930024,Debtor-free nursing care,22-Feb-2017,3248821-2361335,625.00,DEFOE COURT.
Adult and Health Services,Central/Other,Debtors,930024,Debtor-free nursing care,22-Feb-2017,3248821-2361336,625.00,DEFOE COURT.
Adult and Health Services,Central/Other,Debtors,930024,Debtor-free nursing care,22-Feb-2017,3248821-2361338,625.00,DEFOE COURT.
Adult and Health Services,Central/Other,Debtors,930024,Debtor-free nursing care,22-Feb-2017,3248821-2361344,625.00,DEFOE COURT.
Adult and Health Services,Central/Other,Debtors,930024,Debtor-free nursing care,22-Feb-2017,3248821-2361347,625.00,DEFOE COURT.
Adult and Health Services,Central/Other,Debtors,930024,Debtor-free nursing care,22-Feb-2017,3248821-2361350,625.00,DEFOE COURT.
Adult and Health Services,Central/Other,Debtors,930024,Debtor-free nursing care,22-Feb-2017,3248821-2361353,625.00,DEFOE COURT.
Adult and Health Services,Central/Other,Debtors,930024,Debtor-free nursing care,22-Feb-2017,3248821-2361355,625.00,DEFOE COURT.
Adult and Health Services,Central/Other,Debtors,930024,Debtor-free nursing care,22-Feb-2017,3248821-2361357,625.00,DEFOE COURT.
Adult and Health Services,Central/Other,Debtors,930024,Debtor-free nursing care,22-Feb-2017,3248821-2363781,535.71,DEFOE COURT.
Adult and Health Services,Central/Other,Debtors,930024,Debtor-free nursing care,22-Feb-2017,3248823-2359155,625.00,DEVONSHIRE HOUSE.
Adult and Health Services,Central/Other,Debtors,930024,Debtor-free nursing care,22-Feb-2017,3248823-2359157,625.00,DEVONSHIRE HOUSE.
Adult and Health Services,Central/Other,Debtors,930024,Debtor-free nursing care,22-Feb-2017,3248823-2359162,625.00,DEVONSHIRE HOUSE.
Adult and Health Services,Central/Other,Debtors,930024,Debtor-free nursing care,22-Feb-2017,3248823-2359165,625.00,DEVONSHIRE HOUSE.
Adult and Health Services,Central/Other,Debtors,930024,Debtor-free nursing care,22-Feb-2017,3248823-2359170,625.00,DEVONSHIRE HOUSE.
Adult and Health Services,Central/Other,Debtors,930024,Debtor-free nursing care,22-Feb-2017,3248823-2359177,625.00,DEVONSHIRE HOUSE.
Adult and Health Services,Central/Other,Debtors,930024,Debtor-free nursing care,22-Feb-2017,3248824-2363157,625.00,DIPTON CARE HOME LTD.
Adult and Health Services,Central/Other,Debtors,930024,Debtor-free nursing care,22-Feb-2017,3248824-2363160,625.00,DIPTON CARE HOME LTD.
Adult and Health Services,Central/Other,Debtors,930024,Debtor-free nursing care,22-Feb-2017,3248824-2363165,625.00,DIPTON CARE HOME LTD.
Adult and Health Services,Central/Other,Debtors,930024,Debtor-free nursing care,22-Feb-2017,3248824-2363169,625.00,DIPTON CARE HOME LTD.
Adult and Health Services,Central/Other,Debtors,930024,Debtor-free nursing care,22-Feb-2017,3248824-2363175,625.00,DIPTON CARE HOME LTD.
Adult and Health Services,Central/Other,Debtors,930024,Debtor-free nursing care,22-Feb-2017,3248824-2363189,625.00,DIPTON CARE HOME LTD.
Adult and Health Services,Central/Other,Debtors,930024,Debtor-free nursing care,22-Feb-2017,3248824-2363640,602.68,DIPTON CARE HOME LTD.
Adult and Health Services,Central/Other,Debtors,930024,Debtor-free nursing care,22-Feb-2017,3248826-2359120,625.00,DR ANDREW ASHDOWN (DENEHURST NURSING HOME).
Adult and Health Services,Central/Other,Debtors,930024,Debtor-free nursing care,22-Feb-2017,3248826-2359125,625.00,DR ANDREW ASHDOWN (DENEHURST NURSING HOME).
Adult and Health Services,Central/Other,Debtors,930024,Debtor-free nursing care,22-Feb-2017,3248826-2359134,625.00,DR ANDREW ASHDOWN (DENEHURST NURSING HOME).
Adult and Health Services,Central/Other,Debtors,930024,Debtor-free nursing care,22-Feb-2017,3248826-2359138,625.00,DR ANDREW ASHDOWN (DENEHURST NURSING HOME).
Adult and Health Services,Central/Other,Debtors,930024,Debtor-free nursing care,22-Feb-2017,3248826-2359140,625.00,DR ANDREW ASHDOWN (DENEHURST NURSING HOME).
Adult and Health Services,Central/Other,Debtors,930024,Debtor-free nursing care,22-Feb-2017,3248826-2359145,625.00,DR ANDREW ASHDOWN (DENEHURST NURSING HOME).
Adult and Health Services,Central/Other,Debtors,930024,Debtor-free nursing care,22-Feb-2017,3248826-2359151,625.00,DR ANDREW ASHDOWN (DENEHURST NURSING HOME).
Adult and Health Services,Central/Other,Debtors,930024,Debtor-free nursing care,22-Feb-2017,3248826-2363900,625.00,DR ANDREW ASHDOWN (DENEHURST NURSING HOME).
Adult and Health Services,Central/Other,Debtors,930024,Debtor-free nursing care,22-Feb-2017,3248832-2363210,625.00,ELBA CARE LTD T/A DIVINE CARE CENTRE.
Adult and Health Services,Central/Other,Debtors,930024,Debtor-free nursing care,22-Feb-2017,3248832-2363216,625.00,ELBA CARE LTD T/A DIVINE CARE CENTRE.
Adult and Health Services,Central/Other,Debtors,930024,Debtor-free nursing care,22-Feb-2017,3248832-2363223,625.00,ELBA CARE LTD T/A DIVINE CARE CENTRE.
Adult and Health Services,Central/Other,Debtors,930024,Debtor-free nursing care,22-Feb-2017,3248832-2363225,625.00,ELBA CARE LTD T/A DIVINE CARE CENTRE.
Adult and Health Services,Central/Other,Debtors,930024,Debtor-free nursing care,22-Feb-2017,3248832-2363646,571.43,ELBA CARE LTD T/A DIVINE CARE CENTRE.
Adult and Health Services,Central/Other,Debtors,930024,Debtor-free nursing care,22-Feb-2017,3248834-2360631,625.00,ELIZABETH FLEMMING CARE HOME.
Adult and Health Services,Central/Other,Debtors,930024,Debtor-free nursing care,22-Feb-2017,3248840-2362919,625.00,EMBRACE ALL LTD.
Adult and Health Services,Central/Other,Debtors,930024,Debtor-free nursing care,22-Feb-2017,3248840-2362921,625.00,EMBRACE ALL LTD.
Adult and Health Services,Central/Other,Debtors,930024,Debtor-free nursing care,22-Feb-2017,3248840-2362939,625.00,EMBRACE ALL LTD.
Adult and Health Services,Central/Other,Debtors,930024,Debtor-free nursing care,22-Feb-2017,3248840-2362942,625.00,EMBRACE ALL LTD.
Adult and Health Services,Central/Other,Debtors,930024,Debtor-free nursing care,22-Feb-2017,3248840-2362949,625.00,EMBRACE ALL LTD.
Adult and Health Services,Central/Other,Debtors,930024,Debtor-free nursing care,22-Feb-2017,3248840-2362955,625.00,EMBRACE ALL LTD.
Adult and Health Services,Central/Other,Debtors,930024,Debtor-free nursing care,22-Feb-2017,3248841-2362772,625.00,EMBRACE ALL LTD.
Adult and Health Services,Central/Other,Debtors,930024,Debtor-free nursing care,22-Feb-2017,3248841-2362781,625.00,EMBRACE ALL LTD.
Adult and Health Services,Central/Other,Debtors,930024,Debtor-free nursing care,22-Feb-2017,3248841-2362791,625.00,EMBRACE ALL LTD.
Adult and Health Services,Central/Other,Debtors,930024,Debtor-free nursing care,22-Feb-2017,3248841-2362797,625.00,EMBRACE ALL LTD.
Adult and Health Services,Central/Other,Debtors,930024,Debtor-free nursing care,22-Feb-2017,3248841-2362806,625.00,EMBRACE ALL LTD.
Adult and Health Services,Central/Other,Debtors,930024,Debtor-free nursing care,22-Feb-2017,3248841-2362808,625.00,EMBRACE ALL LTD.
Adult and Health Services,Central/Other,Debtors,930024,Debtor-free nursing care,22-Feb-2017,3248841-2362810,625.00,EMBRACE ALL LTD.
Adult and Health Services,Central/Other,Debtors,930024,Debtor-free nursing care,22-Feb-2017,3248841-2362812,625.00,EMBRACE ALL LTD.
Adult and Health Services,Central/Other,Debtors,930024,Debtor-free nursing care,22-Feb-2017,3248841-2362819,625.00,EMBRACE ALL LTD.
Adult and Health Services,Central/Other,Debtors,930024,Debtor-free nursing care,22-Feb-2017,3248841-2362826,625.00,EMBRACE ALL LTD.
Adult and Health Services,Central/Other,Debtors,930024,Debtor-free nursing care,22-Feb-2017,3248841-2362828,625.00,EMBRACE ALL LTD.
Adult and Health Services,Central/Other,Debtors,930024,Debtor-free nursing care,22-Feb-2017,3248841-2362832,625.00,EMBRACE ALL LTD.
Adult and Health Services,Central/Other,Debtors,930024,Debtor-free nursing care,22-Feb-2017,3248841-2362834,625.00,EMBRACE ALL LTD.
Adult and Health Services,Central/Other,Debtors,930024,Debtor-free nursing care,22-Feb-2017,3248843-2361427,535.71,EMBRACE ALL LTD.
Adult and Health Services,Central/Other,Debtors,930024,Debtor-free nursing care,22-Feb-2017,3248843-2361441,625.00,EMBRACE ALL LTD.
Adult and Health Services,Central/Other,Debtors,930024,Debtor-free nursing care,22-Feb-2017,3248843-2361449,625.00,EMBRACE ALL LTD.
Adult and Health Services,Central/Other,Debtors,930024,Debtor-free nursing care,22-Feb-2017,3248843-2361451,580.36,EMBRACE ALL LTD.
Adult and Health Services,Central/Other,Debtors,930024,Debtor-free nursing care,22-Feb-2017,3248843-2361455,625.00,EMBRACE ALL LTD.
Adult and Health Services,Central/Other,Debtors,930024,Debtor-free nursing care,22-Feb-2017,3248843-2361466,625.00,EMBRACE ALL LTD.
Adult and Health Services,Central/Other,Debtors,930024,Debtor-free nursing care,22-Feb-2017,3248843-2361469,625.00,EMBRACE ALL LTD.
Adult and Health Services,Central/Other,Debtors,930024,Debtor-free nursing care,22-Feb-2017,3248843-2361471,625.00,EMBRACE ALL LTD.
Adult and Health Services,Central/Other,Debtors,930024,Debtor-free nursing care,22-Feb-2017,3248843-2361478,625.00,EMBRACE ALL LTD.
Adult and Health Services,Central/Other,Debtors,930024,Debtor-free nursing care,22-Feb-2017,3248843-2361482,625.00,EMBRACE ALL LTD.
Adult and Health Services,Central/Other,Debtors,930024,Debtor-free nursing care,22-Feb-2017,3248843-2361487,625.00,EMBRACE ALL LTD.
Adult and Health Services,Central/Other,Debtors,930024,Debtor-free nursing care,22-Feb-2017,3248843-2361489,625.00,EMBRACE ALL LTD.
Adult and Health Services,Central/Other,Debtors,930024,Debtor-free nursing care,22-Feb-2017,3248843-2363903,"1,049.11",EMBRACE ALL LTD.
Adult and Health Services,Central/Other,Debtors,930024,Debtor-free nursing care,22-Feb-2017,3248851-2361231,736.61,FOUR SEASONS HEALTH CARE..
Adult and Health Services,Central/Other,Debtors,930024,Debtor-free nursing care,22-Feb-2017,3248851-2361233,625.00,FOUR SEASONS HEALTH CARE..
Adult and Health Services,Central/Other,Debtors,930024,Debtor-free nursing care,22-Feb-2017,3248851-2361236,625.00,FOUR SEASONS HEALTH CARE..
Adult and Health Services,Central/Other,Debtors,930024,Debtor-free nursing care,22-Feb-2017,3248851-2361239,625.00,FOUR SEASONS HEALTH CARE..
Adult and Health Services,Central/Other,Debtors,930024,Debtor-free nursing care,22-Feb-2017,3248851-2361240,625.00,FOUR SEASONS HEALTH CARE..
Adult and Health Services,Central/Other,Debtors,930024,Debtor-free nursing care,22-Feb-2017,3248851-2361242,625.00,FOUR SEASONS HEALTH CARE..
Adult and Health Services,Central/Other,Debtors,930024,Debtor-free nursing care,22-Feb-2017,3248851-2361244,625.00,FOUR SEASONS HEALTH CARE..
Adult and Health Services,Central/Other,Debtors,930024,Debtor-free nursing care,22-Feb-2017,3248851-2361245,625.00,FOUR SEASONS HEALTH CARE..
Adult and Health Services,Central/Other,Debtors,930024,Debtor-free nursing care,22-Feb-2017,3248851-2361248,625.00,FOUR SEASONS HEALTH CARE..
Adult and Health Services,Central/Other,Debtors,930024,Debtor-free nursing care,22-Feb-2017,3248856-2362978,625.00,GAINFORD CARE HOMES LTD.
Adult and Health Services,Central/Other,Debtors,930024,Debtor-free nursing care,22-Feb-2017,3248856-2362980,625.00,GAINFORD CARE HOMES LTD.
Adult and Health Services,Central/Other,Debtors,930024,Debtor-free nursing care,22-Feb-2017,3248856-2362982,"1,250.00",GAINFORD CARE HOMES LTD.
Adult and Health Services,Central/Other,Debtors,930024,Debtor-free nursing care,22-Feb-2017,3248856-2362984,625.00,GAINFORD CARE HOMES LTD.
Adult and Health Services,Central/Other,Debtors,930024,Debtor-free nursing care,22-Feb-2017,3248856-2362986,625.00,GAINFORD CARE HOMES LTD.
Adult and Health Services,Central/Other,Debtors,930024,Debtor-free nursing care,22-Feb-2017,3248856-2362987,625.00,GAINFORD CARE HOMES LTD.
Adult and Health Services,Central/Other,Debtors,930024,Debtor-free nursing care,22-Feb-2017,3248856-2362992,625.00,GAINFORD CARE HOMES LTD.
Adult and Health Services,Central/Other,Debtors,930024,Debtor-free nursing care,22-Feb-2017,3248856-2362994,625.00,GAINFORD CARE HOMES LTD.
Adult and Health Services,Central/Other,Debtors,930024,Debtor-free nursing care,22-Feb-2017,3248856-2362996,625.00,GAINFORD CARE HOMES LTD.
Adult and Health Services,Central/Other,Debtors,930024,Debtor-free nursing care,22-Feb-2017,3248856-2362999,625.00,GAINFORD CARE HOMES LTD.
Adult and Health Services,Central/Other,Debtors,930024,Debtor-free nursing care,22-Feb-2017,3248856-2363006,625.00,GAINFORD CARE HOMES LTD.
Adult and Health Services,Central/Other,Debtors,930024,Debtor-free nursing care,22-Feb-2017,3248856-2363008,625.00,GAINFORD CARE HOMES LTD.
Adult and Health Services,Central/Other,Debtors,930024,Debtor-free nursing care,22-Feb-2017,3248856-2363010,625.00,GAINFORD CARE HOMES LTD.
Adult and Health Services,Central/Other,Debtors,930024,Debtor-free nursing care,22-Feb-2017,3248856-2363019,625.00,GAINFORD CARE HOMES LTD.
Adult and Health Services,Central/Other,Debtors,930024,Debtor-free nursing care,22-Feb-2017,3248856-2363024,625.00,GAINFORD CARE HOMES LTD.
Adult and Health Services,Central/Other,Debtors,930024,Debtor-free nursing care,22-Feb-2017,3248857-2360757,625.00,GAINFORD CARE HOMES LTD.
Adult and Health Services,Central/Other,Debtors,930024,Debtor-free nursing care,22-Feb-2017,3248857-2360760,625.00,GAINFORD CARE HOMES LTD.
Adult and Health Services,Central/Other,Debtors,930024,Debtor-free nursing care,22-Feb-2017,3248857-2360762,625.00,GAINFORD CARE HOMES LTD.
Adult and Health Services,Central/Other,Debtors,930024,Debtor-free nursing care,22-Feb-2017,3248857-2360764,625.00,GAINFORD CARE HOMES LTD.
Adult and Health Services,Central/Other,Debtors,930024,Debtor-free nursing care,22-Feb-2017,3248857-2360765,625.00,GAINFORD CARE HOMES LTD.
Adult and Health Services,Central/Other,Debtors,930024,Debtor-free nursing care,22-Feb-2017,3248857-2360767,625.00,GAINFORD CARE HOMES LTD.
Adult and Health Services,Central/Other,Debtors,930024,Debtor-free nursing care,22-Feb-2017,3248857-2360771,625.00,GAINFORD CARE HOMES LTD.
Adult and Health Services,Central/Other,Debtors,930024,Debtor-free nursing care,22-Feb-2017,3248857-2360773,625.00,GAINFORD CARE HOMES LTD.
Adult and Health Services,Central/Other,Debtors,930024,Debtor-free nursing care,22-Feb-2017,3248857-2360776,736.61,GAINFORD CARE HOMES LTD.
Adult and Health Services,Central/Other,Debtors,930024,Debtor-free nursing care,22-Feb-2017,3248857-2360782,758.93,GAINFORD CARE HOMES LTD.
Adult and Health Services,Central/Other,Debtors,930024,Debtor-free nursing care,22-Feb-2017,3248857-2360784,625.00,GAINFORD CARE HOMES LTD.
Adult and Health Services,Central/Other,Debtors,930024,Debtor-free nursing care,22-Feb-2017,3248857-2360788,625.00,GAINFORD CARE HOMES LTD.
Adult and Health Services,Central/Other,Debtors,930024,Debtor-free nursing care,22-Feb-2017,3248857-2360790,625.00,GAINFORD CARE HOMES LTD.
Adult and Health Services,Central/Other,Debtors,930024,Debtor-free nursing care,22-Feb-2017,3248857-2360804,625.00,GAINFORD CARE HOMES LTD.
Adult and Health Services,Central/Other,Debtors,930024,Debtor-free nursing care,22-Feb-2017,3248857-2360809,625.00,GAINFORD CARE HOMES LTD.
Adult and Health Services,Central/Other,Debtors,930024,Debtor-free nursing care,22-Feb-2017,3248857-2360817,625.00,GAINFORD CARE HOMES LTD.
Adult and Health Services,Central/Other,Debtors,930024,Debtor-free nursing care,22-Feb-2017,3248857-2360824,625.00,GAINFORD CARE HOMES LTD.
Adult and Health Services,Central/Other,Debtors,930024,Debtor-free nursing care,22-Feb-2017,3248857-2360835,625.00,GAINFORD CARE HOMES LTD.
Adult and Health Services,Central/Other,Debtors,930024,Debtor-free nursing care,22-Feb-2017,3248865-2362845,625.00,GUARDIAN CARE HOMES (WEST) LTD T/A BOWBURN CARE CENTRE.
Adult and Health Services,Central/Other,Debtors,930024,Debtor-free nursing care,22-Feb-2017,3248865-2362847,848.21,GUARDIAN CARE HOMES (WEST) LTD T/A BOWBURN CARE CENTRE.
Adult and Health Services,Central/Other,Debtors,930024,Debtor-free nursing care,22-Feb-2017,3248865-2362849,625.00,GUARDIAN CARE HOMES (WEST) LTD T/A BOWBURN CARE CENTRE.
Adult and Health Services,Central/Other,Debtors,930024,Debtor-free nursing care,22-Feb-2017,3248865-2362851,625.00,GUARDIAN CARE HOMES (WEST) LTD T/A BOWBURN CARE CENTRE.
Adult and Health Services,Central/Other,Debtors,930024,Debtor-free nursing care,22-Feb-2017,3248865-2362855,"2,254.46",GUARDIAN CARE HOMES (WEST) LTD T/A BOWBURN CARE CENTRE.
Adult and Health Services,Central/Other,Debtors,930024,Debtor-free nursing care,22-Feb-2017,3248865-2362867,915.18,GUARDIAN CARE HOMES (WEST) LTD T/A BOWBURN CARE CENTRE.
Adult and Health Services,Central/Other,Debtors,930024,Debtor-free nursing care,22-Feb-2017,3248865-2362877,625.00,GUARDIAN CARE HOMES (WEST) LTD T/A BOWBURN CARE CENTRE.
Adult and Health Services,Central/Other,Debtors,930024,Debtor-free nursing care,22-Feb-2017,3248865-2362881,625.00,GUARDIAN CARE HOMES (WEST) LTD T/A BOWBURN CARE CENTRE.
Adult and Health Services,Central/Other,Debtors,930024,Debtor-free nursing care,22-Feb-2017,3248865-2362889,625.00,GUARDIAN CARE HOMES (WEST) LTD T/A BOWBURN CARE CENTRE.
Adult and Health Services,Central/Other,Debtors,930024,Debtor-free nursing care,22-Feb-2017,3248865-2362890,625.00,GUARDIAN CARE HOMES (WEST) LTD T/A BOWBURN CARE CENTRE.
Adult and Health Services,Central/Other,Debtors,930024,Debtor-free nursing care,22-Feb-2017,3248865-2362892,625.00,GUARDIAN CARE HOMES (WEST) LTD T/A BOWBURN CARE CENTRE.
Adult and Health Services,Central/Other,Debtors,930024,Debtor-free nursing care,22-Feb-2017,3248865-2362896,625.00,GUARDIAN CARE HOMES (WEST) LTD T/A BOWBURN CARE CENTRE.
Adult and Health Services,Central/Other,Debtors,930024,Debtor-free nursing care,22-Feb-2017,3248865-2362899,625.00,GUARDIAN CARE HOMES (WEST) LTD T/A BOWBURN CARE CENTRE.
Adult and Health Services,Central/Other,Debtors,930024,Debtor-free nursing care,22-Feb-2017,3248865-2362901,625.00,GUARDIAN CARE HOMES (WEST) LTD T/A BOWBURN CARE CENTRE.
Adult and Health Services,Central/Other,Debtors,930024,Debtor-free nursing care,22-Feb-2017,3248865-2362903,625.00,GUARDIAN CARE HOMES (WEST) LTD T/A BOWBURN CARE CENTRE.
Adult and Health Services,Central/Other,Debtors,930024,Debtor-free nursing care,22-Feb-2017,3248865-2362905,625.00,GUARDIAN CARE HOMES (WEST) LTD T/A BOWBURN CARE CENTRE.
Adult and Health Services,Central/Other,Debtors,930024,Debtor-free nursing care,22-Feb-2017,3248881-2361874,625.00,HOLLY LODGE CARE HOME.
Adult and Health Services,Central/Other,Debtors,930024,Debtor-free nursing care,22-Feb-2017,3248881-2361876,625.00,HOLLY LODGE CARE HOME.
Adult and Health Services,Central/Other,Debtors,930024,Debtor-free nursing care,22-Feb-2017,3248881-2361879,625.00,HOLLY LODGE CARE HOME.
Adult and Health Services,Central/Other,Debtors,930024,Debtor-free nursing care,22-Feb-2017,3248881-2361884,625.00,HOLLY LODGE CARE HOME.
Adult and Health Services,Central/Other,Debtors,930024,Debtor-free nursing care,22-Feb-2017,3248881-2361897,625.00,HOLLY LODGE CARE HOME.
Adult and Health Services,Central/Other,Debtors,930024,Debtor-free nursing care,22-Feb-2017,3248881-2361899,625.00,HOLLY LODGE CARE HOME.
Adult and Health Services,Central/Other,Debtors,930024,Debtor-free nursing care,22-Feb-2017,3248881-2361901,625.00,HOLLY LODGE CARE HOME.
Adult and Health Services,Central/Other,Debtors,930024,Debtor-free nursing care,22-Feb-2017,3248882-2359184,625.00,HOWLISH HALL NURSING HOME.
Adult and Health Services,Central/Other,Debtors,930024,Debtor-free nursing care,22-Feb-2017,3248882-2359187,625.00,HOWLISH HALL NURSING HOME.
Adult and Health Services,Central/Other,Debtors,930024,Debtor-free nursing care,22-Feb-2017,3248882-2359201,625.00,HOWLISH HALL NURSING HOME.
Adult and Health Services,Central/Other,Debtors,930024,Debtor-free nursing care,22-Feb-2017,3248882-2359204,625.00,HOWLISH HALL NURSING HOME.
Adult and Health Services,Central/Other,Debtors,930024,Debtor-free nursing care,22-Feb-2017,3248882-2359205,625.00,HOWLISH HALL NURSING HOME.
Adult and Health Services,Central/Other,Debtors,930024,Debtor-free nursing care,22-Feb-2017,3248882-2359207,625.00,HOWLISH HALL NURSING HOME.
Adult and Health Services,Central/Other,Debtors,930024,Debtor-free nursing care,22-Feb-2017,3248882-2359211,625.00,HOWLISH HALL NURSING HOME.
Adult and Health Services,Central/Other,Debtors,930024,Debtor-free nursing care,22-Feb-2017,3248882-2359212,625.00,HOWLISH HALL NURSING HOME.
Adult and Health Services,Central/Other,Debtors,930024,Debtor-free nursing care,22-Feb-2017,3248882-2359213,625.00,HOWLISH HALL NURSING HOME.
Adult and Health Services,Central/Other,Debtors,930024,Debtor-free nursing care,22-Feb-2017,3248882-2359217,625.00,HOWLISH HALL NURSING HOME.
Adult and Health Services,Central/Other,Debtors,930024,Debtor-free nursing care,22-Feb-2017,3248885-2360052,625.00,JACK DORMAND.
Adult and Health Services,Central/Other,Debtors,930024,Debtor-free nursing care,22-Feb-2017,3248885-2360053,625.00,JACK DORMAND.
Adult and Health Services,Central/Other,Debtors,930024,Debtor-free nursing care,22-Feb-2017,3248885-2360057,625.00,JACK DORMAND.
Adult and Health Services,Central/Other,Debtors,930024,Debtor-free nursing care,22-Feb-2017,3248885-2360061,625.00,JACK DORMAND.
Adult and Health Services,Central/Other,Debtors,930024,Debtor-free nursing care,22-Feb-2017,3248885-2360075,625.00,JACK DORMAND.
Adult and Health Services,Central/Other,Debtors,930024,Debtor-free nursing care,22-Feb-2017,3248885-2360076,625.00,JACK DORMAND.
Adult and Health Services,Central/Other,Debtors,930024,Debtor-free nursing care,22-Feb-2017,3248885-2360082,625.00,JACK DORMAND.
Adult and Health Services,Central/Other,Debtors,930024,Debtor-free nursing care,22-Feb-2017,3248885-2363950,602.68,JACK DORMAND.
Adult and Health Services,Central/Other,Debtors,930024,Debtor-free nursing care,22-Feb-2017,3248890-2360559,625.00,KIMBLESWORTH NURSING HOME.
Adult and Health Services,Central/Other,Debtors,930024,Debtor-free nursing care,22-Feb-2017,3248890-2360561,625.00,KIMBLESWORTH NURSING HOME.
Adult and Health Services,Central/Other,Debtors,930024,Debtor-free nursing care,22-Feb-2017,3248890-2360564,625.00,KIMBLESWORTH NURSING HOME.
Adult and Health Services,Central/Other,Debtors,930024,Debtor-free nursing care,22-Feb-2017,3248890-2360566,860.16,KIMBLESWORTH NURSING HOME.
Adult and Health Services,Central/Other,Debtors,930024,Debtor-free nursing care,22-Feb-2017,3248890-2360574,625.00,KIMBLESWORTH NURSING HOME.
Adult and Health Services,Central/Other,Debtors,930024,Debtor-free nursing care,22-Feb-2017,3248890-2360576,625.00,KIMBLESWORTH NURSING HOME.
Adult and Health Services,Central/Other,Debtors,930024,Debtor-free nursing care,22-Feb-2017,3248890-2360578,625.00,KIMBLESWORTH NURSING HOME.
Adult and Health Services,Central/Other,Debtors,930024,Debtor-free nursing care,22-Feb-2017,3248892-2359772,625.00,KINGSWAY CARE HOME LTD.
Adult and Health Services,Central/Other,Debtors,930024,Debtor-free nursing care,22-Feb-2017,3248892-2359780,625.00,KINGSWAY CARE HOME LTD.
Adult and Health Services,Central/Other,Debtors,930024,Debtor-free nursing care,22-Feb-2017,3248892-2359782,625.00,KINGSWAY CARE HOME LTD.
Adult and Health Services,Central/Other,Debtors,930024,Debtor-free nursing care,22-Feb-2017,3248892-2359786,625.00,KINGSWAY CARE HOME LTD.
Adult and Health Services,Central/Other,Debtors,930024,Debtor-free nursing care,22-Feb-2017,3248892-2359787,625.00,KINGSWAY CARE HOME LTD.
Adult and Health Services,Central/Other,Debtors,930024,Debtor-free nursing care,22-Feb-2017,3248892-2359789,625.00,KINGSWAY CARE HOME LTD.
Adult and Health Services,Central/Other,Debtors,930024,Debtor-free nursing care,22-Feb-2017,3248892-2359797,625.00,KINGSWAY CARE HOME LTD.
Adult and Health Services,Central/Other,Debtors,930024,Debtor-free nursing care,22-Feb-2017,3248892-2359799,625.00,KINGSWAY CARE HOME LTD.
Adult and Health Services,Central/Other,Debtors,930024,Debtor-free nursing care,22-Feb-2017,3248892-2359801,625.00,KINGSWAY CARE HOME LTD.
Adult and Health Services,Central/Other,Debtors,930024,Debtor-free nursing care,22-Feb-2017,3248892-2359806,625.00,KINGSWAY CARE HOME LTD.
Adult and Health Services,Central/Other,Debtors,930024,Debtor-free nursing care,22-Feb-2017,3248892-2359808,625.00,KINGSWAY CARE HOME LTD.
Adult and Health Services,Central/Other,Debtors,930024,Debtor-free nursing care,22-Feb-2017,3248899-2359446,625.00,LEAZES HALL RESIDENTIAL & NURSING HOME.
Adult and Health Services,Central/Other,Debtors,930024,Debtor-free nursing care,22-Feb-2017,3248899-2359453,625.00,LEAZES HALL RESIDENTIAL & NURSING HOME.
Adult and Health Services,Central/Other,Debtors,930024,Debtor-free nursing care,22-Feb-2017,3248899-2359457,625.00,LEAZES HALL RESIDENTIAL & NURSING HOME.
Adult and Health Services,Central/Other,Debtors,930024,Debtor-free nursing care,22-Feb-2017,3248899-2359470,625.00,LEAZES HALL RESIDENTIAL & NURSING HOME.
Adult and Health Services,Central/Other,Debtors,930024,Debtor-free nursing care,22-Feb-2017,3248899-2359475,625.00,LEAZES HALL RESIDENTIAL & NURSING HOME.
Adult and Health Services,Central/Other,Debtors,930024,Debtor-free nursing care,22-Feb-2017,3248899-2359478,625.00,LEAZES HALL RESIDENTIAL & NURSING HOME.
Adult and Health Services,Central/Other,Debtors,930024,Debtor-free nursing care,22-Feb-2017,3248899-2359480,625.00,LEAZES HALL RESIDENTIAL & NURSING HOME.
Adult and Health Services,Central/Other,Debtors,930024,Debtor-free nursing care,22-Feb-2017,3248899-2359482,625.00,LEAZES HALL RESIDENTIAL & NURSING HOME.
Adult and Health Services,Central/Other,Debtors,930024,Debtor-free nursing care,22-Feb-2017,3248899-2359484,625.00,LEAZES HALL RESIDENTIAL & NURSING HOME.
Adult and Health Services,Central/Other,Debtors,930024,Debtor-free nursing care,22-Feb-2017,3248904-2362263,625.00,LINDISFARNE CARE HOME (GAINFORD CARE HOMES LTD).
Adult and Health Services,Central/Other,Debtors,930024,Debtor-free nursing care,22-Feb-2017,3248904-2362265,625.00,LINDISFARNE CARE HOME (GAINFORD CARE HOMES LTD).
Adult and Health Services,Central/Other,Debtors,930024,Debtor-free nursing care,22-Feb-2017,3248904-2362267,625.00,LINDISFARNE CARE HOME (GAINFORD CARE HOMES LTD).
Adult and Health Services,Central/Other,Debtors,930024,Debtor-free nursing care,22-Feb-2017,3248904-2362268,625.00,LINDISFARNE CARE HOME (GAINFORD CARE HOMES LTD).
Adult and Health Services,Central/Other,Debtors,930024,Debtor-free nursing care,22-Feb-2017,3248904-2362270,625.00,LINDISFARNE CARE HOME (GAINFORD CARE HOMES LTD).
Adult and Health Services,Central/Other,Debtors,930024,Debtor-free nursing care,22-Feb-2017,3248904-2362271,625.00,LINDISFARNE CARE HOME (GAINFORD CARE HOMES LTD).
Adult and Health Services,Central/Other,Debtors,930024,Debtor-free nursing care,22-Feb-2017,3248904-2362273,625.00,LINDISFARNE CARE HOME (GAINFORD CARE HOMES LTD).
Adult and Health Services,Central/Other,Debtors,930024,Debtor-free nursing care,22-Feb-2017,3248904-2362276,625.00,LINDISFARNE CARE HOME (GAINFORD CARE HOMES LTD).
Adult and Health Services,Central/Other,Debtors,930024,Debtor-free nursing care,22-Feb-2017,3248904-2362278,625.00,LINDISFARNE CARE HOME (GAINFORD CARE HOMES LTD).
Adult and Health Services,Central/Other,Debtors,930024,Debtor-free nursing care,22-Feb-2017,3248904-2362280,625.00,LINDISFARNE CARE HOME (GAINFORD CARE HOMES LTD).
Adult and Health Services,Central/Other,Debtors,930024,Debtor-free nursing care,22-Feb-2017,3248904-2362284,625.00,LINDISFARNE CARE HOME (GAINFORD CARE HOMES LTD).
Adult and Health Services,Central/Other,Debtors,930024,Debtor-free nursing care,22-Feb-2017,3248904-2362286,625.00,LINDISFARNE CARE HOME (GAINFORD CARE HOMES LTD).
Adult and Health Services,Central/Other,Debtors,930024,Debtor-free nursing care,22-Feb-2017,3248904-2362290,625.00,LINDISFARNE CARE HOME (GAINFORD CARE HOMES LTD).
Adult and Health Services,Central/Other,Debtors,930024,Debtor-free nursing care,22-Feb-2017,3248904-2362292,625.00,LINDISFARNE CARE HOME (GAINFORD CARE HOMES LTD).
Adult and Health Services,Central/Other,Debtors,930024,Debtor-free nursing care,22-Feb-2017,3248904-2362297,625.00,LINDISFARNE CARE HOME (GAINFORD CARE HOMES LTD).
Adult and Health Services,Central/Other,Debtors,930024,Debtor-free nursing care,22-Feb-2017,3248904-2362301,625.00,LINDISFARNE CARE HOME (GAINFORD CARE HOMES LTD).
Adult and Health Services,Central/Other,Debtors,930024,Debtor-free nursing care,22-Feb-2017,3248904-2362303,625.00,LINDISFARNE CARE HOME (GAINFORD CARE HOMES LTD).
Adult and Health Services,Central/Other,Debtors,930024,Debtor-free nursing care,22-Feb-2017,3248907-2362057,625.00,LINDISFARNE.
Adult and Health Services,Central/Other,Debtors,930024,Debtor-free nursing care,22-Feb-2017,3248907-2362058,625.00,LINDISFARNE.
Adult and Health Services,Central/Other,Debtors,930024,Debtor-free nursing care,22-Feb-2017,3248907-2362061,535.71,LINDISFARNE.
Adult and Health Services,Central/Other,Debtors,930024,Debtor-free nursing care,22-Feb-2017,3248907-2362065,625.00,LINDISFARNE.
Adult and Health Services,Central/Other,Debtors,930024,Debtor-free nursing care,22-Feb-2017,3248907-2362069,625.00,LINDISFARNE.
Adult and Health Services,Central/Other,Debtors,930024,Debtor-free nursing care,22-Feb-2017,3248907-2362071,580.36,LINDISFARNE.
Adult and Health Services,Central/Other,Debtors,930024,Debtor-free nursing care,22-Feb-2017,3248907-2362081,625.00,LINDISFARNE.
Adult and Health Services,Central/Other,Debtors,930024,Debtor-free nursing care,22-Feb-2017,3248907-2362082,625.00,LINDISFARNE.
Adult and Health Services,Central/Other,Debtors,930024,Debtor-free nursing care,22-Feb-2017,3248907-2362083,625.00,LINDISFARNE.
Adult and Health Services,Central/Other,Debtors,930024,Debtor-free nursing care,22-Feb-2017,3248907-2362085,625.00,LINDISFARNE.
Adult and Health Services,Central/Other,Debtors,930024,Debtor-free nursing care,22-Feb-2017,3248907-2362089,625.00,LINDISFARNE.
Adult and Health Services,Central/Other,Debtors,930024,Debtor-free nursing care,22-Feb-2017,3248907-2362090,625.00,LINDISFARNE.
Adult and Health Services,Central/Other,Debtors,930024,Debtor-free nursing care,22-Feb-2017,3248907-2362092,625.00,LINDISFARNE.
Adult and Health Services,Central/Other,Debtors,930024,Debtor-free nursing care,22-Feb-2017,3248907-2362094,625.00,LINDISFARNE.
Adult and Health Services,Central/Other,Debtors,930024,Debtor-free nursing care,22-Feb-2017,3248907-2362096,625.00,LINDISFARNE.
Adult and Health Services,Central/Other,Debtors,930024,Debtor-free nursing care,22-Feb-2017,3248907-2362098,625.00,LINDISFARNE.
Adult and Health Services,Central/Other,Debtors,930024,Debtor-free nursing care,22-Feb-2017,3248907-2362105,625.00,LINDISFARNE.
Adult and Health Services,Central/Other,Debtors,930024,Debtor-free nursing care,22-Feb-2017,3248907-2362107,625.00,LINDISFARNE.
Adult and Health Services,Central/Other,Debtors,930024,Debtor-free nursing care,22-Feb-2017,3248907-2362110,625.00,LINDISFARNE.
Adult and Health Services,Central/Other,Debtors,930024,Debtor-free nursing care,22-Feb-2017,3248907-2362113,625.00,LINDISFARNE.
Adult and Health Services,Central/Other,Debtors,930024,Debtor-free nursing care,22-Feb-2017,3248911-2362197,625.00,LYONS COURT CARE HOME.
Adult and Health Services,Central/Other,Debtors,930024,Debtor-free nursing care,22-Feb-2017,3248911-2362200,625.00,LYONS COURT CARE HOME.
Adult and Health Services,Central/Other,Debtors,930024,Debtor-free nursing care,22-Feb-2017,3248911-2362201,625.00,LYONS COURT CARE HOME.
Adult and Health Services,Central/Other,Debtors,930024,Debtor-free nursing care,22-Feb-2017,3248911-2362204,959.82,LYONS COURT CARE HOME.
Adult and Health Services,Central/Other,Debtors,930024,Debtor-free nursing care,22-Feb-2017,3248911-2362215,625.00,LYONS COURT CARE HOME.
Adult and Health Services,Central/Other,Debtors,930024,Debtor-free nursing care,22-Feb-2017,3248911-2362222,625.00,LYONS COURT CARE HOME.
Adult and Health Services,Central/Other,Debtors,930024,Debtor-free nursing care,22-Feb-2017,3248911-2362231,625.00,LYONS COURT CARE HOME.
Adult and Health Services,Central/Other,Debtors,930024,Debtor-free nursing care,22-Feb-2017,3248911-2362234,625.00,LYONS COURT CARE HOME.
Adult and Health Services,Central/Other,Debtors,930024,Debtor-free nursing care,22-Feb-2017,3248911-2362238,625.00,LYONS COURT CARE HOME.
Adult and Health Services,Central/Other,Debtors,930024,Debtor-free nursing care,22-Feb-2017,3248911-2362240,625.00,LYONS COURT CARE HOME.
Adult and Health Services,Central/Other,Debtors,930024,Debtor-free nursing care,22-Feb-2017,3248911-2362242,625.00,LYONS COURT CARE HOME.
Adult and Health Services,Central/Other,Debtors,930024,Debtor-free nursing care,22-Feb-2017,3248911-2362244,625.00,LYONS COURT CARE HOME.
Adult and Health Services,Central/Other,Debtors,930024,Debtor-free nursing care,22-Feb-2017,3248911-2362246,625.00,LYONS COURT CARE HOME.
Adult and Health Services,Central/Other,Debtors,930024,Debtor-free nursing care,22-Feb-2017,3248913-2361168,625.00,MARIA MALLABAND NURSING HOMES LTD.
Adult and Health Services,Central/Other,Debtors,930024,Debtor-free nursing care,22-Feb-2017,3248913-2361176,625.00,MARIA MALLABAND NURSING HOMES LTD.
Adult and Health Services,Central/Other,Debtors,930024,Debtor-free nursing care,22-Feb-2017,3248913-2361180,625.00,MARIA MALLABAND NURSING HOMES LTD.
Adult and Health Services,Central/Other,Debtors,930024,Debtor-free nursing care,22-Feb-2017,3248913-2361192,625.00,MARIA MALLABAND NURSING HOMES LTD.
Adult and Health Services,Central/Other,Debtors,930024,Debtor-free nursing care,22-Feb-2017,3248913-2361195,625.00,MARIA MALLABAND NURSING HOMES LTD.
Adult and Health Services,Central/Other,Debtors,930024,Debtor-free nursing care,22-Feb-2017,3248913-2361202,625.00,MARIA MALLABAND NURSING HOMES LTD.
Adult and Health Services,Central/Other,Debtors,930024,Debtor-free nursing care,22-Feb-2017,3248917-2362145,625.00,MELBURY COURT.
Adult and Health Services,Central/Other,Debtors,930024,Debtor-free nursing care,22-Feb-2017,3248917-2362148,625.00,MELBURY COURT.
Adult and Health Services,Central/Other,Debtors,930024,Debtor-free nursing care,22-Feb-2017,3248917-2362150,625.00,MELBURY COURT.
Adult and Health Services,Central/Other,Debtors,930024,Debtor-free nursing care,22-Feb-2017,3248917-2362160,625.00,MELBURY COURT.
Adult and Health Services,Central/Other,Debtors,930024,Debtor-free nursing care,22-Feb-2017,3248917-2362165,625.00,MELBURY COURT.
Adult and Health Services,Central/Other,Debtors,930024,Debtor-free nursing care,22-Feb-2017,3248917-2362167,625.00,MELBURY COURT.
Adult and Health Services,Central/Other,Debtors,930024,Debtor-free nursing care,22-Feb-2017,3248917-2362169,625.00,MELBURY COURT.
Adult and Health Services,Central/Other,Debtors,930024,Debtor-free nursing care,22-Feb-2017,3248917-2362174,625.00,MELBURY COURT.
Adult and Health Services,Central/Other,Debtors,930024,Debtor-free nursing care,22-Feb-2017,3248917-2362181,625.00,MELBURY COURT.
Adult and Health Services,Central/Other,Debtors,930024,Debtor-free nursing care,22-Feb-2017,3248957-2359427,625.00,OBJECT QUEST LTD.
Adult and Health Services,Central/Other,Debtors,930024,Debtor-free nursing care,22-Feb-2017,3248957-2359429,625.00,OBJECT QUEST LTD.
Adult and Health Services,Central/Other,Debtors,930024,Debtor-free nursing care,22-Feb-2017,3248957-2359431,625.00,OBJECT QUEST LTD.
Adult and Health Services,Central/Other,Debtors,930024,Debtor-free nursing care,22-Feb-2017,3248957-2359436,625.00,OBJECT QUEST LTD.
Adult and Health Services,Central/Other,Debtors,930024,Debtor-free nursing care,22-Feb-2017,3248957-2359439,625.00,OBJECT QUEST LTD.
Adult and Health Services,Central/Other,Debtors,930024,Debtor-free nursing care,22-Feb-2017,3248957-2359441,625.00,OBJECT QUEST LTD.
Adult and Health Services,Central/Other,Debtors,930024,Debtor-free nursing care,22-Feb-2017,3248957-2359443,625.00,OBJECT QUEST LTD.
Adult and Health Services,Central/Other,Debtors,930024,Debtor-free nursing care,22-Feb-2017,3248964-2360096,625.00,PARKLANDS NURSING HOME.
Adult and Health Services,Central/Other,Debtors,930024,Debtor-free nursing care,22-Feb-2017,3248964-2360100,625.00,PARKLANDS NURSING HOME.
Adult and Health Services,Central/Other,Debtors,930024,Debtor-free nursing care,22-Feb-2017,3248964-2360102,625.00,PARKLANDS NURSING HOME.
Adult and Health Services,Central/Other,Debtors,930024,Debtor-free nursing care,22-Feb-2017,3248964-2360107,625.00,PARKLANDS NURSING HOME.
Adult and Health Services,Central/Other,Debtors,930024,Debtor-free nursing care,22-Feb-2017,3248964-2360110,625.00,PARKLANDS NURSING HOME.
Adult and Health Services,Central/Other,Debtors,930024,Debtor-free nursing care,22-Feb-2017,3248964-2360112,625.00,PARKLANDS NURSING HOME.
Adult and Health Services,Central/Other,Debtors,930024,Debtor-free nursing care,22-Feb-2017,3248964-2360115,625.00,PARKLANDS NURSING HOME.
Adult and Health Services,Central/Other,Debtors,930024,Debtor-free nursing care,22-Feb-2017,3248964-2360119,625.00,PARKLANDS NURSING HOME.
Adult and Health Services,Central/Other,Debtors,930024,Debtor-free nursing care,22-Feb-2017,3248964-2360121,625.00,PARKLANDS NURSING HOME.
Adult and Health Services,Central/Other,Debtors,930024,Debtor-free nursing care,22-Feb-2017,3248964-2360124,625.00,PARKLANDS NURSING HOME.
Adult and Health Services,Central/Other,Debtors,930024,Debtor-free nursing care,22-Feb-2017,3248964-2360126,625.00,PARKLANDS NURSING HOME.
Adult and Health Services,Central/Other,Debtors,930024,Debtor-free nursing care,22-Feb-2017,3248964-2360130,625.00,PARKLANDS NURSING HOME.
Adult and Health Services,Central/Other,Debtors,930024,Debtor-free nursing care,22-Feb-2017,3248964-2360132,625.00,PARKLANDS NURSING HOME.
Adult and Health Services,Central/Other,Debtors,930024,Debtor-free nursing care,22-Feb-2017,3248964-2360135,625.00,PARKLANDS NURSING HOME.
Adult and Health Services,Central/Other,Debtors,930024,Debtor-free nursing care,22-Feb-2017,3248964-2360137,625.00,PARKLANDS NURSING HOME.
Adult and Health Services,Central/Other,Debtors,930024,Debtor-free nursing care,22-Feb-2017,3248964-2360139,625.00,PARKLANDS NURSING HOME.
Adult and Health Services,Central/Other,Debtors,930024,Debtor-free nursing care,22-Feb-2017,3248964-2360141,625.00,PARKLANDS NURSING HOME.
Adult and Health Services,Central/Other,Debtors,930024,Debtor-free nursing care,22-Feb-2017,3248964-2360143,625.00,PARKLANDS NURSING HOME.
Adult and Health Services,Central/Other,Debtors,930024,Debtor-free nursing care,22-Feb-2017,3248964-2360145,625.00,PARKLANDS NURSING HOME.
Adult and Health Services,Central/Other,Debtors,930024,Debtor-free nursing care,22-Feb-2017,3248964-2360148,625.00,PARKLANDS NURSING HOME.
Adult and Health Services,Central/Other,Debtors,930024,Debtor-free nursing care,22-Feb-2017,3248964-2363732,"1,473.21",PARKLANDS NURSING HOME.
Adult and Health Services,Central/Other,Debtors,930024,Debtor-free nursing care,22-Feb-2017,3248967-2342771,625.00,AKARI CARE LTD T/A PAVILION COURT CARE HOME.
Adult and Health Services,Central/Other,Debtors,930024,Debtor-free nursing care,22-Feb-2017,3248971-2359874,625.00,PERFECT CARE LTD T/A BELMONT GRANGE CARE HOME.
Adult and Health Services,Central/Other,Debtors,930024,Debtor-free nursing care,22-Feb-2017,3248971-2359894,625.00,PERFECT CARE LTD T/A BELMONT GRANGE CARE HOME.
Adult and Health Services,Central/Other,Debtors,930024,Debtor-free nursing care,22-Feb-2017,3248971-2359896,625.00,PERFECT CARE LTD T/A BELMONT GRANGE CARE HOME.
Adult and Health Services,Central/Other,Debtors,930024,Debtor-free nursing care,22-Feb-2017,3248971-2359898,625.00,PERFECT CARE LTD T/A BELMONT GRANGE CARE HOME.
Adult and Health Services,Central/Other,Debtors,930024,Debtor-free nursing care,22-Feb-2017,3248977-2363025,625.00,PREMIER CARE HOMES LTD.
Adult and Health Services,Central/Other,Debtors,930024,Debtor-free nursing care,22-Feb-2017,3248977-2363028,625.00,PREMIER CARE HOMES LTD.
Adult and Health Services,Central/Other,Debtors,930024,Debtor-free nursing care,22-Feb-2017,3248977-2363030,625.00,PREMIER CARE HOMES LTD.
Adult and Health Services,Central/Other,Debtors,930024,Debtor-free nursing care,22-Feb-2017,3248977-2363032,625.00,PREMIER CARE HOMES LTD.
Adult and Health Services,Central/Other,Debtors,930024,Debtor-free nursing care,22-Feb-2017,3248977-2363035,625.00,PREMIER CARE HOMES LTD.
Adult and Health Services,Central/Other,Debtors,930024,Debtor-free nursing care,22-Feb-2017,3248977-2363039,625.00,PREMIER CARE HOMES LTD.
Adult and Health Services,Central/Other,Debtors,930024,Debtor-free nursing care,22-Feb-2017,3248977-2363043,625.00,PREMIER CARE HOMES LTD.
Adult and Health Services,Central/Other,Debtors,930024,Debtor-free nursing care,22-Feb-2017,3248977-2363046,625.00,PREMIER CARE HOMES LTD.
Adult and Health Services,Central/Other,Debtors,930024,Debtor-free nursing care,22-Feb-2017,3248977-2363049,625.00,PREMIER CARE HOMES LTD.
Adult and Health Services,Central/Other,Debtors,930024,Debtor-free nursing care,22-Feb-2017,3248977-2363056,625.00,PREMIER CARE HOMES LTD.
Adult and Health Services,Central/Other,Debtors,930024,Debtor-free nursing care,22-Feb-2017,3248977-2363060,625.00,PREMIER CARE HOMES LTD.
Adult and Health Services,Central/Other,Debtors,930024,Debtor-free nursing care,22-Feb-2017,3248977-2363061,625.00,PREMIER CARE HOMES LTD.
Adult and Health Services,Central/Other,Debtors,930024,Debtor-free nursing care,22-Feb-2017,3248977-2363070,625.00,PREMIER CARE HOMES LTD.
Adult and Health Services,Central/Other,Debtors,930024,Debtor-free nursing care,22-Feb-2017,3248977-2363071,625.00,PREMIER CARE HOMES LTD.
Adult and Health Services,Central/Other,Debtors,930024,Debtor-free nursing care,22-Feb-2017,3248984-2359102,625.00,RAYSON HOMES LTD.
Adult and Health Services,Central/Other,Debtors,930024,Debtor-free nursing care,22-Feb-2017,3248984-2359104,625.00,RAYSON HOMES LTD.
Adult and Health Services,Central/Other,Debtors,930024,Debtor-free nursing care,22-Feb-2017,3248984-2359106,625.00,RAYSON HOMES LTD.
Adult and Health Services,Central/Other,Debtors,930024,Debtor-free nursing care,22-Feb-2017,3248984-2359109,625.00,RAYSON HOMES LTD.
Adult and Health Services,Central/Other,Debtors,930024,Debtor-free nursing care,22-Feb-2017,3248984-2359111,625.00,RAYSON HOMES LTD.
Adult and Health Services,Central/Other,Debtors,930024,Debtor-free nursing care,22-Feb-2017,3248984-2359112,625.00,RAYSON HOMES LTD.
Adult and Health Services,Central/Other,Debtors,930024,Debtor-free nursing care,22-Feb-2017,3248984-2359114,625.00,RAYSON HOMES LTD.
Adult and Health Services,Central/Other,Debtors,930024,Debtor-free nursing care,22-Feb-2017,3248984-2359116,625.00,RAYSON HOMES LTD.
Adult and Health Services,Central/Other,Debtors,930024,Debtor-free nursing care,22-Feb-2017,3248984-2359118,625.00,RAYSON HOMES LTD.
Adult and Health Services,Central/Other,Debtors,930024,Debtor-free nursing care,22-Feb-2017,3248985-2359817,625.00,REDWELL HILLS.
Adult and Health Services,Central/Other,Debtors,930024,Debtor-free nursing care,22-Feb-2017,3248985-2359822,625.00,REDWELL HILLS.
Adult and Health Services,Central/Other,Debtors,930024,Debtor-free nursing care,22-Feb-2017,3248985-2359829,625.00,REDWELL HILLS.
Adult and Health Services,Central/Other,Debtors,930024,Debtor-free nursing care,22-Feb-2017,3248985-2359835,625.00,REDWELL HILLS.
Adult and Health Services,Central/Other,Debtors,930024,Debtor-free nursing care,22-Feb-2017,3248985-2359838,625.00,REDWELL HILLS.
Adult and Health Services,Central/Other,Debtors,930024,Debtor-free nursing care,22-Feb-2017,3248985-2359847,625.00,REDWELL HILLS.
Adult and Health Services,Central/Other,Debtors,930024,Debtor-free nursing care,22-Feb-2017,3248985-2359849,625.00,REDWELL HILLS.
Adult and Health Services,Central/Other,Debtors,930024,Debtor-free nursing care,22-Feb-2017,3248985-2359851,625.00,REDWELL HILLS.
Adult and Health Services,Central/Other,Debtors,930024,Debtor-free nursing care,22-Feb-2017,3248985-2363973,937.50,REDWELL HILLS.
Adult and Health Services,Central/Other,Debtors,930024,Debtor-free nursing care,22-Feb-2017,3248986-2361722,602.68,REDWORTH HOUSE CARE CENTRE.
Adult and Health Services,Central/Other,Debtors,930024,Debtor-free nursing care,22-Feb-2017,3248986-2361726,625.00,REDWORTH HOUSE CARE CENTRE.
Adult and Health Services,Central/Other,Debtors,930024,Debtor-free nursing care,22-Feb-2017,3248986-2361729,625.00,REDWORTH HOUSE CARE CENTRE.
Adult and Health Services,Central/Other,Debtors,930024,Debtor-free nursing care,22-Feb-2017,3248986-2361741,625.00,REDWORTH HOUSE CARE CENTRE.
Adult and Health Services,Central/Other,Debtors,930024,Debtor-free nursing care,22-Feb-2017,3248986-2361743,625.00,REDWORTH HOUSE CARE CENTRE.
Adult and Health Services,Central/Other,Debtors,930024,Debtor-free nursing care,22-Feb-2017,3248986-2361745,625.00,REDWORTH HOUSE CARE CENTRE.
Adult and Health Services,Central/Other,Debtors,930024,Debtor-free nursing care,22-Feb-2017,3248986-2361746,625.00,REDWORTH HOUSE CARE CENTRE.
Adult and Health Services,Central/Other,Debtors,930024,Debtor-free nursing care,22-Feb-2017,3248986-2363750,"2,031.25",REDWORTH HOUSE CARE CENTRE.
Adult and Health Services,Central/Other,Debtors,930024,Debtor-free nursing care,22-Feb-2017,3248987-2360712,607.14,RICHMOND COURT.
Adult and Health Services,Central/Other,Debtors,930024,Debtor-free nursing care,22-Feb-2017,3248987-2360714,625.00,RICHMOND COURT.
Adult and Health Services,Central/Other,Debtors,930024,Debtor-free nursing care,22-Feb-2017,3248987-2360729,625.00,RICHMOND COURT.
Adult and Health Services,Central/Other,Debtors,930024,Debtor-free nursing care,22-Feb-2017,3248987-2360732,625.00,RICHMOND COURT.
Adult and Health Services,Central/Other,Debtors,930024,Debtor-free nursing care,22-Feb-2017,3248987-2360738,625.00,RICHMOND COURT.
Adult and Health Services,Central/Other,Debtors,930024,Debtor-free nursing care,22-Feb-2017,3249000-2361787,625.00,SANDRINGHAM CARE HOME.
Adult and Health Services,Central/Other,Debtors,930024,Debtor-free nursing care,22-Feb-2017,3249000-2361788,625.00,SANDRINGHAM CARE HOME.
Adult and Health Services,Central/Other,Debtors,930024,Debtor-free nursing care,22-Feb-2017,3249000-2361791,892.86,SANDRINGHAM CARE HOME.
Adult and Health Services,Central/Other,Debtors,930024,Debtor-free nursing care,22-Feb-2017,3249000-2361792,625.00,SANDRINGHAM CARE HOME.
Adult and Health Services,Central/Other,Debtors,930024,Debtor-free nursing care,22-Feb-2017,3249000-2361794,625.00,SANDRINGHAM CARE HOME.
Adult and Health Services,Central/Other,Debtors,930024,Debtor-free nursing care,22-Feb-2017,3249000-2361808,625.00,SANDRINGHAM CARE HOME.
Adult and Health Services,Central/Other,Debtors,930024,Debtor-free nursing care,22-Feb-2017,3249000-2361810,625.00,SANDRINGHAM CARE HOME.
Adult and Health Services,Central/Other,Debtors,930024,Debtor-free nursing care,22-Feb-2017,3249000-2361815,625.00,SANDRINGHAM CARE HOME.
Adult and Health Services,Central/Other,Debtors,930024,Debtor-free nursing care,22-Feb-2017,3249000-2361829,625.00,SANDRINGHAM CARE HOME.
Adult and Health Services,Central/Other,Debtors,930024,Debtor-free nursing care,22-Feb-2017,3249000-2361833,625.00,SANDRINGHAM CARE HOME.
Adult and Health Services,Central/Other,Debtors,930024,Debtor-free nursing care,22-Feb-2017,3249000-2361839,625.00,SANDRINGHAM CARE HOME.
Adult and Health Services,Central/Other,Debtors,930024,Debtor-free nursing care,22-Feb-2017,3249000-2361841,625.00,SANDRINGHAM CARE HOME.
Adult and Health Services,Central/Other,Debtors,930024,Debtor-free nursing care,22-Feb-2017,3249000-2361846,625.00,SANDRINGHAM CARE HOME.
Adult and Health Services,Central/Other,Debtors,930024,Debtor-free nursing care,22-Feb-2017,3249000-2361853,625.00,SANDRINGHAM CARE HOME.
Adult and Health Services,Central/Other,Debtors,930024,Debtor-free nursing care,22-Feb-2017,3249000-2361859,625.00,SANDRINGHAM CARE HOME.
Adult and Health Services,Central/Other,Debtors,930024,Debtor-free nursing care,22-Feb-2017,3249000-2361860,625.00,SANDRINGHAM CARE HOME.
Adult and Health Services,Central/Other,Debtors,930024,Debtor-free nursing care,22-Feb-2017,3249000-2361862,625.00,SANDRINGHAM CARE HOME.
Adult and Health Services,Central/Other,Debtors,930024,Debtor-free nursing care,22-Feb-2017,3249000-2361864,625.00,SANDRINGHAM CARE HOME.
Adult and Health Services,Central/Other,Debtors,930024,Debtor-free nursing care,22-Feb-2017,3249000-2361868,625.00,SANDRINGHAM CARE HOME.
Adult and Health Services,Central/Other,Debtors,930024,Debtor-free nursing care,22-Feb-2017,3249016-2361990,625.00,ST AIDENS COTTAGE.
Adult and Health Services,Central/Other,Debtors,930024,Debtor-free nursing care,22-Feb-2017,3249017-2359574,625.00,ST ANDREWS MPS LTD.
Adult and Health Services,Central/Other,Debtors,930024,Debtor-free nursing care,22-Feb-2017,3249017-2359578,625.00,ST ANDREWS MPS LTD.
Adult and Health Services,Central/Other,Debtors,930024,Debtor-free nursing care,22-Feb-2017,3249017-2359583,625.00,ST ANDREWS MPS LTD.
Adult and Health Services,Central/Other,Debtors,930024,Debtor-free nursing care,22-Feb-2017,3249017-2359586,625.00,ST ANDREWS MPS LTD.
Adult and Health Services,Central/Other,Debtors,930024,Debtor-free nursing care,22-Feb-2017,3249017-2359588,625.00,ST ANDREWS MPS LTD.
Adult and Health Services,Central/Other,Debtors,930024,Debtor-free nursing care,22-Feb-2017,3249017-2359593,625.00,ST ANDREWS MPS LTD.
Adult and Health Services,Central/Other,Debtors,930024,Debtor-free nursing care,22-Feb-2017,3249017-2359595,625.00,ST ANDREWS MPS LTD.
Adult and Health Services,Central/Other,Debtors,930024,Debtor-free nursing care,22-Feb-2017,3249021-2359220,625.00,ST HELENS NURSING HOME.
Adult and Health Services,Central/Other,Debtors,930024,Debtor-free nursing care,22-Feb-2017,3249021-2359222,625.00,ST HELENS NURSING HOME.
Adult and Health Services,Central/Other,Debtors,930024,Debtor-free nursing care,22-Feb-2017,3249021-2359226,625.00,ST HELENS NURSING HOME.
Adult and Health Services,Central/Other,Debtors,930024,Debtor-free nursing care,22-Feb-2017,3249021-2359241,625.00,ST HELENS NURSING HOME.
Adult and Health Services,Central/Other,Debtors,930024,Debtor-free nursing care,22-Feb-2017,3249021-2359243,625.00,ST HELENS NURSING HOME.
Adult and Health Services,Central/Other,Debtors,930024,Debtor-free nursing care,22-Feb-2017,3249021-2359244,625.00,ST HELENS NURSING HOME.
Adult and Health Services,Central/Other,Debtors,930024,Debtor-free nursing care,22-Feb-2017,3249023-2361120,625.00,ST MARGARETS NURSING HOME.
Adult and Health Services,Central/Other,Debtors,930024,Debtor-free nursing care,22-Feb-2017,3249023-2361121,625.00,ST MARGARETS NURSING HOME.
Adult and Health Services,Central/Other,Debtors,930024,Debtor-free nursing care,22-Feb-2017,3249023-2361123,625.00,ST MARGARETS NURSING HOME.
Adult and Health Services,Central/Other,Debtors,930024,Debtor-free nursing care,22-Feb-2017,3249023-2361124,625.00,ST MARGARETS NURSING HOME.
Adult and Health Services,Central/Other,Debtors,930024,Debtor-free nursing care,22-Feb-2017,3249023-2361128,625.00,ST MARGARETS NURSING HOME.
Adult and Health Services,Central/Other,Debtors,930024,Debtor-free nursing care,22-Feb-2017,3249023-2361131,625.00,ST MARGARETS NURSING HOME.
Adult and Health Services,Central/Other,Debtors,930024,Debtor-free nursing care,22-Feb-2017,3249023-2361132,625.00,ST MARGARETS NURSING HOME.
Adult and Health Services,Central/Other,Debtors,930024,Debtor-free nursing care,22-Feb-2017,3249023-2361134,625.00,ST MARGARETS NURSING HOME.
Adult and Health Services,Central/Other,Debtors,930024,Debtor-free nursing care,22-Feb-2017,3249023-2361139,625.00,ST MARGARETS NURSING HOME.
Adult and Health Services,Central/Other,Debtors,930024,Debtor-free nursing care,22-Feb-2017,3249023-2361141,625.00,ST MARGARETS NURSING HOME.
Adult and Health Services,Central/Other,Debtors,930024,Debtor-free nursing care,22-Feb-2017,3249023-2361144,625.00,ST MARGARETS NURSING HOME.
Adult and Health Services,Central/Other,Debtors,930024,Debtor-free nursing care,22-Feb-2017,3249023-2361150,625.00,ST MARGARETS NURSING HOME.
Adult and Health Services,Central/Other,Debtors,930024,Debtor-free nursing care,22-Feb-2017,3249023-2361154,625.00,ST MARGARETS NURSING HOME.
Adult and Health Services,Central/Other,Debtors,930024,Debtor-free nursing care,22-Feb-2017,3249023-2361155,625.00,ST MARGARETS NURSING HOME.
Adult and Health Services,Central/Other,Debtors,930024,Debtor-free nursing care,22-Feb-2017,3249023-2361157,625.00,ST MARGARETS NURSING HOME.
Adult and Health Services,Central/Other,Debtors,930024,Debtor-free nursing care,22-Feb-2017,3249023-2361161,625.00,ST MARGARETS NURSING HOME.
Adult and Health Services,Central/Other,Debtors,930024,Debtor-free nursing care,22-Feb-2017,3249027-2359961,625.00,ST MARYS NURSING HOME.
Adult and Health Services,Central/Other,Debtors,930024,Debtor-free nursing care,22-Feb-2017,3249027-2359966,625.00,ST MARYS NURSING HOME.
Adult and Health Services,Central/Other,Debtors,930024,Debtor-free nursing care,22-Feb-2017,3249027-2359968,625.00,ST MARYS NURSING HOME.
Adult and Health Services,Central/Other,Debtors,930024,Debtor-free nursing care,22-Feb-2017,3249027-2359972,625.00,ST MARYS NURSING HOME.
Adult and Health Services,Central/Other,Debtors,930024,Debtor-free nursing care,22-Feb-2017,3249027-2359973,625.00,ST MARYS NURSING HOME.
Adult and Health Services,Central/Other,Debtors,930024,Debtor-free nursing care,22-Feb-2017,3249029-2361916,625.00,STANLEY PARK CARE CENTRE.
Adult and Health Services,Central/Other,Debtors,930024,Debtor-free nursing care,22-Feb-2017,3249029-2361917,625.00,STANLEY PARK CARE CENTRE.
Adult and Health Services,Central/Other,Debtors,930024,Debtor-free nursing care,22-Feb-2017,3249029-2361923,625.00,STANLEY PARK CARE CENTRE.
Adult and Health Services,Central/Other,Debtors,930024,Debtor-free nursing care,22-Feb-2017,3249029-2361927,625.00,STANLEY PARK CARE CENTRE.
Adult and Health Services,Central/Other,Debtors,930024,Debtor-free nursing care,22-Feb-2017,3249029-2361936,625.00,STANLEY PARK CARE CENTRE.
Adult and Health Services,Central/Other,Debtors,930024,Debtor-free nursing care,22-Feb-2017,3249029-2361939,625.00,STANLEY PARK CARE CENTRE.
Adult and Health Services,Central/Other,Debtors,930024,Debtor-free nursing care,22-Feb-2017,3249029-2361940,625.00,STANLEY PARK CARE CENTRE.
Adult and Health Services,Central/Other,Debtors,930024,Debtor-free nursing care,22-Feb-2017,3249029-2361945,625.00,STANLEY PARK CARE CENTRE.
Adult and Health Services,Central/Other,Debtors,930024,Debtor-free nursing care,22-Feb-2017,3249029-2361949,625.00,STANLEY PARK CARE CENTRE.
Adult and Health Services,Central/Other,Debtors,930024,Debtor-free nursing care,22-Feb-2017,3249029-2361956,625.00,STANLEY PARK CARE CENTRE.
Adult and Health Services,Central/Other,Debtors,930024,Debtor-free nursing care,22-Feb-2017,3249029-2361960,625.00,STANLEY PARK CARE CENTRE.
Adult and Health Services,Central/Other,Debtors,930024,Debtor-free nursing care,22-Feb-2017,3249029-2361962,625.00,STANLEY PARK CARE CENTRE.
Adult and Health Services,Central/Other,Debtors,930024,Debtor-free nursing care,22-Feb-2017,3249029-2361971,625.00,STANLEY PARK CARE CENTRE.
Adult and Health Services,Central/Other,Debtors,930024,Debtor-free nursing care,22-Feb-2017,3249029-2361977,625.00,STANLEY PARK CARE CENTRE.
Adult and Health Services,Central/Other,Debtors,930024,Debtor-free nursing care,22-Feb-2017,3249029-2361981,625.00,STANLEY PARK CARE CENTRE.
Adult and Health Services,Central/Other,Debtors,930024,Debtor-free nursing care,22-Feb-2017,3249034-2360444,625.00,TAMARIS HEALTHCARE LTD.
Adult and Health Services,Central/Other,Debtors,930024,Debtor-free nursing care,22-Feb-2017,3249034-2360447,625.00,TAMARIS HEALTHCARE LTD.
Adult and Health Services,Central/Other,Debtors,930024,Debtor-free nursing care,22-Feb-2017,3249034-2360451,625.00,TAMARIS HEALTHCARE LTD.
Adult and Health Services,Central/Other,Debtors,930024,Debtor-free nursing care,22-Feb-2017,3249034-2360455,625.00,TAMARIS HEALTHCARE LTD.
Adult and Health Services,Central/Other,Debtors,930024,Debtor-free nursing care,22-Feb-2017,3249034-2360457,625.00,TAMARIS HEALTHCARE LTD.
Adult and Health Services,Central/Other,Debtors,930024,Debtor-free nursing care,22-Feb-2017,3249034-2360470,625.00,TAMARIS HEALTHCARE LTD.
Adult and Health Services,Central/Other,Debtors,930024,Debtor-free nursing care,22-Feb-2017,3249034-2360489,625.00,TAMARIS HEALTHCARE LTD.
Adult and Health Services,Central/Other,Debtors,930024,Debtor-free nursing care,22-Feb-2017,3249034-2360491,625.00,TAMARIS HEALTHCARE LTD.
Adult and Health Services,Central/Other,Debtors,930024,Debtor-free nursing care,22-Feb-2017,3249034-2360495,625.00,TAMARIS HEALTHCARE LTD.
Adult and Health Services,Central/Other,Debtors,930024,Debtor-free nursing care,22-Feb-2017,3249035-2362475,625.00,TAMARIS HEALTHCARE LTD.
Adult and Health Services,Central/Other,Debtors,930024,Debtor-free nursing care,22-Feb-2017,3249035-2362477,625.00,TAMARIS HEALTHCARE LTD.
Adult and Health Services,Central/Other,Debtors,930024,Debtor-free nursing care,22-Feb-2017,3249035-2362481,758.93,TAMARIS HEALTHCARE LTD.
Adult and Health Services,Central/Other,Debtors,930024,Debtor-free nursing care,22-Feb-2017,3249035-2362487,625.00,TAMARIS HEALTHCARE LTD.
Adult and Health Services,Central/Other,Debtors,930024,Debtor-free nursing care,22-Feb-2017,3249035-2362491,625.00,TAMARIS HEALTHCARE LTD.
Adult and Health Services,Central/Other,Debtors,930024,Debtor-free nursing care,22-Feb-2017,3249035-2362502,625.00,TAMARIS HEALTHCARE LTD.
Adult and Health Services,Central/Other,Debtors,930024,Debtor-free nursing care,22-Feb-2017,3249035-2362504,625.00,TAMARIS HEALTHCARE LTD.
Adult and Health Services,Central/Other,Debtors,930024,Debtor-free nursing care,22-Feb-2017,3249037-2361262,625.00,TAMARIS HEALTHCARE LTD.
Adult and Health Services,Central/Other,Debtors,930024,Debtor-free nursing care,22-Feb-2017,3249037-2361278,625.00,TAMARIS HEALTHCARE LTD.
Adult and Health Services,Central/Other,Debtors,930024,Debtor-free nursing care,22-Feb-2017,3249040-2362612,625.00,TAMARIS HEALTHCARE LTD.
Adult and Health Services,Central/Other,Debtors,930024,Debtor-free nursing care,22-Feb-2017,3249040-2362614,571.43,TAMARIS HEALTHCARE LTD.
Adult and Health Services,Central/Other,Debtors,930024,Debtor-free nursing care,22-Feb-2017,3249040-2362616,625.00,TAMARIS HEALTHCARE LTD.
Adult and Health Services,Central/Other,Debtors,930024,Debtor-free nursing care,22-Feb-2017,3249040-2362620,625.00,TAMARIS HEALTHCARE LTD.
Adult and Health Services,Central/Other,Debtors,930024,Debtor-free nursing care,22-Feb-2017,3249040-2362623,625.00,TAMARIS HEALTHCARE LTD.
Adult and Health Services,Central/Other,Debtors,930024,Debtor-free nursing care,22-Feb-2017,3249040-2362625,625.00,TAMARIS HEALTHCARE LTD.
Adult and Health Services,Central/Other,Debtors,930024,Debtor-free nursing care,22-Feb-2017,3249040-2362628,625.00,TAMARIS HEALTHCARE LTD.
Adult and Health Services,Central/Other,Debtors,930024,Debtor-free nursing care,22-Feb-2017,3249040-2362633,625.00,TAMARIS HEALTHCARE LTD.
Adult and Health Services,Central/Other,Debtors,930024,Debtor-free nursing care,22-Feb-2017,3249040-2362641,625.00,TAMARIS HEALTHCARE LTD.
Adult and Health Services,Central/Other,Debtors,930024,Debtor-free nursing care,22-Feb-2017,3249040-2362645,625.00,TAMARIS HEALTHCARE LTD.
Adult and Health Services,Central/Other,Debtors,930024,Debtor-free nursing care,22-Feb-2017,3249040-2362651,625.00,TAMARIS HEALTHCARE LTD.
Adult and Health Services,Central/Other,Debtors,930024,Debtor-free nursing care,22-Feb-2017,3249040-2362653,625.00,TAMARIS HEALTHCARE LTD.
Adult and Health Services,Central/Other,Debtors,930024,Debtor-free nursing care,22-Feb-2017,3249040-2362656,625.00,TAMARIS HEALTHCARE LTD.
Adult and Health Services,Central/Other,Debtors,930024,Debtor-free nursing care,22-Feb-2017,3249040-2362661,625.00,TAMARIS HEALTHCARE LTD.
Adult and Health Services,Central/Other,Debtors,930024,Debtor-free nursing care,22-Feb-2017,3249040-2362665,625.00,TAMARIS HEALTHCARE LTD.
Adult and Health Services,Central/Other,Debtors,930024,Debtor-free nursing care,22-Feb-2017,3249040-2362669,625.00,TAMARIS HEALTHCARE LTD.
Adult and Health Services,Central/Other,Debtors,930024,Debtor-free nursing care,22-Feb-2017,3249041-2360969,625.00,TAMARIS HEALTHCARE LTD.
Adult and Health Services,Central/Other,Debtors,930024,Debtor-free nursing care,22-Feb-2017,3249041-2360972,625.00,TAMARIS HEALTHCARE LTD.
Adult and Health Services,Central/Other,Debtors,930024,Debtor-free nursing care,22-Feb-2017,3249041-2360977,625.00,TAMARIS HEALTHCARE LTD.
Adult and Health Services,Central/Other,Debtors,930024,Debtor-free nursing care,22-Feb-2017,3249041-2360979,"2,254.46",TAMARIS HEALTHCARE LTD.
Adult and Health Services,Central/Other,Debtors,930024,Debtor-free nursing care,22-Feb-2017,3249041-2360988,625.00,TAMARIS HEALTHCARE LTD.
Adult and Health Services,Central/Other,Debtors,930024,Debtor-free nursing care,22-Feb-2017,3249041-2361008,625.00,TAMARIS HEALTHCARE LTD.
Adult and Health Services,Central/Other,Debtors,930024,Debtor-free nursing care,22-Feb-2017,3249041-2361013,625.00,TAMARIS HEALTHCARE LTD.
Adult and Health Services,Central/Other,Debtors,930024,Debtor-free nursing care,22-Feb-2017,3249041-2361018,625.00,TAMARIS HEALTHCARE LTD.
Adult and Health Services,Central/Other,Debtors,930024,Debtor-free nursing care,22-Feb-2017,3249041-2361020,625.00,TAMARIS HEALTHCARE LTD.
Adult and Health Services,Central/Other,Debtors,930024,Debtor-free nursing care,22-Feb-2017,3249041-2361027,625.00,TAMARIS HEALTHCARE LTD.
Adult and Health Services,Central/Other,Debtors,930024,Debtor-free nursing care,22-Feb-2017,3249041-2361031,625.00,TAMARIS HEALTHCARE LTD.
Adult and Health Services,Central/Other,Debtors,930024,Debtor-free nursing care,22-Feb-2017,3249041-2361033,625.00,TAMARIS HEALTHCARE LTD.
Adult and Health Services,Central/Other,Debtors,930024,Debtor-free nursing care,22-Feb-2017,3249041-2361035,625.00,TAMARIS HEALTHCARE LTD.
Adult and Health Services,Central/Other,Debtors,930024,Debtor-free nursing care,22-Feb-2017,3249041-2361038,625.00,TAMARIS HEALTHCARE LTD.
Adult and Health Services,Central/Other,Debtors,930024,Debtor-free nursing care,22-Feb-2017,3249041-2363725,"1,852.68",TAMARIS HEALTHCARE LTD.
Adult and Health Services,Central/Other,Debtors,930024,Debtor-free nursing care,22-Feb-2017,3249042-2360646,625.00,TAMARIS HEALTHCARE LTD.
Adult and Health Services,Central/Other,Debtors,930024,Debtor-free nursing care,22-Feb-2017,3249042-2360656,625.00,TAMARIS HEALTHCARE LTD.
Adult and Health Services,Central/Other,Debtors,930024,Debtor-free nursing care,22-Feb-2017,3249042-2360663,625.00,TAMARIS HEALTHCARE LTD.
Adult and Health Services,Central/Other,Debtors,930024,Debtor-free nursing care,22-Feb-2017,3249042-2360665,625.00,TAMARIS HEALTHCARE LTD.
Adult and Health Services,Central/Other,Debtors,930024,Debtor-free nursing care,22-Feb-2017,3249042-2360670,625.00,TAMARIS HEALTHCARE LTD.
Adult and Health Services,Central/Other,Debtors,930024,Debtor-free nursing care,22-Feb-2017,3249042-2360672,625.00,TAMARIS HEALTHCARE LTD.
Adult and Health Services,Central/Other,Debtors,930024,Debtor-free nursing care,22-Feb-2017,3249042-2360674,625.00,TAMARIS HEALTHCARE LTD.
Adult and Health Services,Central/Other,Debtors,930024,Debtor-free nursing care,22-Feb-2017,3249042-2360676,625.00,TAMARIS HEALTHCARE LTD.
Adult and Health Services,Central/Other,Debtors,930024,Debtor-free nursing care,22-Feb-2017,3249042-2360678,625.00,TAMARIS HEALTHCARE LTD.
Adult and Health Services,Central/Other,Debtors,930024,Debtor-free nursing care,22-Feb-2017,3249042-2360681,625.00,TAMARIS HEALTHCARE LTD.
Adult and Health Services,Central/Other,Debtors,930024,Debtor-free nursing care,22-Feb-2017,3249044-2359294,625.00,TENLANDS NURSING HOME.
Adult and Health Services,Central/Other,Debtors,930024,Debtor-free nursing care,22-Feb-2017,3249044-2359302,602.68,TENLANDS NURSING HOME.
Adult and Health Services,Central/Other,Debtors,930024,Debtor-free nursing care,22-Feb-2017,3249044-2359314,625.00,TENLANDS NURSING HOME.
Adult and Health Services,Central/Other,Debtors,930024,Debtor-free nursing care,22-Feb-2017,3249044-2359318,625.00,TENLANDS NURSING HOME.
Adult and Health Services,Central/Other,Debtors,930024,Debtor-free nursing care,22-Feb-2017,3249044-2359324,625.00,TENLANDS NURSING HOME.
Adult and Health Services,Central/Other,Debtors,930024,Debtor-free nursing care,22-Feb-2017,3249044-2359326,625.00,TENLANDS NURSING HOME.
Adult and Health Services,Central/Other,Debtors,930024,Debtor-free nursing care,22-Feb-2017,3249044-2359328,625.00,TENLANDS NURSING HOME.
Adult and Health Services,Central/Other,Debtors,930024,Debtor-free nursing care,22-Feb-2017,3249044-2359333,625.00,TENLANDS NURSING HOME.
Adult and Health Services,Central/Other,Debtors,930024,Debtor-free nursing care,22-Feb-2017,3249044-2359335,625.00,TENLANDS NURSING HOME.
Adult and Health Services,Central/Other,Debtors,930024,Debtor-free nursing care,22-Feb-2017,3249044-2359337,625.00,TENLANDS NURSING HOME.
Adult and Health Services,Central/Other,Debtors,930024,Debtor-free nursing care,22-Feb-2017,3249045-2359865,625.00,THE BEECHES.
Adult and Health Services,Central/Other,Debtors,930024,Debtor-free nursing care,22-Feb-2017,3249046-2359388,625.00,THE COUNTY DURHAM CHESHIRE HOME.
Adult and Health Services,Central/Other,Debtors,930024,Debtor-free nursing care,22-Feb-2017,3249046-2359390,625.00,THE COUNTY DURHAM CHESHIRE HOME.
Adult and Health Services,Central/Other,Debtors,930024,Debtor-free nursing care,22-Feb-2017,3249046-2359392,625.00,THE COUNTY DURHAM CHESHIRE HOME.
Adult and Health Services,Central/Other,Debtors,930024,Debtor-free nursing care,22-Feb-2017,3249046-2359394,625.00,THE COUNTY DURHAM CHESHIRE HOME.
Adult and Health Services,Central/Other,Debtors,930024,Debtor-free nursing care,22-Feb-2017,3249046-2359399,625.00,THE COUNTY DURHAM CHESHIRE HOME.
Adult and Health Services,Central/Other,Debtors,930024,Debtor-free nursing care,22-Feb-2017,3249046-2359401,625.00,THE COUNTY DURHAM CHESHIRE HOME.
Adult and Health Services,Central/Other,Debtors,930024,Debtor-free nursing care,22-Feb-2017,3249046-2359406,625.00,THE COUNTY DURHAM CHESHIRE HOME.
Adult and Health Services,Central/Other,Debtors,930024,Debtor-free nursing care,22-Feb-2017,3249046-2359407,625.00,THE COUNTY DURHAM CHESHIRE HOME.
Adult and Health Services,Central/Other,Debtors,930024,Debtor-free nursing care,22-Feb-2017,3249046-2359408,625.00,THE COUNTY DURHAM CHESHIRE HOME.
Adult and Health Services,Central/Other,Debtors,930024,Debtor-free nursing care,22-Feb-2017,3249051-2361632,625.00,THORNFIELD GRANGE.
Adult and Health Services,Central/Other,Debtors,930024,Debtor-free nursing care,22-Feb-2017,3249051-2361636,625.00,THORNFIELD GRANGE.
Adult and Health Services,Central/Other,Debtors,930024,Debtor-free nursing care,22-Feb-2017,3249059-2360170,625.00,VILLAGE NURSING HOME.
Adult and Health Services,Central/Other,Debtors,930024,Debtor-free nursing care,22-Feb-2017,3249059-2360173,625.00,VILLAGE NURSING HOME.
Adult and Health Services,Central/Other,Debtors,930024,Debtor-free nursing care,22-Feb-2017,3249059-2360175,625.00,VILLAGE NURSING HOME.
Adult and Health Services,Central/Other,Debtors,930024,Debtor-free nursing care,22-Feb-2017,3249059-2360176,625.00,VILLAGE NURSING HOME.
Adult and Health Services,Central/Other,Debtors,930024,Debtor-free nursing care,22-Feb-2017,3249059-2360178,625.00,VILLAGE NURSING HOME.
Adult and Health Services,Central/Other,Debtors,930024,Debtor-free nursing care,22-Feb-2017,3249059-2360181,625.00,VILLAGE NURSING HOME.
Adult and Health Services,Central/Other,Debtors,930024,Debtor-free nursing care,22-Feb-2017,3249059-2360187,625.00,VILLAGE NURSING HOME.
Adult and Health Services,Central/Other,Debtors,930024,Debtor-free nursing care,22-Feb-2017,3249059-2360189,625.00,VILLAGE NURSING HOME.
Adult and Health Services,Central/Other,Debtors,930024,Debtor-free nursing care,22-Feb-2017,3249059-2360192,625.00,VILLAGE NURSING HOME.
Adult and Health Services,Central/Other,Debtors,930024,Debtor-free nursing care,22-Feb-2017,3249059-2360194,625.00,VILLAGE NURSING HOME.
Adult and Health Services,Central/Other,Debtors,930024,Debtor-free nursing care,22-Feb-2017,3249059-2360197,625.00,VILLAGE NURSING HOME.
Adult and Health Services,Central/Other,Debtors,930024,Debtor-free nursing care,22-Feb-2017,3249059-2360200,625.00,VILLAGE NURSING HOME.
Adult and Health Services,Central/Other,Debtors,930024,Debtor-free nursing care,22-Feb-2017,3249059-2360203,625.00,VILLAGE NURSING HOME.
Adult and Health Services,Central/Other,Debtors,930024,Debtor-free nursing care,22-Feb-2017,3249059-2360206,625.00,VILLAGE NURSING HOME.
Adult and Health Services,Central/Other,Debtors,930024,Debtor-free nursing care,22-Feb-2017,3249069-2359980,625.00,WEST HOUSE CARE HOME.
Adult and Health Services,Central/Other,Debtors,930024,Debtor-free nursing care,22-Feb-2017,3249069-2359981,625.00,WEST HOUSE CARE HOME.
Adult and Health Services,Central/Other,Debtors,930024,Debtor-free nursing care,22-Feb-2017,3249069-2359983,625.00,WEST HOUSE CARE HOME.
Adult and Health Services,Central/Other,Debtors,930024,Debtor-free nursing care,22-Feb-2017,3249069-2359990,625.00,WEST HOUSE CARE HOME.
Adult and Health Services,Central/Other,Debtors,930024,Debtor-free nursing care,22-Feb-2017,3249069-2359992,625.00,WEST HOUSE CARE HOME.
Adult and Health Services,Central/Other,Debtors,930024,Debtor-free nursing care,22-Feb-2017,3249069-2359994,625.00,WEST HOUSE CARE HOME.
Adult and Health Services,Central/Other,Debtors,930024,Debtor-free nursing care,22-Feb-2017,3249069-2359998,625.00,WEST HOUSE CARE HOME.
Adult and Health Services,Central/Other,Debtors,930024,Debtor-free nursing care,22-Feb-2017,3249070-2359344,625.00,WEST LODGE HOMES.
Adult and Health Services,Central/Other,Debtors,930024,Debtor-free nursing care,22-Feb-2017,3249070-2359348,625.00,WEST LODGE HOMES.
Adult and Health Services,Central/Other,Debtors,930024,Debtor-free nursing care,22-Feb-2017,3249070-2359350,625.00,WEST LODGE HOMES.
Adult and Health Services,Central/Other,Debtors,930024,Debtor-free nursing care,22-Feb-2017,3249070-2359357,625.00,WEST LODGE HOMES.
Adult and Health Services,Central/Other,Debtors,930024,Debtor-free nursing care,22-Feb-2017,3249070-2359362,625.00,WEST LODGE HOMES.
Adult and Health Services,Central/Other,Debtors,930024,Debtor-free nursing care,22-Feb-2017,3249070-2359366,625.00,WEST LODGE HOMES.
Adult and Health Services,Central/Other,Debtors,930024,Debtor-free nursing care,22-Feb-2017,3249070-2359370,625.00,WEST LODGE HOMES.
Adult and Health Services,Central/Other,Debtors,930024,Debtor-free nursing care,22-Feb-2017,3249070-2359372,625.00,WEST LODGE HOMES.
Adult and Health Services,Central/Other,Debtors,930024,Debtor-free nursing care,22-Feb-2017,3249070-2359374,625.00,WEST LODGE HOMES.
Adult and Health Services,Central/Other,Debtors,930024,Debtor-free nursing care,22-Feb-2017,3249070-2359378,625.00,WEST LODGE HOMES.
Adult and Health Services,Central/Other,Debtors,930024,Debtor-free nursing care,22-Feb-2017,3249070-2359380,625.00,WEST LODGE HOMES.
Adult and Health Services,Central/Other,Debtors,930024,Debtor-free nursing care,22-Feb-2017,3249070-2359383,625.00,WEST LODGE HOMES.
Adult and Health Services,Central/Other,Debtors,930024,Debtor-free nursing care,22-Feb-2017,3249070-2359384,625.00,WEST LODGE HOMES.
Adult and Health Services,Central/Other,Debtors,930024,Debtor-free nursing care,22-Feb-2017,3249070-2363864,513.39,WEST LODGE HOMES.
Adult and Health Services,Central/Other,Debtors,930024,Debtor-free nursing care,22-Feb-2017,3249074-2360208,625.00,YOHDEN HALL NURSING HOME.
Adult and Health Services,Central/Other,Debtors,930024,Debtor-free nursing care,22-Feb-2017,3249074-2360213,625.00,YOHDEN HALL NURSING HOME.
Adult and Health Services,Central/Other,Debtors,930024,Debtor-free nursing care,22-Feb-2017,3249074-2360215,625.00,YOHDEN HALL NURSING HOME.
Adult and Health Services,Central/Other,Debtors,930024,Debtor-free nursing care,22-Feb-2017,3249074-2360217,625.00,YOHDEN HALL NURSING HOME.
Adult and Health Services,Central/Other,Debtors,930024,Debtor-free nursing care,22-Feb-2017,3249074-2360218,625.00,YOHDEN HALL NURSING HOME.
Adult and Health Services,Central/Other,Debtors,930024,Debtor-free nursing care,22-Feb-2017,3249074-2360224,625.00,YOHDEN HALL NURSING HOME.
Adult and Health Services,Central/Other,Debtors,930024,Debtor-free nursing care,22-Feb-2017,3249074-2360227,625.00,YOHDEN HALL NURSING HOME.
Adult and Health Services,Central/Other,Debtors,930024,Debtor-free nursing care,22-Feb-2017,3249074-2360229,625.00,YOHDEN HALL NURSING HOME.
Adult and Health Services,Central/Other,Debtors,930024,Debtor-free nursing care,22-Feb-2017,3249074-2360230,625.00,YOHDEN HALL NURSING HOME.
Adult and Health Services,Central/Other,Debtors,930024,Debtor-free nursing care,22-Feb-2017,3249074-2360231,625.00,YOHDEN HALL NURSING HOME.
Adult and Health Services,Central/Other,Debtors,930024,Debtor-free nursing care,22-Feb-2017,3249074-2360233,625.00,YOHDEN HALL NURSING HOME.
Adult and Health Services,Central/Other,Debtors,930024,Debtor-free nursing care,22-Feb-2017,3249074-2360240,625.00,YOHDEN HALL NURSING HOME.
Adult and Health Services,Central/Other,Debtors,930024,Debtor-free nursing care,22-Feb-2017,3249074-2360243,625.00,YOHDEN HALL NURSING HOME.
Adult and Health Services,Central/Other,Debtors,930024,Debtor-free nursing care,22-Feb-2017,3249075-2359744,625.00,YOHDEN LODGE CARE HOME.
Adult and Health Services,Central/Other,Debtors,930024,Debtor-free nursing care,22-Feb-2017,3249075-2359754,625.00,YOHDEN LODGE CARE HOME.
Adult and Health Services,Central/Other,Debtors,930024,Debtor-free nursing care,22-Feb-2017,3249075-2359757,625.00,YOHDEN LODGE CARE HOME.
Adult and Health Services,Central/Other,Debtors,930024,Debtor-free nursing care,22-Feb-2017,3249075-2359760,625.00,YOHDEN LODGE CARE HOME.
Adult and Health Services,Central/Other,Employees,080025,Agency Staff,24-Feb-2017,3249783-1000013,"126,557.91",DE POEL MANAGED SERVICES LTD.
Adult and Health Services,Central/Other,Debtors,930133,Debtor IC+ Out of Hours - Home Care,28-Feb-2017,3250642-D0033,"8,333.33",HOMECARE SUPPORT LTD T/A THE HUMAN SUPPORT GROUP.
Adult and Health Services,Commissioning inc Supporting People,Supplies and Services,338066,Services,02-Feb-2017,3239539-137673,"9,758.80",NORTHUMBERLAND COUNTY COUNCIL.
Adult and Health Services,Commissioning inc Supporting People,Third Party Payments,479111,Purchase of Care,03-Feb-2017,3239852-102081332,"3,001.09",GATESHEAD COUNCIL.
Adult and Health Services,Commissioning inc Supporting People,Transport,240045,Car Allowances,06-Feb-2017,3240402-6752,"7,722.96",SUPPORTIVE SRC LTD.
Adult and Health Services,Commissioning inc Supporting People,Premises,145050,Cleaning and Domestic Supplies,07-Feb-2017,3241173-12/01/2017,"11,049.15",ANLABY OFFICE CLEANING SERVICES LTD.
Adult and Health Services,Commissioning inc Supporting People,Third Party Payments,473111,Purchase of Care,08-Feb-2017,3241552-D/OP42QUARTER4,"4,194.50",ASSOCIATION OF TEESDALE DAY CLUBS.
Adult and Health Services,Commissioning inc Supporting People,Third Party Payments,440051,Other Third Party Payments,08-Feb-2017,3241667-DEC16,"3,841.67",DERIC YOUTH BUS PROJECT.
Adult and Health Services,Commissioning inc Supporting People,Third Party Payments,479111,Purchase of Care,10-Feb-2017,3242529-SIN003870,"10,000.00",ACTION FOR BLIND PEOPLE.
Adult and Health Services,Commissioning inc Supporting People,Third Party Payments,479111,Purchase of Care,13-Feb-2017,3243001-2988,"5,280.65",CARERS FEDERATION LTD.
Adult and Health Services,Commissioning inc Supporting People,Third Party Payments,479111,Purchase of Care,14-Feb-2017,3244223-CES022,"2,833.33",HOMECARE SUPPORT LTD T/A THE HUMAN SUPPORT GROUP.
Adult and Health Services,Commissioning inc Supporting People,Third Party Payments,442002,Supporting People,15-Feb-2017,3244430-1965945,"16,448.04",BID SERVICES WITH DEAF PEOPLE.
Adult and Health Services,Commissioning inc Supporting People,Third Party Payments,442002,Supporting People,15-Feb-2017,3244463-1965952,"3,452.04",CHILDREN NORTH EAST.
Adult and Health Services,Commissioning inc Supporting People,Third Party Payments,442002,Supporting People,15-Feb-2017,3244492-1965899,"19,868.48",CREATIVE SUPPORT LTD.
Adult and Health Services,Commissioning inc Supporting People,Third Party Payments,442002,Supporting People,15-Feb-2017,3244507-1965898,"5,668.48",DISC LTD.
Adult and Health Services,Commissioning inc Supporting People,Third Party Payments,442002,Supporting People,15-Feb-2017,3244507-1965969,"27,885.68",DISC LTD.
Adult and Health Services,Commissioning inc Supporting People,Third Party Payments,441001,Supporting People,15-Feb-2017,3244517-1965920,"20,819.76",DURHAM ACTION ON SINGLE HOUSING.
Adult and Health Services,Commissioning inc Supporting People,Third Party Payments,443001,Supporting People,15-Feb-2017,3244517-1965921,"2,213.88",DURHAM ACTION ON SINGLE HOUSING.
Adult and Health Services,Commissioning inc Supporting People,Third Party Payments,443001,Supporting People,15-Feb-2017,3244517-1965924,"3,531.66",DURHAM ACTION ON SINGLE HOUSING.
Adult and Health Services,Commissioning inc Supporting People,Third Party Payments,441001,Supporting People,15-Feb-2017,3244526-1965941,"5,483.40",EAST DURHAM COMMUNITY INITIATIVES LTD.
Adult and Health Services,Commissioning inc Supporting People,Third Party Payments,442002,Supporting People,15-Feb-2017,3244548-1965967,"28,981.92",FOUNDATION.
Adult and Health Services,Commissioning inc Supporting People,Third Party Payments,442002,Supporting People,15-Feb-2017,3244549-1965919,"37,566.04",FOUR HOUSING GROUP & CARE & REPAIR HANDYPERSON SERVICE.*
Adult and Health Services,Commissioning inc Supporting People,Third Party Payments,479111,Purchase of Care,15-Feb-2017,3244559-102082231,600.22,GATESHEAD COUNCIL.
Adult and Health Services,Commissioning inc Supporting People,Third Party Payments,442002,Supporting People,15-Feb-2017,3244573-1965942,"5,995.44",HANOVER HOUSING ASSOCIATION.
Adult and Health Services,Commissioning inc Supporting People,Third Party Payments,441001,Supporting People,15-Feb-2017,3244574-1965900,"18,082.80",HARBOUR SUPPORT SERVICES.
Adult and Health Services,Commissioning inc Supporting People,Third Party Payments,442002,Supporting People,15-Feb-2017,3244640-1965901,"5,469.72",MENTAL HEALTH MATTERS.
Adult and Health Services,Commissioning inc Supporting People,Third Party Payments,479111,Purchase of Care,15-Feb-2017,3244640-555/04959,"15,053.00",MENTAL HEALTH MATTERS.
Adult and Health Services,Commissioning inc Supporting People,Third Party Payments,442002,Supporting People,15-Feb-2017,3244653-1965902,"5,240.36",MOVING ON.
Adult and Health Services,Commissioning inc Supporting People,Third Party Payments,479102,Purchase of Care,15-Feb-2017,3244734-12549,"5,051.00",RETHINK MENTAL ILLNESS.
Adult and Health Services,Commissioning inc Supporting People,Third Party Payments,442002,Supporting People,15-Feb-2017,3244735-1965905,"7,356.72",RICHMOND FELLOWSHIP.
Adult and Health Services,Commissioning inc Supporting People,Third Party Payments,444002,Supporting People,15-Feb-2017,3244735-1965906,"4,068.24",RICHMOND FELLOWSHIP.
Adult and Health Services,Commissioning inc Supporting People,Third Party Payments,441001,Supporting People,15-Feb-2017,3244735-1965918,"9,423.88",RICHMOND FELLOWSHIP.
Adult and Health Services,Commissioning inc Supporting People,Third Party Payments,442002,Supporting People,15-Feb-2017,3244759-1965970,"9,044.36",SHAID.
Adult and Health Services,Commissioning inc Supporting People,Third Party Payments,479111,Purchase of Care,15-Feb-2017,3244770-2334,"15,496.62",SKILLS FOR PEOPLE.
Adult and Health Services,Commissioning inc Supporting People,Third Party Payments,442002,Supporting People,15-Feb-2017,3244788-1965895,"145,778.32",STONHAM HOUSING ASSOCIATION LTD.
Adult and Health Services,Commissioning inc Supporting People,Third Party Payments,442002,Supporting People,15-Feb-2017,3244788-1965904,"29,343.52",STONHAM HOUSING ASSOCIATION LTD.
Adult and Health Services,Commissioning inc Supporting People,Third Party Payments,443001,Supporting People,15-Feb-2017,3244788-1965928,545.84,STONHAM HOUSING ASSOCIATION LTD.
Adult and Health Services,Commissioning inc Supporting People,Third Party Payments,442002,Supporting People,15-Feb-2017,3244788-1965948,"32,512.30",STONHAM HOUSING ASSOCIATION LTD.
Adult and Health Services,Commissioning inc Supporting People,Third Party Payments,441001,Supporting People,15-Feb-2017,3244788-1965954,"67,257.36",STONHAM HOUSING ASSOCIATION LTD.
Adult and Health Services,Commissioning inc Supporting People,Third Party Payments,443001,Supporting People,15-Feb-2017,3244788-1965955,"12,239.28",STONHAM HOUSING ASSOCIATION LTD.
Adult and Health Services,Commissioning inc Supporting People,Third Party Payments,441001,Supporting People,15-Feb-2017,3244788-1965974,"23,431.76",STONHAM HOUSING ASSOCIATION LTD.
Adult and Health Services,Commissioning inc Supporting People,Third Party Payments,443001,Supporting People,15-Feb-2017,3244788-1965984,"2,624.67",STONHAM HOUSING ASSOCIATION LTD.
Adult and Health Services,Commissioning inc Supporting People,Third Party Payments,441001,Supporting People,15-Feb-2017,3244809-1965946,"19,231.20",THE CYRENIANS LTD T/A CHANGING LIVES.
Adult and Health Services,Commissioning inc Supporting People,Third Party Payments,441001,Supporting People,15-Feb-2017,3244817-1965949,"23,518.04",THIRTEEN CARE & SUPPORT.
Adult and Health Services,Commissioning inc Supporting People,Third Party Payments,441001,Supporting People,15-Feb-2017,3244817-1965953,"7,510.04",THIRTEEN CARE & SUPPORT.
Adult and Health Services,Commissioning inc Supporting People,Third Party Payments,442002,Supporting People,15-Feb-2017,3244817-1965959,"9,289.44",THIRTEEN CARE & SUPPORT.
Adult and Health Services,Commissioning inc Supporting People,Third Party Payments,442002,Supporting People,15-Feb-2017,3244817-1965961,"1,519.52",THIRTEEN CARE & SUPPORT.
Adult and Health Services,Commissioning inc Supporting People,Third Party Payments,441001,Supporting People,15-Feb-2017,3244817-1965962,"7,776.68",THIRTEEN CARE & SUPPORT.
Adult and Health Services,Commissioning inc Supporting People,Third Party Payments,441001,Supporting People,15-Feb-2017,3244845-1965943,"2,367.20",WADDINGTON STREET CENTRE LTD.
Adult and Health Services,Commissioning inc Supporting People,Third Party Payments,441001,Supporting People,15-Feb-2017,3244849-1965903,"7,157.00",WEAR VALLEY WOMENS AID.
Adult and Health Services,Commissioning inc Supporting People,Third Party Payments,479111,Purchase of Care,17-Feb-2017,3245357-SIN004563,"10,000.00",ACTION FOR BLIND PEOPLE.
Adult and Health Services,Commissioning inc Supporting People,Third Party Payments,479111,Purchase of Care,17-Feb-2017,3245518-CES021,"2,833.33",HOMECARE SUPPORT LTD T/A THE HUMAN SUPPORT GROUP.
Adult and Health Services,Commissioning inc Supporting People,Third Party Payments,470111,Purchase of Care,17-Feb-2017,3245559-RINVTP/00429315,"4,128.14",LEONARD CHESHIRE DISABILITY.
Adult and Health Services,Commissioning inc Supporting People,Third Party Payments,470111,Purchase of Care,20-Feb-2017,3246021-RINVTP/00429305,"4,128.14",LEONARD CHESHIRE DISABILITY.
Adult and Health Services,Commissioning inc Supporting People,Third Party Payments,472113,Purchase of Care,21-Feb-2017,3247732-1690465H,"1,651.12",DALE CARE LTD.
Adult and Health Services,Commissioning inc Supporting People,Third Party Payments,479101,Purchase of Care,22-Feb-2017,3248563-7753,"11,583.33",MAIN - TAKING AUTISM PERSONALLY.
Adult and Health Services,Commissioning inc Supporting People,Supplies and Services,338076,Services,27-Feb-2017,3250325-0902016,722.20,INVESTING IN CHILDREN CIC.
Adult and Health Services,EnvironmentHealth & Consumer Protection,Supplies and Services,338099,Services,01-Feb-2017,306147-104639,810.00,MR RICHARD BENNETT.
Adult and Health Services,EnvironmentHealth & Consumer Protection,Supplies and Services,384918,Miscellaneous Expenses,07-Feb-2017,3241402-RES-12-2016-061,"2,739.65",REDACTED - PAYMENT TO INDIVIDUAL
Adult and Health Services,EnvironmentHealth & Consumer Protection,Supplies and Services,338027,Services,13-Feb-2017,3243110-0000011342,"5,000.00",GROUNDWORK NORTH EAST.
Adult and Health Services,EnvironmentHealth & Consumer Protection,Income,720330,Fees and Charges,13-Feb-2017,3243367-18497,"2,122.01",VIP SYSTEM LTD.
Adult and Health Services,EnvironmentHealth & Consumer Protection,Supplies and Services,304999,Equipment and Materials,20-Feb-2017,3246139-6167142,"3,300.00",RICARDO AEA LTD.
Adult and Health Services,EnvironmentHealth & Consumer Protection,Supplies and Services,304999,Equipment and Materials,20-Feb-2017,3246150-3106039144,765.00,SARTORIUS MECHATRONICS UK LTD.
Adult and Health Services,EnvironmentHealth & Consumer Protection,Third Party Payments,430100,Rendered by Private Contractors,22-Feb-2017,3248635-IN-17-WP-000046,970.00,PUBLIC ANALYST SCIENTIFIC SERVICES LTD.
Adult and Health Services,EnvironmentHealth & Consumer Protection,Supplies and Services,304999,Equipment and Materials,24-Feb-2017,3249737-2228,"5,857.00",CATHEDRAL LOCK & SAFE SERVICES LTD.
Adult and Health Services,EnvironmentHealth & Consumer Protection,Supplies and Services,332001,Printing Stationery and Gen Off Exps,27-Feb-2017,3250419-0000122751,733.83,ONLINE ERGONOMICS LTD.
Adult and Health Services,Head of Adults,Transport,230005,Contract Hire,15-Feb-2017,306224-5,600.00,BENNETTS TAXIS.
Adult and Health Services,Head of Adults,Supplies and Services,338045,Services,15-Feb-2017,306249-1019548JAN17,"1,350.00",MJO
Adult and Health Services,Head of Adults,Supplies and Services,338045,Services,15-Feb-2017,306249-935339,"1,350.00",MJO
Adult and Health Services,Head of Adults,Supplies and Services,338367,Services,01-Feb-2017,3238804-37693,630.00,CARE ABILITY.
Adult and Health Services,Head of Adults,Supplies and Services,308011,Furniture,01-Feb-2017,3238924-582694,772.00,GK DECORATING.
Adult and Health Services,Head of Adults,Supplies and Services,338370,Services,02-Feb-2017,3239306-92201,"1,040.00",AIDSERVICE LTD.
Adult and Health Services,Head of Adults,Transport,230005,Contract Hire,02-Feb-2017,3239502-590117,"1,365.00",MARK MUSGROVE T/A MARKS TAXIS.
Adult and Health Services,Head of Adults,Supplies and Services,308011,Furniture,02-Feb-2017,3239533-1081542/P,"3,170.00",NEVILLE LANGLEY PAINTER AND DECORATOR.
Adult and Health Services,Head of Adults,Transport,230009,Contract Hire,02-Feb-2017,3239558-0508,924.00,PETER`S PRIVATE HIRE/PETER BEST.
Adult and Health Services,Head of Adults,Third Party Payments,478151,Purchase of Care,02-Feb-2017,3239583-SI/00012859,"5,577.00",RICHMOND FELLOWSHIP.
Adult and Health Services,Head of Adults,Transport,230005,Contract Hire,02-Feb-2017,3239588-17,"1,050.50",ROUTE 1.
Adult and Health Services,Head of Adults,Transport,230005,Contract Hire,03-Feb-2017,3239689-11709,720.00,24/7 TAXI SERVICES LTD.
Adult and Health Services,Head of Adults,Transport,230005,Contract Hire,03-Feb-2017,3239705-0017A,"1,584.00",AIRPORT TAXIS 4U.
Adult and Health Services,Head of Adults,Transport,230005,Contract Hire,03-Feb-2017,3239730-13,554.00,AXLE TAXIS.
Adult and Health Services,Head of Adults,Third Party Payments,478151,Purchase of Care,03-Feb-2017,3239772-421R117261,"2,103.86",COMMUNITY INTEGRATED CARE LTD.
Adult and Health Services,Head of Adults,Third Party Payments,478151,Purchase of Care,03-Feb-2017,3239772-421R118119,"1,005.49",COMMUNITY INTEGRATED CARE LTD.
Adult and Health Services,Head of Adults,Third Party Payments,478151,Purchase of Care,03-Feb-2017,3239772-421R118870,"1,072.96",COMMUNITY INTEGRATED CARE LTD.
Adult and Health Services,Head of Adults,Transport,230005,Contract Hire,03-Feb-2017,3239868-DW108/JAN17,"1,260.00",HIPPY`S TAXI.
Adult and Health Services,Head of Adults,Supplies and Services,338045,Services,03-Feb-2017,3239876-229,"1,325.10",INDEPENDENT PSYCHIATRIC REPORTS LTD.
Adult and Health Services,Head of Adults,Transport,230005,Contract Hire,03-Feb-2017,3239892-1050,"1,290.45",JDS PRIVATE HIRE DURHAM.
Adult and Health Services,Head of Adults,Transport,230005,Contract Hire,03-Feb-2017,3239892-1058,880.00,JDS PRIVATE HIRE DURHAM.
Adult and Health Services,Head of Adults,Transport,230005,Contract Hire,03-Feb-2017,3239892-1063,"1,700.50",JDS PRIVATE HIRE DURHAM.
Adult and Health Services,Head of Adults,Transport,230005,Contract Hire,03-Feb-2017,3239900-DM14916,"1,440.00",JOVIAL PRIVATE HIRE.
Adult and Health Services,Head of Adults,Transport,230005,Contract Hire,03-Feb-2017,3239935-MCD36054,880.00,MCDONALD TRAVEL.
Adult and Health Services,Head of Adults,Transport,230005,Contract Hire,03-Feb-2017,3239946-5-DM170-JAN17,750.00,MR BW YOUNG T/A ESH TAXIS.
Adult and Health Services,Head of Adults,Transport,230005,Contract Hire,03-Feb-2017,3239996-DCC128,624.00,PAUL`S TAXIS..
Adult and Health Services,Head of Adults,Third Party Payments,478151,Purchase of Care,03-Feb-2017,3240014-00001998,"8,033.52",POTENSIAL LTD T/A POTENS
Adult and Health Services,Head of Adults,Supplies and Services,338045,Services,03-Feb-2017,3240149-233483,600.00,ZC
Adult and Health Services,Head of Adults,Supplies and Services,338066,Services,03-Feb-2017,3240150-221216-160117,"1,957.91",ZM MEDICAL CONSULTANTS LIMITED.
Adult and Health Services,Head of Adults,Supplies and Services,338366,Services,06-Feb-2017,3240185-37800,"2,106.05",CARE ABILITY.
Adult and Health Services,Head of Adults,Transport,230005,Contract Hire,07-Feb-2017,3241165-NCL0117,935.00,AIRPORT CARS DURHAM
Adult and Health Services,Head of Adults,Transport,230005,Contract Hire,07-Feb-2017,3241280-IR1701003,"1,819.00",I & R EXECUTIVE TRAVEL.
Adult and Health Services,Head of Adults,Supplies and Services,308013,Furniture,07-Feb-2017,3241293-15124,"2,112.00",JEFFREY CARR LTD.
Adult and Health Services,Head of Adults,Transport,230005,Contract Hire,07-Feb-2017,3241338-707,"1,869.00",MOLLYS TAXIS.
Adult and Health Services,Head of Adults,Third Party Payments,478151,Purchase of Care,07-Feb-2017,3241401-SI/00012999,"4,461.60",RICHMOND FELLOWSHIP.
Adult and Health Services,Head of Adults,Transport,230005,Contract Hire,07-Feb-2017,3241439-DCC093/SLD005,"1,659.00",STEPHEN COXON.
Adult and Health Services,Head of Adults,Transport,230005,Contract Hire,07-Feb-2017,3241441-0014,570.00,STEPHEN VALLANCE T/A SELECT CABS.
Adult and Health Services,Head of Adults,Transport,230005,Contract Hire,07-Feb-2017,3241452-B856,"1,516.62",TALBOTS TRAVEL LTD.
Adult and Health Services,Head of Adults,Transport,230005,Contract Hire,07-Feb-2017,3241465-2416,520.00,TRANSPORT.ADVENTURE.XI.
Adult and Health Services,Head of Adults,Transport,230005,Contract Hire,07-Feb-2017,3241469-010,550.00,TRUDY`S.
Adult and Health Services,Head of Adults,Transport,230005,Contract Hire,07-Feb-2017,3241478-5812,"1,459.50",WEARDALE PRIVATE HIRE.
Adult and Health Services,Head of Adults,Transport,230005,Contract Hire,08-Feb-2017,3241871-SLD010117,630.00,MR D DONNELLY.
Adult and Health Services,Head of Adults,Transport,230005,Contract Hire,08-Feb-2017,3242072-1091,"1,260.00",WAYNE`S TAXIS.
Adult and Health Services,Head of Adults,Transport,230005,Contract Hire,09-Feb-2017,3242132-DCC6JAN17,"3,459.75",ATLAS TAXIS BISHOP AUCKLAND.
Adult and Health Services,Head of Adults,Transport,230005,Contract Hire,09-Feb-2017,3242150-1326-1/2/17,"1,050.00",BOBBY DOVE.
Adult and Health Services,Head of Adults,Supplies and Services,308011,Furniture,09-Feb-2017,3242160-2STKS14/9/16,630.00,CHS
Adult and Health Services,Head of Adults,Transport,230005,Contract Hire,09-Feb-2017,3242199-96,520.00,D CROOK T/A CK TAXIS.
Adult and Health Services,Head of Adults,Transport,230005,Contract Hire,09-Feb-2017,3242293-107,"1,147.50",KEN CHAMBERS T/A SHILDON TRANSPORT LTD.
Adult and Health Services,Head of Adults,Transport,230005,Contract Hire,09-Feb-2017,3242326-EDB01-17,"1,197.00",MR CT WALKER T/A CW TAXIS.
Adult and Health Services,Head of Adults,Third Party Payments,470101,Purchase of Care,09-Feb-2017,3242373-30558,"16,842.08",PERCY HEDLEY FOUNDATION.
Adult and Health Services,Head of Adults,Third Party Payments,470101,Purchase of Care,09-Feb-2017,3242373-30586,"1,391.08",PERCY HEDLEY FOUNDATION.
Adult and Health Services,Head of Adults,Transport,230005,Contract Hire,09-Feb-2017,3242374-003,990.00,PHILS TAXIS.
Adult and Health Services,Head of Adults,Transport,230005,Contract Hire,09-Feb-2017,3242402-829,"1,344.00",ROAD RUNNERS (NE) LTD.
Adult and Health Services,Head of Adults,Transport,230005,Contract Hire,09-Feb-2017,3242423-72398,"1,785.00",SHOTTON PRIVATE HIRE.
Adult and Health Services,Head of Adults,Transport,230005,Contract Hire,09-Feb-2017,3242431-319A,585.00,SJ MACKENZIE T/A SCOTTS TAXIS.
Adult and Health Services,Head of Adults,Supplies and Services,308013,Furniture,10-Feb-2017,3242566-12374,"1,423.00",BLINDS ETCETERA.
Adult and Health Services,Head of Adults,Income,720045,Fees and Charges,10-Feb-2017,3242570-CAS-02-2017-048,"3,397.43",BURLINGTON CARE LTD T/A THE LAWNS CARE HOME.
Adult and Health Services,Head of Adults,Transport,230005,Contract Hire,10-Feb-2017,3242609-6883,"2,015.76",CROFT BUSINESS SERVICES (UK) LTD T/A CROFT TAXIS.
Adult and Health Services,Head of Adults,Transport,230005,Contract Hire,10-Feb-2017,3242705-DM1475,832.00,JOVIAL PRIVATE HIRE.
Adult and Health Services,Head of Adults,Transport,230005,Contract Hire,10-Feb-2017,3242751-11,"1,400.00",MR JOHN KNIGHTON T/A JK TAXIS.
Adult and Health Services,Head of Adults,Transport,230005,Contract Hire,13-Feb-2017,3242938-22,"1,627.40",A HJ JOBLING T/A CASTLE TAXIS.
Adult and Health Services,Head of Adults,Transport,230005,Contract Hire,13-Feb-2017,3243044-6877,817.31,CROFT BUSINESS SERVICES (UK) LTD T/A CROFT TAXIS.
Adult and Health Services,Head of Adults,Transport,230005,Contract Hire,13-Feb-2017,3243044-6880,503.88,CROFT BUSINESS SERVICES (UK) LTD T/A CROFT TAXIS.
Adult and Health Services,Head of Adults,Transport,230005,Contract Hire,13-Feb-2017,3243044-6881,"1,992.27",CROFT BUSINESS SERVICES (UK) LTD T/A CROFT TAXIS.
Adult and Health Services,Head of Adults,Third Party Payments,478151,Purchase of Care,13-Feb-2017,3243083-9837,"1,943.92",ESSENTIAL CARE & SUPPORT LTD.
Adult and Health Services,Head of Adults,Third Party Payments,478151,Purchase of Care,13-Feb-2017,3243083-9838,"1,943.92",ESSENTIAL CARE & SUPPORT LTD.
Adult and Health Services,Head of Adults,Transport,230005,Contract Hire,13-Feb-2017,3243086-49,548.00,EXTREME TAXI`S.
Adult and Health Services,Head of Adults,Transport,230005,Contract Hire,13-Feb-2017,3243128-INV141,512.00,HORNDALE TAXIS LTD.
Adult and Health Services,Head of Adults,Supplies and Services,338099,Services,13-Feb-2017,3243129-BOARDING4DOGS,"1,116.00",HUNWICK BOARDING KENNELS & CATTERY.
Adult and Health Services,Head of Adults,Transport,230005,Contract Hire,13-Feb-2017,3243130-216,598.40,I CLYDESDALE T/A BURNOPFIELD TAXIS.
Adult and Health Services,Head of Adults,Third Party Payments,478101,Purchase of Care,13-Feb-2017,3243133-2203,"1,079.12",INCLUSION HOUSING CIC LTD.
Adult and Health Services,Head of Adults,Third Party Payments,478101,Purchase of Care,13-Feb-2017,3243133-2321,"1,079.12",INCLUSION HOUSING CIC LTD.
Adult and Health Services,Head of Adults,Transport,230005,Contract Hire,13-Feb-2017,3243171-KW695,630.00,KWIK CABS.
Adult and Health Services,Head of Adults,Transport,230005,Contract Hire,13-Feb-2017,3243204-835,780.00,MR S BALL T/A ABBIE`S TAXIS..
Adult and Health Services,Head of Adults,Transport,230005,Contract Hire,14-Feb-2017,3244112-DCC05JAN17,945.00,ATLAS TAXIS BISHOP AUCKLAND.
Adult and Health Services,Head of Adults,Transport,230005,Contract Hire,14-Feb-2017,3244169-6879,"2,507.94",CROFT BUSINESS SERVICES (UK) LTD T/A CROFT TAXIS.
Adult and Health Services,Head of Adults,Transport,230005,Contract Hire,14-Feb-2017,3244169-6882,"1,316.07",CROFT BUSINESS SERVICES (UK) LTD T/A CROFT TAXIS.
Adult and Health Services,Head of Adults,Third Party Payments,472101,Purchase of Care,14-Feb-2017,3244181-2991,"1,972.50",DCS & D LTD T/A HERITAGE HEALTHCARE.
Adult and Health Services,Head of Adults,Third Party Payments,472101,Purchase of Care,14-Feb-2017,3244181-2992,588.46,DCS & D LTD T/A HERITAGE HEALTHCARE.
Adult and Health Services,Head of Adults,Third Party Payments,472101,Purchase of Care,14-Feb-2017,3244181-2993,588.46,DCS & D LTD T/A HERITAGE HEALTHCARE.
Adult and Health Services,Head of Adults,Transport,230005,Contract Hire,14-Feb-2017,3244208-10030,"1,680.00",G & P JOHNSON LTD T/A NIGHTINGALE COACHES.
Adult and Health Services,Head of Adults,Transport,230005,Contract Hire,14-Feb-2017,3244215-041,510.00,GS PEARSON.
Adult and Health Services,Head of Adults,Transport,230005,Contract Hire,14-Feb-2017,3244227-IR1701004,"1,050.00",I & R EXECUTIVE TRAVEL.
Adult and Health Services,Head of Adults,Transport,230005,Contract Hire,14-Feb-2017,3244313-837,"1,600.00",ROAD RUNNERS (NE) LTD.
Adult and Health Services,Head of Adults,Transport,230005,Contract Hire,15-Feb-2017,3244412-DCC01JAN17,"1,785.00",ATLAS TAXIS BISHOP AUCKLAND.
Adult and Health Services,Head of Adults,Transport,230005,Contract Hire,15-Feb-2017,3244413-03535,752.00,ATLAS TAXIS CONSETT.
Adult and Health Services,Head of Adults,Supplies and Services,304516,Equipment and Materials,15-Feb-2017,3244432-45,"1,152.10",BILL SCOTT TAXIS LTD.
Adult and Health Services,Head of Adults,Transport,230005,Contract Hire,15-Feb-2017,3244476-05/2016-7785,552.00,COLLINS TAXIS.
Adult and Health Services,Head of Adults,Transport,230005,Contract Hire,15-Feb-2017,3244555-10031,"1,288.00",G & P JOHNSON LTD T/A NIGHTINGALE COACHES.
Adult and Health Services,Head of Adults,Transport,230005,Contract Hire,15-Feb-2017,3244555-10032,"1,151.50",G & P JOHNSON LTD T/A NIGHTINGALE COACHES.
Adult and Health Services,Head of Adults,Transport,230005,Contract Hire,15-Feb-2017,3244555-10033,"1,239.00",G & P JOHNSON LTD T/A NIGHTINGALE COACHES.
Adult and Health Services,Head of Adults,Transport,230005,Contract Hire,15-Feb-2017,3244738-831,"1,390.00",ROAD RUNNERS (NE) LTD.
Adult and Health Services,Head of Adults,Third Party Payments,470101,Purchase of Care,15-Feb-2017,3244748-IN000758,"15,263.64",S/C 202741 CAMBIAN INTERACT CARE SERVICES LTD.
Adult and Health Services,Head of Adults,Transport,230005,Contract Hire,15-Feb-2017,3244781-23288,"1,257.90",STANLEY TRAVEL (NORTH EAST) LTD.
Adult and Health Services,Head of Adults,Transport,230005,Contract Hire,15-Feb-2017,3244781-23289-31/1/17,703.50,STANLEY TRAVEL (NORTH EAST) LTD.
Adult and Health Services,Head of Adults,Transport,230005,Contract Hire,15-Feb-2017,3244781-23290,"1,094.10",STANLEY TRAVEL (NORTH EAST) LTD.
Adult and Health Services,Head of Adults,Transport,230005,Contract Hire,15-Feb-2017,3244814-175,640.00,THE TAXI COMPANY (MURTON) LTD.
Adult and Health Services,Head of Adults,Supplies and Services,338045,Services,15-Feb-2017,3244865-INV/KSM16,500.00,ZC
Adult and Health Services,Head of Adults,Transfer Payments,515201,Social Services Clients,16-Feb-2017,3244871-CAS-02-2017-071,"6,900.00",ACCOUNTABILITY CLIENT ACCOUNT NO 1.
Adult and Health Services,Head of Adults,Transport,230005,Contract Hire,16-Feb-2017,3245135-201703,600.00,MR JR FORT.
Adult and Health Services,Head of Adults,Third Party Payments,470101,Purchase of Care,16-Feb-2017,3245156-0000032098,"37,156.01",NORTH EAST AUTISM SOCIETY.
Adult and Health Services,Head of Adults,Third Party Payments,470101,Purchase of Care,16-Feb-2017,3245156-0000032106,"47,967.75",NORTH EAST AUTISM SOCIETY.
Adult and Health Services,Head of Adults,Third Party Payments,470101,Purchase of Care,16-Feb-2017,3245242-5791,"7,308.00",ST OSWALD`S HOSPICE.
Adult and Health Services,Head of Adults,Third Party Payments,473101,Purchase of Care,16-Feb-2017,3245283-0006,650.00,TURNAROUND HOMES (3 TO 13).
Adult and Health Services,Head of Adults,Third Party Payments,470101,Purchase of Care,17-Feb-2017,3245379-146511302,"4,200.00",BARNARDO SERVICES LTD.
Adult and Health Services,Head of Adults,Third Party Payments,470101,Purchase of Care,17-Feb-2017,3245379-146511717,"4,340.00",BARNARDO SERVICES LTD.
Adult and Health Services,Head of Adults,Third Party Payments,470101,Purchase of Care,17-Feb-2017,3245379-146513049,"4,340.00",BARNARDO SERVICES LTD.
Adult and Health Services,Head of Adults,Third Party Payments,470101,Purchase of Care,17-Feb-2017,3245379-146513590,"4,200.00",BARNARDO SERVICES LTD.
Adult and Health Services,Head of Adults,Supplies and Services,308011,Furniture,17-Feb-2017,3245541-3610,"2,393.00",K MILLER BUILDING SERVICES.
Adult and Health Services,Head of Adults,Third Party Payments,470101,Purchase of Care,17-Feb-2017,3245602-0000031895,502.80,NORTH EAST AUTISM SOCIETY.
Adult and Health Services,Head of Adults,Third Party Payments,470101,Purchase of Care,17-Feb-2017,3245627-30744,"4,230.00",PERCY HEDLEY FOUNDATION.
Adult and Health Services,Head of Adults,Supplies and Services,304516,Equipment and Materials,17-Feb-2017,3245628-6149,"1,163.00",PERSONAL BEST LIFE COACHING.
Adult and Health Services,Head of Adults,Third Party Payments,470101,Purchase of Care,17-Feb-2017,3245673-IN000612,"16,899.03",S/C 202741 CAMBIAN INTERACT CARE SERVICES LTD.
Adult and Health Services,Head of Adults,Third Party Payments,470101,Purchase of Care,17-Feb-2017,3245673-IN000661,"16,899.03",S/C 202741 CAMBIAN INTERACT CARE SERVICES LTD.
Adult and Health Services,Head of Adults,Third Party Payments,470101,Purchase of Care,17-Feb-2017,3245673-IN000746,"8,848.35",S/C 202741 CAMBIAN INTERACT CARE SERVICES LTD.
Adult and Health Services,Head of Adults,Supplies and Services,308011,Furniture,20-Feb-2017,3245954-1733,"3,670.00",GET LAID PROFESSIONALLY LTD.
Adult and Health Services,Head of Adults,Premises,106082,Centrally Controlled Rep and Maint,20-Feb-2017,3245997-14138,"2,363.92",JC MAINTENANCE SERVICES LTD.
Adult and Health Services,Head of Adults,Third Party Payments,470101,Purchase of Care,20-Feb-2017,3246021-RINVTP/00427347,"12,911.88",LEONARD CHESHIRE DISABILITY.
Adult and Health Services,Head of Adults,Third Party Payments,470101,Purchase of Care,20-Feb-2017,3246021-RINVTP/00430556,"12,911.88",LEONARD CHESHIRE DISABILITY.
Adult and Health Services,Head of Adults,Supplies and Services,384616,Miscellaneous Expenses,20-Feb-2017,3246122-1008870,"1,825.82",PLACES FOR PEOPLE INDIVIDUAL SUPPORT.
Adult and Health Services,Head of Adults,Supplies and Services,384616,Miscellaneous Expenses,20-Feb-2017,3246122-1010782,"3,651.64",PLACES FOR PEOPLE INDIVIDUAL SUPPORT.
Adult and Health Services,Head of Adults,Third Party Payments,470101,Purchase of Care,20-Feb-2017,3246148-IN000727,"16,899.03",S/C 202741 CAMBIAN INTERACT CARE SERVICES LTD.
Adult and Health Services,Head of Adults,Transport,230005,Contract Hire,21-Feb-2017,3246915-H31/SM,"1,869.00",AABAT TAXIS.
Adult and Health Services,Head of Adults,Transport,230005,Contract Hire,21-Feb-2017,3246915-H41/FC,"1,470.00",AABAT TAXIS.
Adult and Health Services,Head of Adults,Third Party Payments,470101,Purchase of Care,21-Feb-2017,3246930-146511972,"4,340.00",BARNARDO SERVICES LTD.
Adult and Health Services,Head of Adults,Third Party Payments,470101,Purchase of Care,21-Feb-2017,3246930-146512289,"4,340.00",BARNARDO SERVICES LTD.
Adult and Health Services,Head of Adults,Third Party Payments,470101,Purchase of Care,21-Feb-2017,3246930-146512630,"4,200.00",BARNARDO SERVICES LTD.
Adult and Health Services,Head of Adults,Transport,230005,Contract Hire,21-Feb-2017,3246957-06/2016-WV117,663.00,COLLINS TAXIS.
Adult and Health Services,Head of Adults,Transfer Payments,515210,Social Services Clients,21-Feb-2017,3247062-CAS-02-2017-098,"3,900.00",REDACTED - PAYMENT TO INDIVIDUAL
Adult and Health Services,Head of Adults,Transport,230005,Contract Hire,21-Feb-2017,3247147-515-31/1/17,512.00,TONYS TAXIS (A BIRCH).
Adult and Health Services,Head of Adults,Transport,230005,Contract Hire,21-Feb-2017,3247147-517-31/1/17,"1,890.00",TONYS TAXIS (A BIRCH).
Adult and Health Services,Head of Adults,Transport,230005,Contract Hire,21-Feb-2017,3247163-EAS124/05,540.00,WAYSIDE TAXIS.
Adult and Health Services,Head of Adults,Transfer Payments,515201,Social Services Clients,21-Feb-2017,3247175-1686662H,844.00,REDACTED - PAYMENT TO INDIVIDUAL
Adult and Health Services,Head of Adults,Transfer Payments,515201,Social Services Clients,21-Feb-2017,3247176-1689907H,"1,176.00",REDACTED - PAYMENT TO INDIVIDUAL
Adult and Health Services,Head of Adults,Third Party Payments,470101,Purchase of Care,21-Feb-2017,3247179-1686177H,"2,976.44",ACCEPT CARE LTD.
Adult and Health Services,Head of Adults,Third Party Payments,478101,Purchase of Care,21-Feb-2017,3247179-1686282H,"3,365.40",ACCEPT CARE LTD.
Adult and Health Services,Head of Adults,Third Party Payments,478101,Purchase of Care,21-Feb-2017,3247179-1686350H,"4,741.24",ACCEPT CARE LTD.
Adult and Health Services,Head of Adults,Third Party Payments,478101,Purchase of Care,21-Feb-2017,3247179-1686493H,"3,070.96",ACCEPT CARE LTD.
Adult and Health Services,Head of Adults,Third Party Payments,478101,Purchase of Care,21-Feb-2017,3247179-1686738H,651.56,ACCEPT CARE LTD.
Adult and Health Services,Head of Adults,Third Party Payments,478101,Purchase of Care,21-Feb-2017,3247179-1686804H,"4,662.20",ACCEPT CARE LTD.
Adult and Health Services,Head of Adults,Third Party Payments,478101,Purchase of Care,21-Feb-2017,3247179-1686835H,651.56,ACCEPT CARE LTD.
Adult and Health Services,Head of Adults,Third Party Payments,478101,Purchase of Care,21-Feb-2017,3247179-1686844H,"1,353.24",ACCEPT CARE LTD.
Adult and Health Services,Head of Adults,Third Party Payments,478101,Purchase of Care,21-Feb-2017,3247179-1686845H,651.56,ACCEPT CARE LTD.
Adult and Health Services,Head of Adults,Third Party Payments,478101,Purchase of Care,21-Feb-2017,3247179-1686934H,"1,353.24",ACCEPT CARE LTD.
Adult and Health Services,Head of Adults,Third Party Payments,478101,Purchase of Care,21-Feb-2017,3247179-1686970H,"5,439.20",ACCEPT CARE LTD.
Adult and Health Services,Head of Adults,Third Party Payments,478101,Purchase of Care,21-Feb-2017,3247179-1686971H,751.80,ACCEPT CARE LTD.
Adult and Health Services,Head of Adults,Third Party Payments,478101,Purchase of Care,21-Feb-2017,3247179-1686978H,"3,687.64",ACCEPT CARE LTD.
Adult and Health Services,Head of Adults,Third Party Payments,478101,Purchase of Care,21-Feb-2017,3247179-1687030H,615.44,ACCEPT CARE LTD.
Adult and Health Services,Head of Adults,Third Party Payments,478101,Purchase of Care,21-Feb-2017,3247179-1687068H,"7,138.16",ACCEPT CARE LTD.
Adult and Health Services,Head of Adults,Third Party Payments,478101,Purchase of Care,21-Feb-2017,3247179-1687071H,651.56,ACCEPT CARE LTD.
Adult and Health Services,Head of Adults,Third Party Payments,478101,Purchase of Care,21-Feb-2017,3247179-1687273H,"2,149.92",ACCEPT CARE LTD.
Adult and Health Services,Head of Adults,Third Party Payments,478101,Purchase of Care,21-Feb-2017,3247179-1687283H,"5,952.84",ACCEPT CARE LTD.
Adult and Health Services,Head of Adults,Third Party Payments,478101,Purchase of Care,21-Feb-2017,3247179-1687490H,"7,533.24",ACCEPT CARE LTD.
Adult and Health Services,Head of Adults,Third Party Payments,478101,Purchase of Care,21-Feb-2017,3247179-1687517H,"2,265.24",ACCEPT CARE LTD.
Adult and Health Services,Head of Adults,Third Party Payments,478101,Purchase of Care,21-Feb-2017,3247179-1687580H,"4,109.84",ACCEPT CARE LTD.
Adult and Health Services,Head of Adults,Third Party Payments,478101,Purchase of Care,21-Feb-2017,3247179-1687598H,"5,162.64",ACCEPT CARE LTD.
Adult and Health Services,Head of Adults,Third Party Payments,478101,Purchase of Care,21-Feb-2017,3247179-1687700H,"3,484.80",ACCEPT CARE LTD.
Adult and Health Services,Head of Adults,Third Party Payments,478101,Purchase of Care,21-Feb-2017,3247179-1687723H,"5,452.40",ACCEPT CARE LTD.
Adult and Health Services,Head of Adults,Third Party Payments,478101,Purchase of Care,21-Feb-2017,3247179-1687751H,651.56,ACCEPT CARE LTD.
Adult and Health Services,Head of Adults,Third Party Payments,478101,Purchase of Care,21-Feb-2017,3247179-1687768H,"3,634.92",ACCEPT CARE LTD.
Adult and Health Services,Head of Adults,Third Party Payments,478101,Purchase of Care,21-Feb-2017,3247179-1687837H,"3,687.60",ACCEPT CARE LTD.
Adult and Health Services,Head of Adults,Third Party Payments,478101,Purchase of Care,21-Feb-2017,3247179-1687936H,"7,875.68",ACCEPT CARE LTD.
Adult and Health Services,Head of Adults,Third Party Payments,478101,Purchase of Care,21-Feb-2017,3247179-1687942H,"12,063.72",ACCEPT CARE LTD.
Adult and Health Services,Head of Adults,Third Party Payments,478101,Purchase of Care,21-Feb-2017,3247179-1687946H,651.56,ACCEPT CARE LTD.
Adult and Health Services,Head of Adults,Third Party Payments,478101,Purchase of Care,21-Feb-2017,3247179-1687952H,"2,952.32",ACCEPT CARE LTD.
Adult and Health Services,Head of Adults,Third Party Payments,478101,Purchase of Care,21-Feb-2017,3247179-1688036H,"6,637.72",ACCEPT CARE LTD.
Adult and Health Services,Head of Adults,Third Party Payments,478101,Purchase of Care,21-Feb-2017,3247179-1688735H,651.56,ACCEPT CARE LTD.
Adult and Health Services,Head of Adults,Third Party Payments,478101,Purchase of Care,21-Feb-2017,3247179-1688900H,"1,353.24",ACCEPT CARE LTD.
Adult and Health Services,Head of Adults,Third Party Payments,478101,Purchase of Care,21-Feb-2017,3247179-1688902H,651.56,ACCEPT CARE LTD.
Adult and Health Services,Head of Adults,Third Party Payments,478101,Purchase of Care,21-Feb-2017,3247179-1689301H,"4,767.56",ACCEPT CARE LTD.
Adult and Health Services,Head of Adults,Third Party Payments,478101,Purchase of Care,21-Feb-2017,3247179-1689365H,"1,127.72",ACCEPT CARE LTD.
Adult and Health Services,Head of Adults,Third Party Payments,478101,Purchase of Care,21-Feb-2017,3247179-1689383H,905.40,ACCEPT CARE LTD.
Adult and Health Services,Head of Adults,Third Party Payments,478101,Purchase of Care,21-Feb-2017,3247179-1689708H,"1,063.56",ACCEPT CARE LTD.
Adult and Health Services,Head of Adults,Third Party Payments,478101,Purchase of Care,21-Feb-2017,3247179-1689774H,"3,029.12",ACCEPT CARE LTD.
Adult and Health Services,Head of Adults,Third Party Payments,478101,Purchase of Care,21-Feb-2017,3247179-1691015H,651.56,ACCEPT CARE LTD.
Adult and Health Services,Head of Adults,Third Party Payments,478101,Purchase of Care,21-Feb-2017,3247179-1691145H,"1,177.84",ACCEPT CARE LTD.
Adult and Health Services,Head of Adults,Third Party Payments,478101,Purchase of Care,21-Feb-2017,3247179-1691487H,"4,428.48",ACCEPT CARE LTD.
Adult and Health Services,Head of Adults,Third Party Payments,478101,Purchase of Care,21-Feb-2017,3247179-1691548H,"1,089.92",ACCEPT CARE LTD.
Adult and Health Services,Head of Adults,Third Party Payments,478101,Purchase of Care,21-Feb-2017,3247179-1691576H,651.56,ACCEPT CARE LTD.
Adult and Health Services,Head of Adults,Third Party Payments,478101,Purchase of Care,21-Feb-2017,3247179-1692057H,651.56,ACCEPT CARE LTD.
Adult and Health Services,Head of Adults,Third Party Payments,472101,Purchase of Care,21-Feb-2017,3247179-1692211H,"1,756.92",ACCEPT CARE LTD.
Adult and Health Services,Head of Adults,Third Party Payments,478101,Purchase of Care,21-Feb-2017,3247179-1692349H,684.84,ACCEPT CARE LTD.
Adult and Health Services,Head of Adults,Third Party Payments,478101,Purchase of Care,21-Feb-2017,3247179-1692699H,651.56,ACCEPT CARE LTD.
Adult and Health Services,Head of Adults,Third Party Payments,478101,Purchase of Care,21-Feb-2017,3247179-1692890H,"3,507.96",ACCEPT CARE LTD.
Adult and Health Services,Head of Adults,Third Party Payments,478101,Purchase of Care,21-Feb-2017,3247179-1692891H,"2,560.32",ACCEPT CARE LTD.
Adult and Health Services,Head of Adults,Third Party Payments,478101,Purchase of Care,21-Feb-2017,3247179-1692892H,"4,270.56",ACCEPT CARE LTD.
Adult and Health Services,Head of Adults,Third Party Payments,478101,Purchase of Care,21-Feb-2017,3247179-1692893H,"6,049.96",ACCEPT CARE LTD.
Adult and Health Services,Head of Adults,Transfer Payments,515211,Social Services Clients,21-Feb-2017,3247180-1686962H,"1,662.52",ACCOUNTABILITY CLIENT ACCOUNT NO 1.
Adult and Health Services,Head of Adults,Transfer Payments,515210,Social Services Clients,21-Feb-2017,3247181-1689268H,"2,060.96",ACCOUNTABILITY CLIENT ACCOUNT NO 1.
Adult and Health Services,Head of Adults,Transfer Payments,515201,Social Services Clients,21-Feb-2017,3247182-1692443H,"1,908.72",ACCOUNTABILITY CLIENT ACCOUNT NO 1.
Adult and Health Services,Head of Adults,Transfer Payments,515211,Social Services Clients,21-Feb-2017,3247183-1687969H,"1,124.80",ACCOUNTABILITY CLIENT ACCOUNT NO 1.
Adult and Health Services,Head of Adults,Transfer Payments,515201,Social Services Clients,21-Feb-2017,3247184-1688866H,788.48,ACCOUNTABILITY CLIENT ACCOUNT NO 1.
Adult and Health Services,Head of Adults,Transfer Payments,515201,Social Services Clients,21-Feb-2017,3247187-1689666H,759.60,ACCOUNTABILITY CLIENT ACCOUNT NO 1.
Adult and Health Services,Head of Adults,Transfer Payments,515210,Social Services Clients,21-Feb-2017,3247189-1692107H,"4,071.60",ACCOUNTABILITY CLIENT ACCOUNT NO 1.
Adult and Health Services,Head of Adults,Transfer Payments,515201,Social Services Clients,21-Feb-2017,3247190-1691123H,506.40,ACCOUNTABILITY CLIENT ACCOUNT NO 1.
Adult and Health Services,Head of Adults,Transfer Payments,515201,Social Services Clients,21-Feb-2017,3247191-1691521H,"2,656.96",ACCOUNTABILITY CLIENT ACCOUNT NO 1.
Adult and Health Services,Head of Adults,Transfer Payments,515201,Social Services Clients,21-Feb-2017,3247193-1686901H,"1,616.52",ACCOUNTABILITY CLIENT ACCOUNT NO 1.
Adult and Health Services,Head of Adults,Transfer Payments,515201,Social Services Clients,21-Feb-2017,3247194-1686655H,588.12,ACCOUNTABILITY CLIENT ACCOUNT NO 1.
Adult and Health Services,Head of Adults,Transfer Payments,515210,Social Services Clients,21-Feb-2017,3247195-1688508H,"2,107.92",ACCOUNTABILITY CLIENT ACCOUNT NO 1.
Adult and Health Services,Head of Adults,Transfer Payments,515201,Social Services Clients,21-Feb-2017,3247196-1691299H,"1,115.92",ACCOUNTABILITY CLIENT ACCOUNT NO 1.
Adult and Health Services,Head of Adults,Transfer Payments,515201,Social Services Clients,21-Feb-2017,3247199-1689716H,562.08,ACCOUNTABILITY CLIENT ACCOUNT NO 1.
Adult and Health Services,Head of Adults,Transfer Payments,515201,Social Services Clients,21-Feb-2017,3247200-1688170H,"1,288.12",ACCOUNTABILITY CLIENT ACCOUNT NO 1.
Adult and Health Services,Head of Adults,Transfer Payments,515201,Social Services Clients,21-Feb-2017,3247201-1689358H,829.40,ACCOUNTABILITY CLIENT ACCOUNT NO 1.
Adult and Health Services,Head of Adults,Transfer Payments,515210,Social Services Clients,21-Feb-2017,3247202-1686569H,"1,374.00",ACCOUNTABILITY CLIENT ACCOUNT NO 1.
Adult and Health Services,Head of Adults,Transfer Payments,515201,Social Services Clients,21-Feb-2017,3247203-1692047H,542.88,ACCOUNTABILITY CLIENT ACCOUNT NO 1.
Adult and Health Services,Head of Adults,Transfer Payments,515201,Social Services Clients,21-Feb-2017,3247204-1692109H,"2,307.24",ACCOUNTABILITY CLIENT ACCOUNT NO 1.
Adult and Health Services,Head of Adults,Transfer Payments,515201,Social Services Clients,21-Feb-2017,3247205-1692023H,691.28,ACCOUNTABILITY CLIENT ACCOUNT NO 1.
Adult and Health Services,Head of Adults,Transfer Payments,515201,Social Services Clients,21-Feb-2017,3247206-1686574H,595.68,ACCOUNTABILITY CLIENT ACCOUNT NO 1.
Adult and Health Services,Head of Adults,Transfer Payments,515201,Social Services Clients,21-Feb-2017,3247207-1689912H,562.08,ACCOUNTABILITY CLIENT ACCOUNT NO 1.
Adult and Health Services,Head of Adults,Transfer Payments,515201,Social Services Clients,21-Feb-2017,3247210-1689519H,701.04,ACCOUNTABILITY CLIENT ACCOUNT NO 1.
Adult and Health Services,Head of Adults,Transfer Payments,515201,Social Services Clients,21-Feb-2017,3247212-1688215H,687.44,ACCOUNTABILITY CLIENT ACCOUNT NO 1.
Adult and Health Services,Head of Adults,Transfer Payments,515201,Social Services Clients,21-Feb-2017,3247213-1688089H,823.74,ACCOUNTABILITY CLIENT ACCOUNT NO 1.
Adult and Health Services,Head of Adults,Transfer Payments,515201,Social Services Clients,21-Feb-2017,3247215-1692368H,"1,108.40",ACCOUNTABILITY CLIENT ACCOUNT NO 1.
Adult and Health Services,Head of Adults,Transfer Payments,515201,Social Services Clients,21-Feb-2017,3247216-1691794H,723.84,ACCOUNTABILITY CLIENT ACCOUNT NO 1.
Adult and Health Services,Head of Adults,Transfer Payments,515210,Social Services Clients,21-Feb-2017,3247222-1688861H,"3,178.12",ACCOUNTABILITY CLIENT ACCOUNT NO 1.
Adult and Health Services,Head of Adults,Transfer Payments,515201,Social Services Clients,21-Feb-2017,3247223-1690982H,950.04,ACCOUNTABILITY CLIENT ACCOUNT NO 1.
Adult and Health Services,Head of Adults,Transfer Payments,515201,Social Services Clients,21-Feb-2017,3247225-1689081H,791.72,ACCOUNTABILITY CLIENT ACCOUNT NO 1.
Adult and Health Services,Head of Adults,Transfer Payments,515201,Social Services Clients,21-Feb-2017,3247226-1687551H,874.64,ACCOUNTABILITY CLIENT ACCOUNT NO 1.
Adult and Health Services,Head of Adults,Transfer Payments,515201,Social Services Clients,21-Feb-2017,3247227-1687241H,"1,877.28",ACCOUNTABILITY CLIENT ACCOUNT NO 1.
Adult and Health Services,Head of Adults,Transfer Payments,515211,Social Services Clients,21-Feb-2017,3247229-1687430H,"3,829.92",ACCOUNTABILITY CLIENT ACCOUNT NO 1.
Adult and Health Services,Head of Adults,Transfer Payments,515211,Social Services Clients,21-Feb-2017,3247236-1687148H,"1,020.00",ACCOUNTABILITY CLIENT ACCOUNT NO 1.
Adult and Health Services,Head of Adults,Transfer Payments,515211,Social Services Clients,21-Feb-2017,3247237-1687633H,609.00,ACCOUNTABILITY CLIENT ACCOUNT NO 1.
Adult and Health Services,Head of Adults,Transfer Payments,515211,Social Services Clients,21-Feb-2017,3247238-1686140H,656.00,ACCOUNTABILITY CLIENT ACCOUNT NO 1.
Adult and Health Services,Head of Adults,Transfer Payments,515201,Social Services Clients,21-Feb-2017,3247240-1689908H,"3,132.00",ACCOUNTABILITY CLIENT ACCOUNT NO 1.
Adult and Health Services,Head of Adults,Transfer Payments,515211,Social Services Clients,21-Feb-2017,3247241-1686928H,696.52,ACCOUNTABILITY CLIENT ACCOUNT NO 1.
Adult and Health Services,Head of Adults,Transfer Payments,515201,Social Services Clients,21-Feb-2017,3247242-1687417H,800.00,ACCOUNTABILITY CLIENT ACCOUNT NO 1.
Adult and Health Services,Head of Adults,Transfer Payments,515201,Social Services Clients,21-Feb-2017,3247243-1687698H,"1,229.16",ACCOUNTABILITY CLIENT ACCOUNT NO 1.
Adult and Health Services,Head of Adults,Transfer Payments,515201,Social Services Clients,21-Feb-2017,3247244-1686641H,901.68,ACCOUNTABILITY CLIENT ACCOUNT NO 1.
Adult and Health Services,Head of Adults,Transfer Payments,515211,Social Services Clients,21-Feb-2017,3247247-1687850H,998.80,ACCOUNTABILITY CLIENT ACCOUNT NO 1.
Adult and Health Services,Head of Adults,Transfer Payments,515211,Social Services Clients,21-Feb-2017,3247248-1687124H,"1,031.88",ACCOUNTABILITY CLIENT ACCOUNT NO 1.
Adult and Health Services,Head of Adults,Transfer Payments,515209,Social Services Clients,21-Feb-2017,3247249-1687164D,"1,255.80",ACCOUNTABILITY CLIENT ACCOUNT NO 1.
Adult and Health Services,Head of Adults,Transfer Payments,515211,Social Services Clients,21-Feb-2017,3247249-1687164H,975.88,ACCOUNTABILITY CLIENT ACCOUNT NO 1.
Adult and Health Services,Head of Adults,Transfer Payments,515211,Social Services Clients,21-Feb-2017,3247250-1687881H,522.00,ACCOUNTABILITY CLIENT ACCOUNT NO 1.
Adult and Health Services,Head of Adults,Transfer Payments,515211,Social Services Clients,21-Feb-2017,3247251-1687889H,"2,214.40",ACCOUNTABILITY CLIENT ACCOUNT NO 1.
Adult and Health Services,Head of Adults,Transfer Payments,515210,Social Services Clients,21-Feb-2017,3247252-1688473H,"1,402.44",ACCOUNTABILITY CLIENT ACCOUNT NO 1.
Adult and Health Services,Head of Adults,Transfer Payments,515211,Social Services Clients,21-Feb-2017,3247254-1687410H,964.00,ACCOUNTABILITY CLIENT ACCOUNT NO 1.
Adult and Health Services,Head of Adults,Transfer Payments,515201,Social Services Clients,21-Feb-2017,3247256-1689062H,960.24,ACCOUNTABILITY CLIENT ACCOUNT NO 2.
Adult and Health Services,Head of Adults,Transfer Payments,515201,Social Services Clients,21-Feb-2017,3247261-1689065H,"3,635.96",ACCOUNTABILITY CLIENT ACCOUNT NO 2.
Adult and Health Services,Head of Adults,Transfer Payments,515201,Social Services Clients,21-Feb-2017,3247262-1692304H,655.76,ACCOUNTABILITY CLIENT ACCOUNT NO 2.
Adult and Health Services,Head of Adults,Transfer Payments,515201,Social Services Clients,21-Feb-2017,3247263-1686987H,616.72,ACCOUNTABILITY CLIENT ACCOUNT NO 2.
Adult and Health Services,Head of Adults,Transfer Payments,515201,Social Services Clients,21-Feb-2017,3247266-1689956H,"2,100.00",ACCOUNTABILITY CLIENT ACCOUNT NO 2.
Adult and Health Services,Head of Adults,Transfer Payments,515201,Social Services Clients,21-Feb-2017,3247267-1691724H,749.44,ACCOUNTABILITY CLIENT ACCOUNT NO 2.
Adult and Health Services,Head of Adults,Transfer Payments,515201,Social Services Clients,21-Feb-2017,3247268-1689724H,644.04,ACCOUNTABILITY CLIENT ACCOUNT NO 2.
Adult and Health Services,Head of Adults,Transfer Payments,515201,Social Services Clients,21-Feb-2017,3247269-1692564H,519.16,ACCOUNTABILITY CLIENT ACCOUNT NO 2.
Adult and Health Services,Head of Adults,Transfer Payments,515201,Social Services Clients,21-Feb-2017,3247270-1687285H,585.52,ACCOUNTABILITY CLIENT ACCOUNT NO 2.
Adult and Health Services,Head of Adults,Transfer Payments,515201,Social Services Clients,21-Feb-2017,3247271-1688853H,702.60,ACCOUNTABILITY CLIENT ACCOUNT NO 2.
Adult and Health Services,Head of Adults,Transfer Payments,515201,Social Services Clients,21-Feb-2017,3247272-1686914H,"1,498.88",ACCOUNTABILITY CLIENT ACCOUNT NO 2.
Adult and Health Services,Head of Adults,Transfer Payments,515201,Social Services Clients,21-Feb-2017,3247274-1691781H,562.08,ACCOUNTABILITY CLIENT ACCOUNT NO 2.
Adult and Health Services,Head of Adults,Transfer Payments,515201,Social Services Clients,21-Feb-2017,3247276-1689125H,726.04,ACCOUNTABILITY CLIENT ACCOUNT NO 2.
Adult and Health Services,Head of Adults,Transfer Payments,515201,Social Services Clients,21-Feb-2017,3247278-1691562H,679.20,ACCOUNTABILITY CLIENT ACCOUNT NO 2.
Adult and Health Services,Head of Adults,Transfer Payments,515201,Social Services Clients,21-Feb-2017,3247280-1686776H,749.44,ACCOUNTABILITY CLIENT ACCOUNT NO 2.
Adult and Health Services,Head of Adults,Transfer Payments,515201,Social Services Clients,21-Feb-2017,3247281-1692474H,757.24,ACCOUNTABILITY CLIENT ACCOUNT NO 2.
Adult and Health Services,Head of Adults,Transfer Payments,515209,Social Services Clients,21-Feb-2017,3247286-1689033D,520.00,ACCOUNTABILITY CLIENT ACCOUNT NO 2.
Adult and Health Services,Head of Adults,Transfer Payments,515201,Social Services Clients,21-Feb-2017,3247287-1689166H,"1,662.84",ACCOUNTABILITY CLIENT ACCOUNT NO 2.
Adult and Health Services,Head of Adults,Transfer Payments,515201,Social Services Clients,21-Feb-2017,3247288-1691928H,515.24,ACCOUNTABILITY CLIENT ACCOUNT NO 2.
Adult and Health Services,Head of Adults,Transfer Payments,515201,Social Services Clients,21-Feb-2017,3247290-1687690H,853.44,ACCOUNTABILITY CLIENT ACCOUNT NO 2.
Adult and Health Services,Head of Adults,Transfer Payments,515201,Social Services Clients,21-Feb-2017,3247291-1689752H,608.92,ACCOUNTABILITY CLIENT ACCOUNT NO 2.
Adult and Health Services,Head of Adults,Transfer Payments,515201,Social Services Clients,21-Feb-2017,3247292-1688863H,983.64,ACCOUNTABILITY CLIENT ACCOUNT NO 2.
Adult and Health Services,Head of Adults,Transfer Payments,515201,Social Services Clients,21-Feb-2017,3247293-1689653H,"1,183.52",ACCOUNTABILITY CLIENT ACCOUNT NO 2.
Adult and Health Services,Head of Adults,Transfer Payments,515201,Social Services Clients,21-Feb-2017,3247295-1691210H,817.20,REDACTED - PAYMENT TO INDIVIDUAL
Adult and Health Services,Head of Adults,Transfer Payments,515209,Social Services Clients,21-Feb-2017,3247297-1686444D,540.00,REDACTED - PAYMENT TO INDIVIDUAL
Adult and Health Services,Head of Adults,Transfer Payments,515210,Social Services Clients,21-Feb-2017,3247299-1690700H,"2,003.74",REDACTED - PAYMENT TO INDIVIDUAL
Adult and Health Services,Head of Adults,Transfer Payments,515201,Social Services Clients,21-Feb-2017,3247300-1690596H,515.24,REDACTED - PAYMENT TO INDIVIDUAL
Adult and Health Services,Head of Adults,Transfer Payments,515201,Social Services Clients,21-Feb-2017,3247302-1689592H,"6,480.00",REDACTED - PAYMENT TO INDIVIDUAL
Adult and Health Services,Head of Adults,Transfer Payments,515201,Social Services Clients,21-Feb-2017,3247304-1689407H,882.20,REDACTED - PAYMENT TO INDIVIDUAL
Adult and Health Services,Head of Adults,Transfer Payments,515201,Social Services Clients,21-Feb-2017,3247306-1689670H,611.92,REDACTED - PAYMENT TO INDIVIDUAL
Adult and Health Services,Head of Adults,Transfer Payments,515201,Social Services Clients,21-Feb-2017,3247307-1691696H,"1,360.00",REDACTED - PAYMENT TO INDIVIDUAL
Adult and Health Services,Head of Adults,Transfer Payments,515201,Social Services Clients,21-Feb-2017,3247308-1690974H,632.00,REDACTED - PAYMENT TO INDIVIDUAL
Adult and Health Services,Head of Adults,Transfer Payments,515209,Social Services Clients,21-Feb-2017,3247310-1687948D,"1,500.00",REDACTED - PAYMENT TO INDIVIDUAL
Adult and Health Services,Head of Adults,Transfer Payments,515201,Social Services Clients,21-Feb-2017,3247310-1687948H,630.00,REDACTED - PAYMENT TO INDIVIDUAL
Adult and Health Services,Head of Adults,Transfer Payments,515201,Social Services Clients,21-Feb-2017,3247311-1686930H,"3,214.40",REDACTED - PAYMENT TO INDIVIDUAL
Adult and Health Services,Head of Adults,Transfer Payments,515209,Social Services Clients,21-Feb-2017,3247312-1688383D,"1,018.00",REDACTED - PAYMENT TO INDIVIDUAL
Adult and Health Services,Head of Adults,Transfer Payments,515201,Social Services Clients,21-Feb-2017,3247314-1689734H,978.00,REDACTED - PAYMENT TO INDIVIDUAL
Adult and Health Services,Head of Adults,Transfer Payments,515201,Social Services Clients,21-Feb-2017,3247315-1689796H,"1,266.00",REDACTED - PAYMENT TO INDIVIDUAL
Adult and Health Services,Head of Adults,Transfer Payments,515201,Social Services Clients,21-Feb-2017,3247318-1688143H,817.20,REDACTED - PAYMENT TO INDIVIDUAL
Adult and Health Services,Head of Adults,Transfer Payments,515211,Social Services Clients,21-Feb-2017,3247321-1686894H,753.16,REDACTED - PAYMENT TO INDIVIDUAL
Adult and Health Services,Head of Adults,Transfer Payments,515201,Social Services Clients,21-Feb-2017,3247322-1689284H,548.60,REDACTED - PAYMENT TO INDIVIDUAL
Adult and Health Services,Head of Adults,Transfer Payments,515201,Social Services Clients,21-Feb-2017,3247323-1686672H,"1,006.60",REDACTED - PAYMENT TO INDIVIDUAL
Adult and Health Services,Head of Adults,Transfer Payments,515201,Social Services Clients,21-Feb-2017,3247324-1687080H,936.80,REDACTED - PAYMENT TO INDIVIDUAL
Adult and Health Services,Head of Adults,Transfer Payments,515201,Social Services Clients,21-Feb-2017,3247325-1689250H,839.92,REDACTED - PAYMENT TO INDIVIDUAL
Adult and Health Services,Head of Adults,Transfer Payments,515201,Social Services Clients,21-Feb-2017,3247327-1689135H,"2,094.12",REDACTED - PAYMENT TO INDIVIDUAL
Adult and Health Services,Head of Adults,Transfer Payments,515201,Social Services Clients,21-Feb-2017,3247328-1688318H,969.00,REDACTED - PAYMENT TO INDIVIDUAL
Adult and Health Services,Head of Adults,Transfer Payments,515201,Social Services Clients,21-Feb-2017,3247330-1686786H,"1,375.16",REDACTED - PAYMENT TO INDIVIDUAL
Adult and Health Services,Head of Adults,Transfer Payments,515201,Social Services Clients,21-Feb-2017,3247331-1688355H,516.96,REDACTED - PAYMENT TO INDIVIDUAL
Adult and Health Services,Head of Adults,Transfer Payments,515201,Social Services Clients,21-Feb-2017,3247336-1687418H,"1,881.64",REDACTED - PAYMENT TO INDIVIDUAL
Adult and Health Services,Head of Adults,Transfer Payments,515201,Social Services Clients,21-Feb-2017,3247338-1691221H,"2,533.44",REDACTED - PAYMENT TO INDIVIDUAL
Adult and Health Services,Head of Adults,Transfer Payments,515201,Social Services Clients,21-Feb-2017,3247341-1688620H,"1,520.80",REDACTED - PAYMENT TO INDIVIDUAL
Adult and Health Services,Head of Adults,Transfer Payments,515201,Social Services Clients,21-Feb-2017,3247343-1692307H,554.20,REDACTED - PAYMENT TO INDIVIDUAL
Adult and Health Services,Head of Adults,Transfer Payments,515201,Social Services Clients,21-Feb-2017,3247345-1689814H,696.32,REDACTED - PAYMENT TO INDIVIDUAL
Adult and Health Services,Head of Adults,Transfer Payments,515201,Social Services Clients,21-Feb-2017,3247352-1687956H,562.08,REDACTED - PAYMENT TO INDIVIDUAL
Adult and Health Services,Head of Adults,Transfer Payments,515201,Social Services Clients,21-Feb-2017,3247353-1686936H,"1,107.76",REDACTED - PAYMENT TO INDIVIDUAL
Adult and Health Services,Head of Adults,Transfer Payments,515209,Social Services Clients,21-Feb-2017,3247355-1690333D,"2,520.00",REDACTED - PAYMENT TO INDIVIDUAL
Adult and Health Services,Head of Adults,Transfer Payments,515201,Social Services Clients,21-Feb-2017,3247355-1690333H,500.00,REDACTED - PAYMENT TO INDIVIDUAL
Adult and Health Services,Head of Adults,Transfer Payments,515201,Social Services Clients,21-Feb-2017,3247356-1688825H,"2,680.00",REDACTED - PAYMENT TO INDIVIDUAL
Adult and Health Services,Head of Adults,Transfer Payments,515201,Social Services Clients,21-Feb-2017,3247357-1686887H,"1,507.00",REDACTED - PAYMENT TO INDIVIDUAL
Adult and Health Services,Head of Adults,Transfer Payments,515201,Social Services Clients,21-Feb-2017,3247358-1687705H,"1,906.36",REDACTED - PAYMENT TO INDIVIDUAL
Adult and Health Services,Head of Adults,Transfer Payments,515201,Social Services Clients,21-Feb-2017,3247359-1687844H,"4,578.76",REDACTED - PAYMENT TO INDIVIDUAL
Adult and Health Services,Head of Adults,Transfer Payments,515201,Social Services Clients,21-Feb-2017,3247362-1692398H,640.92,REDACTED - PAYMENT TO INDIVIDUAL
Adult and Health Services,Head of Adults,Transfer Payments,515210,Social Services Clients,21-Feb-2017,3247365-1690567H,"4,517.20",REDACTED - PAYMENT TO INDIVIDUAL
Adult and Health Services,Head of Adults,Transfer Payments,515201,Social Services Clients,21-Feb-2017,3247366-1691325H,900.00,REDACTED - PAYMENT TO INDIVIDUAL
Adult and Health Services,Head of Adults,Transfer Payments,515201,Social Services Clients,21-Feb-2017,3247369-1688553H,908.00,REDACTED - PAYMENT TO INDIVIDUAL
Adult and Health Services,Head of Adults,Transfer Payments,515201,Social Services Clients,21-Feb-2017,3247370-1691230H,865.04,REDACTED - PAYMENT TO INDIVIDUAL
Adult and Health Services,Head of Adults,Transfer Payments,515201,Social Services Clients,21-Feb-2017,3247371-1690808H,572.00,REDACTED - PAYMENT TO INDIVIDUAL
Adult and Health Services,Head of Adults,Transfer Payments,515201,Social Services Clients,21-Feb-2017,3247372-1686534H,662.40,REDACTED - PAYMENT TO INDIVIDUAL
Adult and Health Services,Head of Adults,Transfer Payments,515201,Social Services Clients,21-Feb-2017,3247373-1687788H,526.00,REDACTED - PAYMENT TO INDIVIDUAL
Adult and Health Services,Head of Adults,Transfer Payments,515211,Social Services Clients,21-Feb-2017,3247374-1687379H,"3,207.84",REDACTED - PAYMENT TO INDIVIDUAL
Adult and Health Services,Head of Adults,Transfer Payments,515201,Social Services Clients,21-Feb-2017,3247377-1688227H,"1,770.60",REDACTED - PAYMENT TO INDIVIDUAL
Adult and Health Services,Head of Adults,Transfer Payments,515201,Social Services Clients,21-Feb-2017,3247378-1686669H,"1,645.80",REDACTED - PAYMENT TO INDIVIDUAL
Adult and Health Services,Head of Adults,Transfer Payments,515201,Social Services Clients,21-Feb-2017,3247380-1686294H,509.88,REDACTED - PAYMENT TO INDIVIDUAL
Adult and Health Services,Head of Adults,Transfer Payments,515201,Social Services Clients,21-Feb-2017,3247383-1688023H,588.12,REDACTED - PAYMENT TO INDIVIDUAL
Adult and Health Services,Head of Adults,Transfer Payments,515201,Social Services Clients,21-Feb-2017,3247384-1690775H,"1,997.52",REDACTED - PAYMENT TO INDIVIDUAL
Adult and Health Services,Head of Adults,Transfer Payments,515201,Social Services Clients,21-Feb-2017,3247386-1689137H,657.60,REDACTED - PAYMENT TO INDIVIDUAL
Adult and Health Services,Head of Adults,Transfer Payments,515201,Social Services Clients,21-Feb-2017,3247388-1687396H,843.12,REDACTED - PAYMENT TO INDIVIDUAL
Adult and Health Services,Head of Adults,Transfer Payments,515201,Social Services Clients,21-Feb-2017,3247389-1689453H,"1,405.12",REDACTED - PAYMENT TO INDIVIDUAL
Adult and Health Services,Head of Adults,Transfer Payments,515201,Social Services Clients,21-Feb-2017,3247391-1688190H,618.92,REDACTED - PAYMENT TO INDIVIDUAL
Adult and Health Services,Head of Adults,Transfer Payments,515201,Social Services Clients,21-Feb-2017,3247393-1691224H,"1,053.92",REDACTED - PAYMENT TO INDIVIDUAL
Adult and Health Services,Head of Adults,Transfer Payments,515201,Social Services Clients,21-Feb-2017,3247394-1691158H,594.00,REDACTED - PAYMENT TO INDIVIDUAL
Adult and Health Services,Head of Adults,Transfer Payments,515201,Social Services Clients,21-Feb-2017,3247396-1686790H,585.52,REDACTED - PAYMENT TO INDIVIDUAL
Adult and Health Services,Head of Adults,Transfer Payments,515201,Social Services Clients,21-Feb-2017,3247397-1689859H,717.40,REDACTED - PAYMENT TO INDIVIDUAL
Adult and Health Services,Head of Adults,Transfer Payments,515201,Social Services Clients,21-Feb-2017,3247398-1687649H,728.92,REDACTED - PAYMENT TO INDIVIDUAL
Adult and Health Services,Head of Adults,Transfer Payments,515201,Social Services Clients,21-Feb-2017,3247399-1687518H,"1,012.80",REDACTED - PAYMENT TO INDIVIDUAL
Adult and Health Services,Head of Adults,Transfer Payments,515201,Social Services Clients,21-Feb-2017,3247400-1689312H,633.00,REDACTED - PAYMENT TO INDIVIDUAL
Adult and Health Services,Head of Adults,Transfer Payments,515201,Social Services Clients,21-Feb-2017,3247401-1691258H,"2,940.60",REDACTED - PAYMENT TO INDIVIDUAL
Adult and Health Services,Head of Adults,Transfer Payments,515201,Social Services Clients,21-Feb-2017,3247403-1692196H,820.68,REDACTED - PAYMENT TO INDIVIDUAL
Adult and Health Services,Head of Adults,Transfer Payments,515201,Social Services Clients,21-Feb-2017,3247405-1687987H,833.44,REDACTED - PAYMENT TO INDIVIDUAL
Adult and Health Services,Head of Adults,Transfer Payments,515201,Social Services Clients,21-Feb-2017,3247407-1686520H,613.64,REDACTED - PAYMENT TO INDIVIDUAL
Adult and Health Services,Head of Adults,Transfer Payments,515201,Social Services Clients,21-Feb-2017,3247408-1690009H,766.64,REDACTED - PAYMENT TO INDIVIDUAL
Adult and Health Services,Head of Adults,Transfer Payments,515201,Social Services Clients,21-Feb-2017,3247411-1690191H,"1,206.20",REDACTED - PAYMENT TO INDIVIDUAL
Adult and Health Services,Head of Adults,Transfer Payments,515201,Social Services Clients,21-Feb-2017,3247413-1690527H,"1,221.64",REDACTED - PAYMENT TO INDIVIDUAL
Adult and Health Services,Head of Adults,Transfer Payments,515209,Social Services Clients,21-Feb-2017,3247414-1692649D,576.00,REDACTED - PAYMENT TO INDIVIDUAL
Adult and Health Services,Head of Adults,Transfer Payments,515201,Social Services Clients,21-Feb-2017,3247414-1692649H,800.00,REDACTED - PAYMENT TO INDIVIDUAL
Adult and Health Services,Head of Adults,Transfer Payments,515201,Social Services Clients,21-Feb-2017,3247415-1689647H,"1,008.00",REDACTED - PAYMENT TO INDIVIDUAL
Adult and Health Services,Head of Adults,Transfer Payments,515201,Social Services Clients,21-Feb-2017,3247418-1687388H,962.60,REDACTED - PAYMENT TO INDIVIDUAL
Adult and Health Services,Head of Adults,Transfer Payments,515201,Social Services Clients,21-Feb-2017,3247421-1690626H,"1,000.00",REDACTED - PAYMENT TO INDIVIDUAL
Adult and Health Services,Head of Adults,Transfer Payments,515201,Social Services Clients,21-Feb-2017,3247422-1689518H,"1,944.00",REDACTED - PAYMENT TO INDIVIDUAL
Adult and Health Services,Head of Adults,Transfer Payments,515201,Social Services Clients,21-Feb-2017,3247423-1687086H,675.20,REDACTED - PAYMENT TO INDIVIDUAL
Adult and Health Services,Head of Adults,Transfer Payments,515201,Social Services Clients,21-Feb-2017,3247424-1686380H,854.56,REDACTED - PAYMENT TO INDIVIDUAL
Adult and Health Services,Head of Adults,Transfer Payments,515210,Social Services Clients,21-Feb-2017,3247425-1686346H,959.96,REDACTED - PAYMENT TO INDIVIDUAL
Adult and Health Services,Head of Adults,Transfer Payments,515201,Social Services Clients,21-Feb-2017,3247426-1689778H,720.00,REDACTED - PAYMENT TO INDIVIDUAL
Adult and Health Services,Head of Adults,Transfer Payments,515210,Social Services Clients,21-Feb-2017,3247427-1687014H,"1,020.00",REDACTED - PAYMENT TO INDIVIDUAL
Adult and Health Services,Head of Adults,Transfer Payments,515201,Social Services Clients,21-Feb-2017,3247428-1691008H,569.28,REDACTED - PAYMENT TO INDIVIDUAL
Adult and Health Services,Head of Adults,Transfer Payments,515209,Social Services Clients,21-Feb-2017,3247429-1690741D,800.00,REDACTED - PAYMENT TO INDIVIDUAL
Adult and Health Services,Head of Adults,Transfer Payments,515201,Social Services Clients,21-Feb-2017,3247429-1690741H,"1,112.32",REDACTED - PAYMENT TO INDIVIDUAL
Adult and Health Services,Head of Adults,Transfer Payments,515201,Social Services Clients,21-Feb-2017,3247430-1690911H,"1,899.00",REDACTED - PAYMENT TO INDIVIDUAL
Adult and Health Services,Head of Adults,Transfer Payments,515201,Social Services Clients,21-Feb-2017,3247431-1691919H,745.52,REDACTED - PAYMENT TO INDIVIDUAL
Adult and Health Services,Head of Adults,Transfer Payments,515201,Social Services Clients,21-Feb-2017,3247433-1687641H,908.00,REDACTED - PAYMENT TO INDIVIDUAL
Adult and Health Services,Head of Adults,Transfer Payments,515201,Social Services Clients,21-Feb-2017,3247435-1690256H,"1,038.76",REDACTED - PAYMENT TO INDIVIDUAL
Adult and Health Services,Head of Adults,Transfer Payments,515201,Social Services Clients,21-Feb-2017,3247439-1687374H,547.44,REDACTED - PAYMENT TO INDIVIDUAL
Adult and Health Services,Head of Adults,Transfer Payments,515201,Social Services Clients,21-Feb-2017,3247440-1691951H,590.80,REDACTED - PAYMENT TO INDIVIDUAL
Adult and Health Services,Head of Adults,Transfer Payments,515201,Social Services Clients,21-Feb-2017,3247444-1691279H,"1,498.88",REDACTED - PAYMENT TO INDIVIDUAL
Adult and Health Services,Head of Adults,Transfer Payments,515201,Social Services Clients,21-Feb-2017,3247446-1689999H,745.20,REDACTED - PAYMENT TO INDIVIDUAL
Adult and Health Services,Head of Adults,Transfer Payments,515201,Social Services Clients,21-Feb-2017,3247448-1690794H,"1,475.52",REDACTED - PAYMENT TO INDIVIDUAL
Adult and Health Services,Head of Adults,Transfer Payments,515201,Social Services Clients,21-Feb-2017,3247450-1689265H,"1,669.00",REDACTED - PAYMENT TO INDIVIDUAL
Adult and Health Services,Head of Adults,Transfer Payments,515201,Social Services Clients,21-Feb-2017,3247452-1687226H,500.00,REDACTED - PAYMENT TO INDIVIDUAL
Adult and Health Services,Head of Adults,Transfer Payments,515201,Social Services Clients,21-Feb-2017,3247455-1686622H,543.40,REDACTED - PAYMENT TO INDIVIDUAL
Adult and Health Services,Head of Adults,Transfer Payments,515201,Social Services Clients,21-Feb-2017,3247457-1690815H,904.40,REDACTED - PAYMENT TO INDIVIDUAL
Adult and Health Services,Head of Adults,Transfer Payments,515210,Social Services Clients,21-Feb-2017,3247458-1689215H,"2,154.64",REDACTED - PAYMENT TO INDIVIDUAL
Adult and Health Services,Head of Adults,Transfer Payments,515201,Social Services Clients,21-Feb-2017,3247459-1693216H,546.94,REDACTED - PAYMENT TO INDIVIDUAL
Adult and Health Services,Head of Adults,Transfer Payments,515201,Social Services Clients,21-Feb-2017,3247461-1691126H,"1,157.72",REDACTED - PAYMENT TO INDIVIDUAL
Adult and Health Services,Head of Adults,Transfer Payments,515201,Social Services Clients,21-Feb-2017,3247463-1690638H,"2,451.60",REDACTED - PAYMENT TO INDIVIDUAL
Adult and Health Services,Head of Adults,Transfer Payments,515201,Social Services Clients,21-Feb-2017,3247464-1690268H,692.00,REDACTED - PAYMENT TO INDIVIDUAL
Adult and Health Services,Head of Adults,Transfer Payments,515201,Social Services Clients,21-Feb-2017,3247465-1691003H,"1,200.00",REDACTED - PAYMENT TO INDIVIDUAL
Adult and Health Services,Head of Adults,Transfer Payments,515201,Social Services Clients,21-Feb-2017,3247466-1686425H,761.16,REDACTED - PAYMENT TO INDIVIDUAL
Adult and Health Services,Head of Adults,Transfer Payments,515201,Social Services Clients,21-Feb-2017,3247467-1686722H,"1,146.96",REDACTED - PAYMENT TO INDIVIDUAL
Adult and Health Services,Head of Adults,Transfer Payments,515201,Social Services Clients,21-Feb-2017,3247468-1689820H,"1,260.00",REDACTED - PAYMENT TO INDIVIDUAL
Adult and Health Services,Head of Adults,Transfer Payments,515201,Social Services Clients,21-Feb-2017,3247469-1692973H,562.00,REDACTED - PAYMENT TO INDIVIDUAL
Adult and Health Services,Head of Adults,Transfer Payments,515210,Social Services Clients,21-Feb-2017,3247473-1692108H,"1,962.00",REDACTED - PAYMENT TO INDIVIDUAL
Adult and Health Services,Head of Adults,Transfer Payments,515201,Social Services Clients,21-Feb-2017,3247475-1690489H,840.48,REDACTED - PAYMENT TO INDIVIDUAL
Adult and Health Services,Head of Adults,Transfer Payments,515201,Social Services Clients,21-Feb-2017,3247476-1687502H,"1,223.80",REDACTED - PAYMENT TO INDIVIDUAL
Adult and Health Services,Head of Adults,Transfer Payments,515201,Social Services Clients,21-Feb-2017,3247478-1689368H,800.00,REDACTED - PAYMENT TO INDIVIDUAL
Adult and Health Services,Head of Adults,Transfer Payments,515201,Social Services Clients,21-Feb-2017,3247480-1690874H,"2,880.00",REDACTED - PAYMENT TO INDIVIDUAL
Adult and Health Services,Head of Adults,Transfer Payments,515201,Social Services Clients,21-Feb-2017,3247481-1691508H,723.32,REDACTED - PAYMENT TO INDIVIDUAL
Adult and Health Services,Head of Adults,Transfer Payments,515201,Social Services Clients,21-Feb-2017,3247482-1691004H,859.56,REDACTED - PAYMENT TO INDIVIDUAL
Adult and Health Services,Head of Adults,Transfer Payments,515210,Social Services Clients,21-Feb-2017,3247483-1689984H,"2,311.48",REDACTED - PAYMENT TO INDIVIDUAL
Adult and Health Services,Head of Adults,Transfer Payments,515209,Social Services Clients,21-Feb-2017,3247484-1689331D,"1,920.00",REDACTED - PAYMENT TO INDIVIDUAL
Adult and Health Services,Head of Adults,Transfer Payments,515201,Social Services Clients,21-Feb-2017,3247484-1689331H,"1,304.44",REDACTED - PAYMENT TO INDIVIDUAL
Adult and Health Services,Head of Adults,Transfer Payments,515201,Social Services Clients,21-Feb-2017,3247486-1689472H,675.20,REDACTED - PAYMENT TO INDIVIDUAL
Adult and Health Services,Head of Adults,Transfer Payments,515201,Social Services Clients,21-Feb-2017,3247487-1686676D,923.04,REDACTED - PAYMENT TO INDIVIDUAL
Adult and Health Services,Head of Adults,Transfer Payments,515201,Social Services Clients,21-Feb-2017,3247489-1690446H,"1,475.52",REDACTED - PAYMENT TO INDIVIDUAL
Adult and Health Services,Head of Adults,Transfer Payments,515201,Social Services Clients,21-Feb-2017,3247490-1689671H,603.20,REDACTED - PAYMENT TO INDIVIDUAL
Adult and Health Services,Head of Adults,Transfer Payments,515201,Social Services Clients,21-Feb-2017,3247491-1688189H,700.00,REDACTED - PAYMENT TO INDIVIDUAL
Adult and Health Services,Head of Adults,Transfer Payments,515201,Social Services Clients,21-Feb-2017,3247493-1689343H,749.56,REDACTED - PAYMENT TO INDIVIDUAL
Adult and Health Services,Head of Adults,Transfer Payments,515201,Social Services Clients,21-Feb-2017,3247494-1688668H,581.92,REDACTED - PAYMENT TO INDIVIDUAL
Adult and Health Services,Head of Adults,Transfer Payments,515201,Social Services Clients,21-Feb-2017,3247495-1689745H,646.92,REDACTED - PAYMENT TO INDIVIDUAL
Adult and Health Services,Head of Adults,Transfer Payments,515201,Social Services Clients,21-Feb-2017,3247496-1688392H,807.48,REDACTED - PAYMENT TO INDIVIDUAL
Adult and Health Services,Head of Adults,Transfer Payments,515210,Social Services Clients,21-Feb-2017,3247498-1686796H,"6,855.40",REDACTED - PAYMENT TO INDIVIDUAL
Adult and Health Services,Head of Adults,Transfer Payments,515201,Social Services Clients,21-Feb-2017,3247500-1689088H,"1,092.00",REDACTED - PAYMENT TO INDIVIDUAL
Adult and Health Services,Head of Adults,Transfer Payments,515201,Social Services Clients,21-Feb-2017,3247501-1691278H,900.28,REDACTED - PAYMENT TO INDIVIDUAL
Adult and Health Services,Head of Adults,Transfer Payments,515201,Social Services Clients,21-Feb-2017,3247504-1689314H,"2,740.16",REDACTED - PAYMENT TO INDIVIDUAL
Adult and Health Services,Head of Adults,Transfer Payments,515201,Social Services Clients,21-Feb-2017,3247508-1686260H,"1,180.40",REDACTED - PAYMENT TO INDIVIDUAL
Adult and Health Services,Head of Adults,Transfer Payments,515201,Social Services Clients,21-Feb-2017,3247509-1686363H,"1,311.52",REDACTED - PAYMENT TO INDIVIDUAL
Adult and Health Services,Head of Adults,Transfer Payments,515201,Social Services Clients,21-Feb-2017,3247511-1692692H,650.00,REDACTED - PAYMENT TO INDIVIDUAL
Adult and Health Services,Head of Adults,Transfer Payments,515201,Social Services Clients,21-Feb-2017,3247513-1687868H,919.36,REDACTED - PAYMENT TO INDIVIDUAL
Adult and Health Services,Head of Adults,Transfer Payments,515201,Social Services Clients,21-Feb-2017,3247514-1686232H,"1,739.20",REDACTED - PAYMENT TO INDIVIDUAL
Adult and Health Services,Head of Adults,Transfer Payments,515210,Social Services Clients,21-Feb-2017,3247516-1690401H,"7,501.77",REDACTED - PAYMENT TO INDIVIDUAL
Adult and Health Services,Head of Adults,Transfer Payments,515211,Social Services Clients,21-Feb-2017,3247519-1687480H,"1,432.60",REDACTED - PAYMENT TO INDIVIDUAL
Adult and Health Services,Head of Adults,Transfer Payments,515201,Social Services Clients,21-Feb-2017,3247521-1687992H,717.40,REDACTED - PAYMENT TO INDIVIDUAL
Adult and Health Services,Head of Adults,Transfer Payments,515201,Social Services Clients,21-Feb-2017,3247522-1688314H,"1,035.08",REDACTED - PAYMENT TO INDIVIDUAL
Adult and Health Services,Head of Adults,Transfer Payments,515201,Social Services Clients,21-Feb-2017,3247524-1690555H,839.92,REDACTED - PAYMENT TO INDIVIDUAL
Adult and Health Services,Head of Adults,Transfer Payments,515201,Social Services Clients,21-Feb-2017,3247526-1688024H,738.52,REDACTED - PAYMENT TO INDIVIDUAL
Adult and Health Services,Head of Adults,Transfer Payments,515201,Social Services Clients,21-Feb-2017,3247530-1690924H,942.04,REDACTED - PAYMENT TO INDIVIDUAL
Adult and Health Services,Head of Adults,Transfer Payments,515210,Social Services Clients,21-Feb-2017,3247531-1693211H,"1,730.04",REDACTED - PAYMENT TO INDIVIDUAL
Adult and Health Services,Head of Adults,Transfer Payments,515209,Social Services Clients,21-Feb-2017,3247532-1688739D,"1,481.60",REDACTED - PAYMENT TO INDIVIDUAL
Adult and Health Services,Head of Adults,Transfer Payments,515201,Social Services Clients,21-Feb-2017,3247532-1688739H,681.00,REDACTED - PAYMENT TO INDIVIDUAL
Adult and Health Services,Head of Adults,Transfer Payments,515211,Social Services Clients,21-Feb-2017,3247534-1686707H,562.48,REDACTED - PAYMENT TO INDIVIDUAL
Adult and Health Services,Head of Adults,Transfer Payments,515201,Social Services Clients,21-Feb-2017,3247536-1689742H,723.84,REDACTED - PAYMENT TO INDIVIDUAL
Adult and Health Services,Head of Adults,Transfer Payments,515201,Social Services Clients,21-Feb-2017,3247538-1689439H,702.60,REDACTED - PAYMENT TO INDIVIDUAL
Adult and Health Services,Head of Adults,Transfer Payments,515201,Social Services Clients,21-Feb-2017,3247539-1690036H,746.48,REDACTED - PAYMENT TO INDIVIDUAL
Adult and Health Services,Head of Adults,Transfer Payments,515201,Social Services Clients,21-Feb-2017,3247545-1691102H,727.96,REDACTED - PAYMENT TO INDIVIDUAL
Adult and Health Services,Head of Adults,Transfer Payments,515201,Social Services Clients,21-Feb-2017,3247547-1689147H,745.52,REDACTED - PAYMENT TO INDIVIDUAL
Adult and Health Services,Head of Adults,Transfer Payments,515201,Social Services Clients,21-Feb-2017,3247549-1688426H,"2,380.00",REDACTED - PAYMENT TO INDIVIDUAL
Adult and Health Services,Head of Adults,Transfer Payments,515201,Social Services Clients,21-Feb-2017,3247552-1688781H,844.00,REDACTED - PAYMENT TO INDIVIDUAL
Adult and Health Services,Head of Adults,Transfer Payments,515201,Social Services Clients,21-Feb-2017,3247553-1689770H,540.00,REDACTED - PAYMENT TO INDIVIDUAL
Adult and Health Services,Head of Adults,Transfer Payments,515201,Social Services Clients,21-Feb-2017,3247555-1691825H,701.24,REDACTED - PAYMENT TO INDIVIDUAL
Adult and Health Services,Head of Adults,Transfer Payments,515209,Social Services Clients,21-Feb-2017,3247559-1688151D,"1,600.00",REDACTED - PAYMENT TO INDIVIDUAL
Adult and Health Services,Head of Adults,Transfer Payments,515201,Social Services Clients,21-Feb-2017,3247559-1688151H,504.00,REDACTED - PAYMENT TO INDIVIDUAL
Adult and Health Services,Head of Adults,Transfer Payments,515201,Social Services Clients,21-Feb-2017,3247561-1687727H,621.04,REDACTED - PAYMENT TO INDIVIDUAL
Adult and Health Services,Head of Adults,Transfer Payments,515201,Social Services Clients,21-Feb-2017,3247562-1690735H,590.80,REDACTED - PAYMENT TO INDIVIDUAL
Adult and Health Services,Head of Adults,Transfer Payments,515201,Social Services Clients,21-Feb-2017,3247566-1688798H,661.12,REDACTED - PAYMENT TO INDIVIDUAL
Adult and Health Services,Head of Adults,Transfer Payments,515201,Social Services Clients,21-Feb-2017,3247567-1690631H,"1,477.00",REDACTED - PAYMENT TO INDIVIDUAL
Adult and Health Services,Head of Adults,Transfer Payments,515201,Social Services Clients,21-Feb-2017,3247569-1689865H,622.44,REDACTED - PAYMENT TO INDIVIDUAL
Adult and Health Services,Head of Adults,Transfer Payments,515201,Social Services Clients,21-Feb-2017,3247570-1687254H,"1,463.88",REDACTED - PAYMENT TO INDIVIDUAL
Adult and Health Services,Head of Adults,Transfer Payments,515201,Social Services Clients,21-Feb-2017,3247572-1691505H,862.60,REDACTED - PAYMENT TO INDIVIDUAL
Adult and Health Services,Head of Adults,Transfer Payments,515201,Social Services Clients,21-Feb-2017,3247573-1689823H,886.16,REDACTED - PAYMENT TO INDIVIDUAL
Adult and Health Services,Head of Adults,Transfer Payments,515201,Social Services Clients,21-Feb-2017,3247574-1691323H,743.04,REDACTED - PAYMENT TO INDIVIDUAL
Adult and Health Services,Head of Adults,Transfer Payments,515201,Social Services Clients,21-Feb-2017,3247575-1690091H,"1,472.80",REDACTED - PAYMENT TO INDIVIDUAL
Adult and Health Services,Head of Adults,Transfer Payments,515210,Social Services Clients,21-Feb-2017,3247577-1690494H,776.28,REDACTED - PAYMENT TO INDIVIDUAL
Adult and Health Services,Head of Adults,Transfer Payments,515201,Social Services Clients,21-Feb-2017,3247578-1688835H,635.60,REDACTED - PAYMENT TO INDIVIDUAL
Adult and Health Services,Head of Adults,Transfer Payments,515201,Social Services Clients,21-Feb-2017,3247579-1690315H,"1,297.64",REDACTED - PAYMENT TO INDIVIDUAL
Adult and Health Services,Head of Adults,Transfer Payments,515201,Social Services Clients,21-Feb-2017,3247580-1686604H,710.40,REDACTED - PAYMENT TO INDIVIDUAL
Adult and Health Services,Head of Adults,Transfer Payments,515201,Social Services Clients,21-Feb-2017,3247581-1689622H,806.80,REDACTED - PAYMENT TO INDIVIDUAL
Adult and Health Services,Head of Adults,Transfer Payments,515201,Social Services Clients,21-Feb-2017,3247582-1686947H,"1,452.80",REDACTED - PAYMENT TO INDIVIDUAL
Adult and Health Services,Head of Adults,Transfer Payments,515201,Social Services Clients,21-Feb-2017,3247586-1688880H,542.88,REDACTED - PAYMENT TO INDIVIDUAL
Adult and Health Services,Head of Adults,Transfer Payments,515209,Social Services Clients,21-Feb-2017,3247587-1686992D,620.00,REDACTED - PAYMENT TO INDIVIDUAL
Adult and Health Services,Head of Adults,Transfer Payments,515201,Social Services Clients,21-Feb-2017,3247587-1686992H,"1,784.20",REDACTED - PAYMENT TO INDIVIDUAL
Adult and Health Services,Head of Adults,Transfer Payments,515210,Social Services Clients,21-Feb-2017,3247588-1689522H,"2,248.32",REDACTED - PAYMENT TO INDIVIDUAL
Adult and Health Services,Head of Adults,Transfer Payments,515201,Social Services Clients,21-Feb-2017,3247593-1691630H,908.00,REDACTED - PAYMENT TO INDIVIDUAL
Adult and Health Services,Head of Adults,Transfer Payments,515201,Social Services Clients,21-Feb-2017,3247594-1692186H,931.56,REDACTED - PAYMENT TO INDIVIDUAL
Adult and Health Services,Head of Adults,Transfer Payments,515201,Social Services Clients,21-Feb-2017,3247598-1691274H,643.56,REDACTED - PAYMENT TO INDIVIDUAL
Adult and Health Services,Head of Adults,Transfer Payments,515201,Social Services Clients,21-Feb-2017,3247600-1690048H,635.60,REDACTED - PAYMENT TO INDIVIDUAL
Adult and Health Services,Head of Adults,Transfer Payments,515201,Social Services Clients,21-Feb-2017,3247601-1688661H,"1,630.60",REDACTED - PAYMENT TO INDIVIDUAL
Adult and Health Services,Head of Adults,Third Party Payments,473101,Purchase of Care,21-Feb-2017,3247606-1691627D,527.00,ACORN GRANGE NURSING HOME.
Adult and Health Services,Head of Adults,Transfer Payments,515201,Social Services Clients,21-Feb-2017,3247610-1688905H,784.56,REDACTED - PAYMENT TO INDIVIDUAL
Adult and Health Services,Head of Adults,Transfer Payments,515201,Social Services Clients,21-Feb-2017,3247612-1690464H,"5,188.72",REDACTED - PAYMENT TO INDIVIDUAL
Adult and Health Services,Head of Adults,Transfer Payments,515209,Social Services Clients,21-Feb-2017,3247613-1689405D,580.00,REDACTED - PAYMENT TO INDIVIDUAL
Adult and Health Services,Head of Adults,Transfer Payments,515201,Social Services Clients,21-Feb-2017,3247615-1686388H,"1,688.00",REDACTED - PAYMENT TO INDIVIDUAL
Adult and Health Services,Head of Adults,Transfer Payments,515201,Social Services Clients,21-Feb-2017,3247616-1693204H,"1,542.00",REDACTED - PAYMENT TO INDIVIDUAL
Adult and Health Services,Head of Adults,Transfer Payments,515201,Social Services Clients,21-Feb-2017,3247617-1688011H,"1,038.84",REDACTED - PAYMENT TO INDIVIDUAL
Adult and Health Services,Head of Adults,Transfer Payments,515209,Social Services Clients,21-Feb-2017,3247619-1692350D,676.00,REDACTED - PAYMENT TO INDIVIDUAL
Adult and Health Services,Head of Adults,Transfer Payments,515201,Social Services Clients,21-Feb-2017,3247620-1692718H,708.04,REDACTED - PAYMENT TO INDIVIDUAL
Adult and Health Services,Head of Adults,Transfer Payments,515201,Social Services Clients,21-Feb-2017,3247621-1689486H,526.00,REDACTED - PAYMENT TO INDIVIDUAL
Adult and Health Services,Head of Adults,Transfer Payments,515201,Social Services Clients,21-Feb-2017,3247622-1687824H,"1,076.12",REDACTED - PAYMENT TO INDIVIDUAL
Adult and Health Services,Head of Adults,Transfer Payments,515201,Social Services Clients,21-Feb-2017,3247625-1691343H,801.80,REDACTED - PAYMENT TO INDIVIDUAL
Adult and Health Services,Head of Adults,Transfer Payments,515211,Social Services Clients,21-Feb-2017,3247629-1687144H,"3,359.28",REDACTED - PAYMENT TO INDIVIDUAL
Adult and Health Services,Head of Adults,Transfer Payments,515201,Social Services Clients,21-Feb-2017,3247631-1686159H,657.44,REDACTED - PAYMENT TO INDIVIDUAL
Adult and Health Services,Head of Adults,Transfer Payments,515201,Social Services Clients,21-Feb-2017,3247632-1689082H,"1,932.92",REDACTED - PAYMENT TO INDIVIDUAL
Adult and Health Services,Head of Adults,Transfer Payments,515201,Social Services Clients,21-Feb-2017,3247635-1689616H,578.60,REDACTED - PAYMENT TO INDIVIDUAL
Adult and Health Services,Head of Adults,Third Party Payments,472101,Purchase of Care,21-Feb-2017,3247636-1687296H,"4,536.00",ALLIED HEALTHCARE GROUP LTD.
Adult and Health Services,Head of Adults,Transfer Payments,515201,Social Services Clients,21-Feb-2017,3247637-1689580H,"1,135.02",REDACTED - PAYMENT TO INDIVIDUAL
Adult and Health Services,Head of Adults,Transfer Payments,515209,Social Services Clients,21-Feb-2017,3247638-1687335D,"3,269.96",REDACTED - PAYMENT TO INDIVIDUAL
Adult and Health Services,Head of Adults,Transfer Payments,515201,Social Services Clients,21-Feb-2017,3247641-1690075H,"3,744.00",REDACTED - PAYMENT TO INDIVIDUAL
Adult and Health Services,Head of Adults,Transfer Payments,515201,Social Services Clients,21-Feb-2017,3247643-1686922H,687.60,REDACTED - PAYMENT TO INDIVIDUAL
Adult and Health Services,Head of Adults,Transfer Payments,515201,Social Services Clients,21-Feb-2017,3247644-1687733H,759.60,REDACTED - PAYMENT TO INDIVIDUAL
Adult and Health Services,Head of Adults,Transfer Payments,515209,Social Services Clients,21-Feb-2017,3247645-1688715D,560.00,REDACTED - PAYMENT TO INDIVIDUAL
Adult and Health Services,Head of Adults,Transfer Payments,515201,Social Services Clients,21-Feb-2017,3247648-1689873H,"2,261.68",REDACTED - PAYMENT TO INDIVIDUAL
Adult and Health Services,Head of Adults,Transfer Payments,515201,Social Services Clients,21-Feb-2017,3247649-1687651H,631.20,REDACTED - PAYMENT TO INDIVIDUAL
Adult and Health Services,Head of Adults,Transfer Payments,515201,Social Services Clients,21-Feb-2017,3247651-1693219H,869.00,REDACTED - PAYMENT TO INDIVIDUAL
Adult and Health Services,Head of Adults,Transfer Payments,515201,Social Services Clients,21-Feb-2017,3247653-1686728H,"4,861.80",REDACTED - PAYMENT TO INDIVIDUAL
Adult and Health Services,Head of Adults,Transfer Payments,515210,Social Services Clients,21-Feb-2017,3247653-1688506H,"4,116.84",REDACTED - PAYMENT TO INDIVIDUAL
Adult and Health Services,Head of Adults,Transfer Payments,515201,Social Services Clients,21-Feb-2017,3247654-1691382H,953.36,REDACTED - PAYMENT TO INDIVIDUAL
Adult and Health Services,Head of Adults,Transfer Payments,515201,Social Services Clients,21-Feb-2017,3247658-1688083H,925.08,REDACTED - PAYMENT TO INDIVIDUAL
Adult and Health Services,Head of Adults,Transfer Payments,515201,Social Services Clients,21-Feb-2017,3247659-1687962H,756.08,REDACTED - PAYMENT TO INDIVIDUAL
Adult and Health Services,Head of Adults,Transfer Payments,515201,Social Services Clients,21-Feb-2017,3247660-1689794H,828.48,REDACTED - PAYMENT TO INDIVIDUAL
Adult and Health Services,Head of Adults,Third Party Payments,478101,Purchase of Care,21-Feb-2017,3247662-1686184H,"6,214.52",AUTISM CARE UK (4) LTD.
Adult and Health Services,Head of Adults,Third Party Payments,478101,Purchase of Care,21-Feb-2017,3247662-1686621H,"4,148.64",AUTISM CARE UK (4) LTD.
Adult and Health Services,Head of Adults,Third Party Payments,478101,Purchase of Care,21-Feb-2017,3247662-1687439H,"3,073.40",AUTISM CARE UK (4) LTD.
Adult and Health Services,Head of Adults,Third Party Payments,478101,Purchase of Care,21-Feb-2017,3247662-1687640H,"6,163.72",AUTISM CARE UK (4) LTD.
Adult and Health Services,Head of Adults,Third Party Payments,478101,Purchase of Care,21-Feb-2017,3247662-1687689H,"4,148.64",AUTISM CARE UK (4) LTD.
Adult and Health Services,Head of Adults,Third Party Payments,478101,Purchase of Care,21-Feb-2017,3247662-1687823H,"3,081.88",AUTISM CARE UK (4) LTD.
Adult and Health Services,Head of Adults,Third Party Payments,478101,Purchase of Care,21-Feb-2017,3247662-1687919H,"3,200.40",AUTISM CARE UK (4) LTD.
Adult and Health Services,Head of Adults,Third Party Payments,478101,Purchase of Care,21-Feb-2017,3247662-1687932H,"4,859.84",AUTISM CARE UK (4) LTD.
Adult and Health Services,Head of Adults,Third Party Payments,478101,Purchase of Care,21-Feb-2017,3247662-1687933H,"4,148.64",AUTISM CARE UK (4) LTD.
Adult and Health Services,Head of Adults,Third Party Payments,478101,Purchase of Care,21-Feb-2017,3247662-1688100H,"3,081.88",AUTISM CARE UK (4) LTD.
Adult and Health Services,Head of Adults,Third Party Payments,478101,Purchase of Care,21-Feb-2017,3247662-1688649H,"6,847.84",AUTISM CARE UK (4) LTD.
Adult and Health Services,Head of Adults,Transfer Payments,515201,Social Services Clients,21-Feb-2017,3247663-1688756H,"3,313.80",REDACTED - PAYMENT TO INDIVIDUAL
Adult and Health Services,Head of Adults,Transfer Payments,515201,Social Services Clients,21-Feb-2017,3247664-1690371H,646.00,REDACTED - PAYMENT TO INDIVIDUAL
Adult and Health Services,Head of Adults,Transfer Payments,515209,Social Services Clients,21-Feb-2017,3247666-1686866D,700.00,REDACTED - PAYMENT TO INDIVIDUAL
Adult and Health Services,Head of Adults,Transfer Payments,515210,Social Services Clients,21-Feb-2017,3247667-1689552H,"6,390.16",REDACTED - PAYMENT TO INDIVIDUAL
Adult and Health Services,Head of Adults,Transfer Payments,515201,Social Services Clients,21-Feb-2017,3247669-1691844H,510.16,REDACTED - PAYMENT TO INDIVIDUAL
Adult and Health Services,Head of Adults,Transfer Payments,515201,Social Services Clients,21-Feb-2017,3247671-1689769H,565.44,REDACTED - PAYMENT TO INDIVIDUAL
Adult and Health Services,Head of Adults,Third Party Payments,472101,Purchase of Care,21-Feb-2017,3247673-1688672H,580.00,BLUE RIBBON COMMUNITY CARE.
Adult and Health Services,Head of Adults,Transfer Payments,515201,Social Services Clients,21-Feb-2017,3247677-1686259H,"7,102.32",REDACTED - PAYMENT TO INDIVIDUAL
Adult and Health Services,Head of Adults,Transfer Payments,515201,Social Services Clients,21-Feb-2017,3247678-1687337H,621.04,REDACTED - PAYMENT TO INDIVIDUAL
Adult and Health Services,Head of Adults,Transfer Payments,515201,Social Services Clients,21-Feb-2017,3247681-1690923H,"1,200.00",REDACTED - PAYMENT TO INDIVIDUAL
Adult and Health Services,Head of Adults,Transfer Payments,515201,Social Services Clients,21-Feb-2017,3247682-1688305H,631.20,REDACTED - PAYMENT TO INDIVIDUAL
Adult and Health Services,Head of Adults,Transfer Payments,515210,Social Services Clients,21-Feb-2017,3247683-1689976H,"5,788.16",REDACTED - PAYMENT TO INDIVIDUAL
Adult and Health Services,Head of Adults,Transfer Payments,515211,Social Services Clients,21-Feb-2017,3247686-1687883H,"1,488.40",REDACTED - PAYMENT TO INDIVIDUAL
Adult and Health Services,Head of Adults,Transfer Payments,515201,Social Services Clients,21-Feb-2017,3247687-1690818H,640.00,REDACTED - PAYMENT TO INDIVIDUAL
Adult and Health Services,Head of Adults,Transfer Payments,515201,Social Services Clients,21-Feb-2017,3247689-1688710H,"1,428.64",REDACTED - PAYMENT TO INDIVIDUAL
Adult and Health Services,Head of Adults,Transfer Payments,515201,Social Services Clients,21-Feb-2017,3247691-1689178H,"2,074.44",REDACTED - PAYMENT TO INDIVIDUAL
Adult and Health Services,Head of Adults,Transfer Payments,515201,Social Services Clients,21-Feb-2017,3247692-1690294H,626.52,REDACTED - PAYMENT TO INDIVIDUAL
Adult and Health Services,Head of Adults,Transfer Payments,515201,Social Services Clients,21-Feb-2017,3247693-1689902H,635.60,REDACTED - PAYMENT TO INDIVIDUAL
Adult and Health Services,Head of Adults,Transfer Payments,515201,Social Services Clients,21-Feb-2017,3247695-1687021H,"3,892.24",REDACTED - PAYMENT TO INDIVIDUAL
Adult and Health Services,Head of Adults,Transfer Payments,515201,Social Services Clients,21-Feb-2017,3247697-1690944H,"1,611.72",REDACTED - PAYMENT TO INDIVIDUAL
Adult and Health Services,Head of Adults,Third Party Payments,472101,Purchase of Care,21-Feb-2017,3247698-1688066H,736.40,CASTLE CARE TEESDALE LTD.
Adult and Health Services,Head of Adults,Third Party Payments,472101,Purchase of Care,21-Feb-2017,3247698-1688094H,552.32,CASTLE CARE TEESDALE LTD.
Adult and Health Services,Head of Adults,Third Party Payments,472101,Purchase of Care,21-Feb-2017,3247698-1688121H,517.24,CASTLE CARE TEESDALE LTD.
Adult and Health Services,Head of Adults,Third Party Payments,472101,Purchase of Care,21-Feb-2017,3247698-1688127H,762.72,CASTLE CARE TEESDALE LTD.
Adult and Health Services,Head of Adults,Third Party Payments,472101,Purchase of Care,21-Feb-2017,3247698-1688776H,644.36,CASTLE CARE TEESDALE LTD.
Adult and Health Services,Head of Adults,Third Party Payments,472101,Purchase of Care,21-Feb-2017,3247698-1689194H,552.32,CASTLE CARE TEESDALE LTD.
Adult and Health Services,Head of Adults,Third Party Payments,472101,Purchase of Care,21-Feb-2017,3247698-1689757H,613.68,CASTLE CARE TEESDALE LTD.
Adult and Health Services,Head of Adults,Third Party Payments,472101,Purchase of Care,21-Feb-2017,3247698-1691107H,938.48,CASTLE CARE TEESDALE LTD.
Adult and Health Services,Head of Adults,Third Party Payments,472101,Purchase of Care,21-Feb-2017,3247698-1691309H,776.32,CASTLE CARE TEESDALE LTD.
Adult and Health Services,Head of Adults,Third Party Payments,472101,Purchase of Care,21-Feb-2017,3247698-1691485H,"1,543.40",CASTLE CARE TEESDALE LTD.
Adult and Health Services,Head of Adults,Third Party Payments,472101,Purchase of Care,21-Feb-2017,3247698-1691861H,"2,498.52",CASTLE CARE TEESDALE LTD.
Adult and Health Services,Head of Adults,Third Party Payments,472101,Purchase of Care,21-Feb-2017,3247698-1691878H,565.45,CASTLE CARE TEESDALE LTD.
Adult and Health Services,Head of Adults,Third Party Payments,472101,Purchase of Care,21-Feb-2017,3247698-1692078H,"1,393.92",CASTLE CARE TEESDALE LTD.
Adult and Health Services,Head of Adults,Third Party Payments,472101,Purchase of Care,21-Feb-2017,3247698-1692522H,985.92,CASTLE CARE TEESDALE LTD.
Adult and Health Services,Head of Adults,Transfer Payments,515201,Social Services Clients,21-Feb-2017,3247700-1686233H,"1,327.96",REDACTED - PAYMENT TO INDIVIDUAL
Adult and Health Services,Head of Adults,Transfer Payments,515201,Social Services Clients,21-Feb-2017,3247702-1688549H,"3,445.12",REDACTED - PAYMENT TO INDIVIDUAL
Adult and Health Services,Head of Adults,Transfer Payments,515201,Social Services Clients,21-Feb-2017,3247704-1692191H,679.20,REDACTED - PAYMENT TO INDIVIDUAL
Adult and Health Services,Head of Adults,Transfer Payments,515209,Social Services Clients,21-Feb-2017,3247710-1688132D,"1,538.44",REDACTED - PAYMENT TO INDIVIDUAL
Adult and Health Services,Head of Adults,Third Party Payments,478101,Purchase of Care,21-Feb-2017,3247711-1686881H,"3,858.40",CHOICES COMMUNITY CARE SERVICES LTD.
Adult and Health Services,Head of Adults,Third Party Payments,478101,Purchase of Care,21-Feb-2017,3247711-1688126H,"3,754.80",CHOICES COMMUNITY CARE SERVICES LTD.
Adult and Health Services,Head of Adults,Third Party Payments,478101,Purchase of Care,21-Feb-2017,3247711-1688154H,"3,884.32",CHOICES COMMUNITY CARE SERVICES LTD.
Adult and Health Services,Head of Adults,Third Party Payments,478101,Purchase of Care,21-Feb-2017,3247711-1688643H,"4,195.12",CHOICES COMMUNITY CARE SERVICES LTD.
Adult and Health Services,Head of Adults,Transfer Payments,515201,Social Services Clients,21-Feb-2017,3247712-1690051H,515.49,REDACTED - PAYMENT TO INDIVIDUAL
Adult and Health Services,Head of Adults,Transfer Payments,515209,Social Services Clients,21-Feb-2017,3247714-1689084D,730.28,REDACTED - PAYMENT TO INDIVIDUAL
Adult and Health Services,Head of Adults,Transfer Payments,515201,Social Services Clients,21-Feb-2017,3247715-1690068H,538.68,REDACTED - PAYMENT TO INDIVIDUAL
Adult and Health Services,Head of Adults,Transfer Payments,515210,Social Services Clients,21-Feb-2017,3247716-1686190H,"4,664.88",REDACTED - PAYMENT TO INDIVIDUAL
Adult and Health Services,Head of Adults,Transfer Payments,515209,Social Services Clients,21-Feb-2017,3247717-1686594D,984.00,REDACTED - PAYMENT TO INDIVIDUAL
Adult and Health Services,Head of Adults,Transfer Payments,515211,Social Services Clients,21-Feb-2017,3247717-1686594H,"1,243.84",REDACTED - PAYMENT TO INDIVIDUAL
Adult and Health Services,Head of Adults,Transfer Payments,515201,Social Services Clients,21-Feb-2017,3247721-1687322H,"1,472.80",REDACTED - PAYMENT TO INDIVIDUAL
Adult and Health Services,Head of Adults,Transfer Payments,515201,Social Services Clients,21-Feb-2017,3247722-1688963H,828.44,REDACTED - PAYMENT TO INDIVIDUAL
Adult and Health Services,Head of Adults,Third Party Payments,472101,Purchase of Care,21-Feb-2017,3247724-1686163H,701.32,COMFORT CALL LTD.
Adult and Health Services,Head of Adults,Third Party Payments,472101,Purchase of Care,21-Feb-2017,3247724-1686292H,591.76,COMFORT CALL LTD.
Adult and Health Services,Head of Adults,Third Party Payments,472101,Purchase of Care,21-Feb-2017,3247724-1686309H,517.24,COMFORT CALL LTD.
Adult and Health Services,Head of Adults,Third Party Payments,472101,Purchase of Care,21-Feb-2017,3247724-1686339H,635.58,COMFORT CALL LTD.
Adult and Health Services,Head of Adults,Third Party Payments,472101,Purchase of Care,21-Feb-2017,3247724-1686766H,525.31,COMFORT CALL LTD.
Adult and Health Services,Head of Adults,Third Party Payments,472101,Purchase of Care,21-Feb-2017,3247724-1686801H,"1,091.44",COMFORT CALL LTD.
Adult and Health Services,Head of Adults,Third Party Payments,472101,Purchase of Care,21-Feb-2017,3247724-1686816H,675.04,COMFORT CALL LTD.
Adult and Health Services,Head of Adults,Third Party Payments,472101,Purchase of Care,21-Feb-2017,3247724-1686822H,"1,643.76",COMFORT CALL LTD.
Adult and Health Services,Head of Adults,Third Party Payments,472101,Purchase of Care,21-Feb-2017,3247724-1687248H,"1,407.04",COMFORT CALL LTD.
Adult and Health Services,Head of Adults,Third Party Payments,472101,Purchase of Care,21-Feb-2017,3247724-1687420H,"2,498.52",COMFORT CALL LTD.
Adult and Health Services,Head of Adults,Third Party Payments,472101,Purchase of Care,21-Feb-2017,3247724-1687900H,591.76,COMFORT CALL LTD.
Adult and Health Services,Head of Adults,Third Party Payments,472101,Purchase of Care,21-Feb-2017,3247724-1688180H,"1,407.06",COMFORT CALL LTD.
Adult and Health Services,Head of Adults,Third Party Payments,472101,Purchase of Care,21-Feb-2017,3247724-1688182H,764.88,COMFORT CALL LTD.
Adult and Health Services,Head of Adults,Third Party Payments,472101,Purchase of Care,21-Feb-2017,3247724-1688183H,767.10,COMFORT CALL LTD.
Adult and Health Services,Head of Adults,Third Party Payments,472101,Purchase of Care,21-Feb-2017,3247724-1688207H,"1,428.98",COMFORT CALL LTD.
Adult and Health Services,Head of Adults,Third Party Payments,472101,Purchase of Care,21-Feb-2017,3247724-1688219H,613.68,COMFORT CALL LTD.
Adult and Health Services,Head of Adults,Third Party Payments,472101,Purchase of Care,21-Feb-2017,3247724-1688270H,736.40,COMFORT CALL LTD.
Adult and Health Services,Head of Adults,Third Party Payments,472101,Purchase of Care,21-Feb-2017,3247724-1688293H,644.36,COMFORT CALL LTD.
Adult and Health Services,Head of Adults,Third Party Payments,472101,Purchase of Care,21-Feb-2017,3247724-1688331H,"1,402.66",COMFORT CALL LTD.
Adult and Health Services,Head of Adults,Third Party Payments,472101,Purchase of Care,21-Feb-2017,3247724-1688332H,"1,295.27",COMFORT CALL LTD.
Adult and Health Services,Head of Adults,Third Party Payments,472101,Purchase of Care,21-Feb-2017,3247724-1688350H,545.72,COMFORT CALL LTD.
Adult and Health Services,Head of Adults,Third Party Payments,472101,Purchase of Care,21-Feb-2017,3247724-1688353H,"1,190.08",COMFORT CALL LTD.
Adult and Health Services,Head of Adults,Third Party Payments,472101,Purchase of Care,21-Feb-2017,3247724-1688376H,"1,656.92",COMFORT CALL LTD.
Adult and Health Services,Head of Adults,Third Party Payments,472101,Purchase of Care,21-Feb-2017,3247724-1688382H,861.34,COMFORT CALL LTD.
Adult and Health Services,Head of Adults,Third Party Payments,472101,Purchase of Care,21-Feb-2017,3247724-1688400H,815.32,COMFORT CALL LTD.
Adult and Health Services,Head of Adults,Third Party Payments,472101,Purchase of Care,21-Feb-2017,3247724-1688477H,"1,005.97",COMFORT CALL LTD.
Adult and Health Services,Head of Adults,Third Party Payments,472101,Purchase of Care,21-Feb-2017,3247724-1688534H,547.92,COMFORT CALL LTD.
Adult and Health Services,Head of Adults,Third Party Payments,472101,Purchase of Care,21-Feb-2017,3247724-1688576H,562.17,COMFORT CALL LTD.
Adult and Health Services,Head of Adults,Third Party Payments,472101,Purchase of Care,21-Feb-2017,3247724-1688591H,723.24,COMFORT CALL LTD.
Adult and Health Services,Head of Adults,Third Party Payments,472101,Purchase of Care,21-Feb-2017,3247724-1688593H,806.54,COMFORT CALL LTD.
Adult and Health Services,Head of Adults,Third Party Payments,472101,Purchase of Care,21-Feb-2017,3247724-1688601H,"1,089.25",COMFORT CALL LTD.
Adult and Health Services,Head of Adults,Third Party Payments,472101,Purchase of Care,21-Feb-2017,3247724-1688606H,"1,065.16",COMFORT CALL LTD.
Adult and Health Services,Head of Adults,Third Party Payments,472101,Purchase of Care,21-Feb-2017,3247724-1688607H,815.32,COMFORT CALL LTD.
Adult and Health Services,Head of Adults,Third Party Payments,472101,Purchase of Care,21-Feb-2017,3247724-1688659H,578.60,COMFORT CALL LTD.
Adult and Health Services,Head of Adults,Third Party Payments,472101,Purchase of Care,21-Feb-2017,3247724-1688706H,644.36,COMFORT CALL LTD.
Adult and Health Services,Head of Adults,Third Party Payments,472101,Purchase of Care,21-Feb-2017,3247724-1688717H,601.63,COMFORT CALL LTD.
Adult and Health Services,Head of Adults,Third Party Payments,472101,Purchase of Care,21-Feb-2017,3247724-1688793H,521.62,COMFORT CALL LTD.
Adult and Health Services,Head of Adults,Third Party Payments,472101,Purchase of Care,21-Feb-2017,3247724-1688826H,"1,038.84",COMFORT CALL LTD.
Adult and Health Services,Head of Adults,Third Party Payments,472101,Purchase of Care,21-Feb-2017,3247724-1688841H,710.10,COMFORT CALL LTD.
Adult and Health Services,Head of Adults,Third Party Payments,472101,Purchase of Care,21-Feb-2017,3247724-1688893H,"1,229.54",COMFORT CALL LTD.
Adult and Health Services,Head of Adults,Third Party Payments,472101,Purchase of Care,21-Feb-2017,3247724-1688899H,"1,350.08",COMFORT CALL LTD.
Adult and Health Services,Head of Adults,Third Party Payments,472101,Purchase of Care,21-Feb-2017,3247724-1688930H,"2,123.74",COMFORT CALL LTD.
Adult and Health Services,Head of Adults,Third Party Payments,472101,Purchase of Care,21-Feb-2017,3247724-1689029H,964.34,COMFORT CALL LTD.
Adult and Health Services,Head of Adults,Third Party Payments,472101,Purchase of Care,21-Feb-2017,3247724-1689159H,506.26,COMFORT CALL LTD.
Adult and Health Services,Head of Adults,Third Party Payments,472101,Purchase of Care,21-Feb-2017,3247724-1689231H,598.33,COMFORT CALL LTD.
Adult and Health Services,Head of Adults,Third Party Payments,472101,Purchase of Care,21-Feb-2017,3247724-1689300H,604.92,COMFORT CALL LTD.
Adult and Health Services,Head of Adults,Third Party Payments,472101,Purchase of Care,21-Feb-2017,3247724-1689318H,637.78,COMFORT CALL LTD.
Adult and Health Services,Head of Adults,Third Party Payments,440062,Other Third Party Payments,21-Feb-2017,3247724-1689369H,"1,137.48",COMFORT CALL LTD.
Adult and Health Services,Head of Adults,Third Party Payments,472101,Purchase of Care,21-Feb-2017,3247724-1689371H,565.45,COMFORT CALL LTD.
Adult and Health Services,Head of Adults,Third Party Payments,472101,Purchase of Care,21-Feb-2017,3247724-1689505H,710.10,COMFORT CALL LTD.
Adult and Health Services,Head of Adults,Third Party Payments,472101,Purchase of Care,21-Feb-2017,3247724-1689641H,920.52,COMFORT CALL LTD.
Adult and Health Services,Head of Adults,Third Party Payments,472101,Purchase of Care,21-Feb-2017,3247724-1689645H,552.32,COMFORT CALL LTD.
Adult and Health Services,Head of Adults,Third Party Payments,472101,Purchase of Care,21-Feb-2017,3247724-1689730H,"1,315.00",COMFORT CALL LTD.
Adult and Health Services,Head of Adults,Third Party Payments,472101,Purchase of Care,21-Feb-2017,3247724-1689746H,534.76,COMFORT CALL LTD.
Adult and Health Services,Head of Adults,Third Party Payments,472101,Purchase of Care,21-Feb-2017,3247724-1689787H,604.92,COMFORT CALL LTD.
Adult and Health Services,Head of Adults,Third Party Payments,472101,Purchase of Care,21-Feb-2017,3247724-1689924H,517.24,COMFORT CALL LTD.
Adult and Health Services,Head of Adults,Third Party Payments,472101,Purchase of Care,21-Feb-2017,3247724-1689998H,517.24,COMFORT CALL LTD.
Adult and Health Services,Head of Adults,Third Party Payments,472101,Purchase of Care,21-Feb-2017,3247724-1690196H,618.04,COMFORT CALL LTD.
Adult and Health Services,Head of Adults,Third Party Payments,472101,Purchase of Care,21-Feb-2017,3247724-1690236H,762.72,COMFORT CALL LTD.
Adult and Health Services,Head of Adults,Third Party Payments,472101,Purchase of Care,21-Feb-2017,3247724-1690271H,749.56,COMFORT CALL LTD.
Adult and Health Services,Head of Adults,Third Party Payments,472101,Purchase of Care,21-Feb-2017,3247724-1690284H,644.36,COMFORT CALL LTD.
Adult and Health Services,Head of Adults,Third Party Payments,472101,Purchase of Care,21-Feb-2017,3247724-1690287H,999.41,COMFORT CALL LTD.
Adult and Health Services,Head of Adults,Third Party Payments,472101,Purchase of Care,21-Feb-2017,3247724-1690309H,"1,586.76",COMFORT CALL LTD.
Adult and Health Services,Head of Adults,Third Party Payments,472101,Purchase of Care,21-Feb-2017,3247724-1690366H,578.60,COMFORT CALL LTD.
Adult and Health Services,Head of Adults,Third Party Payments,472101,Purchase of Care,21-Feb-2017,3247724-1690575H,552.32,COMFORT CALL LTD.
Adult and Health Services,Head of Adults,Third Party Payments,472101,Purchase of Care,21-Feb-2017,3247724-1690610H,718.88,COMFORT CALL LTD.
Adult and Health Services,Head of Adults,Third Party Payments,472101,Purchase of Care,21-Feb-2017,3247724-1690650H,596.12,COMFORT CALL LTD.
Adult and Health Services,Head of Adults,Third Party Payments,472101,Purchase of Care,21-Feb-2017,3247724-1690659H,766.00,COMFORT CALL LTD.
Adult and Health Services,Head of Adults,Third Party Payments,472101,Purchase of Care,21-Feb-2017,3247724-1690662H,587.36,COMFORT CALL LTD.
Adult and Health Services,Head of Adults,Third Party Payments,472101,Purchase of Care,21-Feb-2017,3247724-1690730H,609.28,COMFORT CALL LTD.
Adult and Health Services,Head of Adults,Third Party Payments,472101,Purchase of Care,21-Feb-2017,3247724-1690835H,572.03,COMFORT CALL LTD.
Adult and Health Services,Head of Adults,Third Party Payments,472101,Purchase of Care,21-Feb-2017,3247724-1690843H,568.73,COMFORT CALL LTD.
Adult and Health Services,Head of Adults,Third Party Payments,472101,Purchase of Care,21-Feb-2017,3247724-1691066H,517.24,COMFORT CALL LTD.
Adult and Health Services,Head of Adults,Third Party Payments,472101,Purchase of Care,21-Feb-2017,3247724-1691088H,"1,534.16",COMFORT CALL LTD.
Adult and Health Services,Head of Adults,Third Party Payments,472101,Purchase of Care,21-Feb-2017,3247724-1691099H,"1,505.67",COMFORT CALL LTD.
Adult and Health Services,Head of Adults,Third Party Payments,472101,Purchase of Care,21-Feb-2017,3247724-1691112H,902.96,COMFORT CALL LTD.
Adult and Health Services,Head of Adults,Third Party Payments,472101,Purchase of Care,21-Feb-2017,3247724-1691244H,"1,288.70",COMFORT CALL LTD.
Adult and Health Services,Head of Adults,Third Party Payments,472101,Purchase of Care,21-Feb-2017,3247724-1691295H,666.28,COMFORT CALL LTD.
Adult and Health Services,Head of Adults,Third Party Payments,472101,Purchase of Care,21-Feb-2017,3247724-1691340H,695.86,COMFORT CALL LTD.
Adult and Health Services,Head of Adults,Third Party Payments,472101,Purchase of Care,21-Feb-2017,3247724-1691615H,946.81,COMFORT CALL LTD.
Adult and Health Services,Head of Adults,Third Party Payments,472101,Purchase of Care,21-Feb-2017,3247724-1691680H,"1,393.92",COMFORT CALL LTD.
Adult and Health Services,Head of Adults,Third Party Payments,472101,Purchase of Care,21-Feb-2017,3247724-1691688H,539.16,COMFORT CALL LTD.
Adult and Health Services,Head of Adults,Third Party Payments,472101,Purchase of Care,21-Feb-2017,3247724-1691700H,648.73,COMFORT CALL LTD.
Adult and Health Services,Head of Adults,Third Party Payments,472101,Purchase of Care,21-Feb-2017,3247724-1691782H,552.32,COMFORT CALL LTD.
Adult and Health Services,Head of Adults,Third Party Payments,472101,Purchase of Care,21-Feb-2017,3247724-1691990H,615.50,COMFORT CALL LTD.
Adult and Health Services,Head of Adults,Third Party Payments,472101,Purchase of Care,21-Feb-2017,3247724-1691998H,762.72,COMFORT CALL LTD.
Adult and Health Services,Head of Adults,Third Party Payments,472101,Purchase of Care,21-Feb-2017,3247724-1692007H,515.04,COMFORT CALL LTD.
Adult and Health Services,Head of Adults,Third Party Payments,472101,Purchase of Care,21-Feb-2017,3247724-1692110H,670.65,COMFORT CALL LTD.
Adult and Health Services,Head of Adults,Third Party Payments,472101,Purchase of Care,21-Feb-2017,3247724-1692119H,626.81,COMFORT CALL LTD.
Adult and Health Services,Head of Adults,Third Party Payments,472101,Purchase of Care,21-Feb-2017,3247724-1692128H,865.71,COMFORT CALL LTD.
Adult and Health Services,Head of Adults,Third Party Payments,472101,Purchase of Care,21-Feb-2017,3247724-1692193H,"1,718.28",COMFORT CALL LTD.
Adult and Health Services,Head of Adults,Third Party Payments,472101,Purchase of Care,21-Feb-2017,3247724-1692251H,512.84,COMFORT CALL LTD.
Adult and Health Services,Head of Adults,Third Party Payments,472101,Purchase of Care,21-Feb-2017,3247724-1692322H,602.72,COMFORT CALL LTD.
Adult and Health Services,Head of Adults,Third Party Payments,472101,Purchase of Care,21-Feb-2017,3247724-1692416H,648.72,COMFORT CALL LTD.
Adult and Health Services,Head of Adults,Third Party Payments,472101,Purchase of Care,21-Feb-2017,3247724-1692467H,552.32,COMFORT CALL LTD.
Adult and Health Services,Head of Adults,Third Party Payments,472101,Purchase of Care,21-Feb-2017,3247724-1692488H,631.20,COMFORT CALL LTD.
Adult and Health Services,Head of Adults,Third Party Payments,472101,Purchase of Care,21-Feb-2017,3247724-1692572H,552.32,COMFORT CALL LTD.
Adult and Health Services,Head of Adults,Third Party Payments,472101,Purchase of Care,21-Feb-2017,3247724-1692629H,729.83,COMFORT CALL LTD.
Adult and Health Services,Head of Adults,Third Party Payments,472101,Purchase of Care,21-Feb-2017,3247724-1692690H,526.00,COMFORT CALL LTD.
Adult and Health Services,Head of Adults,Third Party Payments,472101,Purchase of Care,21-Feb-2017,3247724-1692731H,784.60,COMFORT CALL LTD.
Adult and Health Services,Head of Adults,Third Party Payments,472101,Purchase of Care,21-Feb-2017,3247725-1689777H,736.40,COMMUNITY CARE NORTH EAST.
Adult and Health Services,Head of Adults,Third Party Payments,472101,Purchase of Care,21-Feb-2017,3247725-1689853H,"1,350.08",COMMUNITY CARE NORTH EAST.
Adult and Health Services,Head of Adults,Third Party Payments,472101,Purchase of Care,21-Feb-2017,3247725-1690060H,653.12,COMMUNITY CARE NORTH EAST.
Adult and Health Services,Head of Adults,Third Party Payments,472101,Purchase of Care,21-Feb-2017,3247725-1690220H,810.92,COMMUNITY CARE NORTH EAST.
Adult and Health Services,Head of Adults,Third Party Payments,472101,Purchase of Care,21-Feb-2017,3247725-1690913H,"1,341.32",COMMUNITY CARE NORTH EAST.
Adult and Health Services,Head of Adults,Third Party Payments,472101,Purchase of Care,21-Feb-2017,3247725-1691264H,920.52,COMMUNITY CARE NORTH EAST.
Adult and Health Services,Head of Adults,Third Party Payments,472101,Purchase of Care,21-Feb-2017,3247725-1691667H,613.68,COMMUNITY CARE NORTH EAST.
Adult and Health Services,Head of Adults,Third Party Payments,478101,Purchase of Care,21-Feb-2017,3247726-1686773H,"5,114.00",COMMUNITY INTEGRATED CARE LTD.
Adult and Health Services,Head of Adults,Third Party Payments,478101,Purchase of Care,21-Feb-2017,3247726-1686803H,"3,910.68",COMMUNITY INTEGRATED CARE LTD.
Adult and Health Services,Head of Adults,Third Party Payments,478101,Purchase of Care,21-Feb-2017,3247726-1686853H,"3,892.48",COMMUNITY INTEGRATED CARE LTD.
Adult and Health Services,Head of Adults,Third Party Payments,478101,Purchase of Care,21-Feb-2017,3247726-1686891H,947.32,COMMUNITY INTEGRATED CARE LTD.
Adult and Health Services,Head of Adults,Third Party Payments,478101,Purchase of Care,21-Feb-2017,3247726-1687003H,"4,212.00",COMMUNITY INTEGRATED CARE LTD.
Adult and Health Services,Head of Adults,Third Party Payments,478101,Purchase of Care,21-Feb-2017,3247726-1687006H,"5,383.96",COMMUNITY INTEGRATED CARE LTD.
Adult and Health Services,Head of Adults,Third Party Payments,478101,Purchase of Care,21-Feb-2017,3247726-1687007H,"5,114.00",COMMUNITY INTEGRATED CARE LTD.
Adult and Health Services,Head of Adults,Third Party Payments,478101,Purchase of Care,21-Feb-2017,3247726-1687008H,"3,008.20",COMMUNITY INTEGRATED CARE LTD.
Adult and Health Services,Head of Adults,Third Party Payments,478101,Purchase of Care,21-Feb-2017,3247726-1687010H,"3,008.20",COMMUNITY INTEGRATED CARE LTD.
Adult and Health Services,Head of Adults,Third Party Payments,478101,Purchase of Care,21-Feb-2017,3247726-1687074H,"4,326.85",COMMUNITY INTEGRATED CARE LTD.
Adult and Health Services,Head of Adults,Third Party Payments,478101,Purchase of Care,21-Feb-2017,3247726-1687092H,"3,892.48",COMMUNITY INTEGRATED CARE LTD.
Adult and Health Services,Head of Adults,Third Party Payments,478101,Purchase of Care,21-Feb-2017,3247726-1687095H,"4,212.00",COMMUNITY INTEGRATED CARE LTD.
Adult and Health Services,Head of Adults,Third Party Payments,478101,Purchase of Care,21-Feb-2017,3247726-1687096H,"4,212.00",COMMUNITY INTEGRATED CARE LTD.
Adult and Health Services,Head of Adults,Third Party Payments,478101,Purchase of Care,21-Feb-2017,3247726-1687133H,"6,270.96",COMMUNITY INTEGRATED CARE LTD.
Adult and Health Services,Head of Adults,Third Party Payments,478101,Purchase of Care,21-Feb-2017,3247726-1687180H,"1,061.60",COMMUNITY INTEGRATED CARE LTD.
Adult and Health Services,Head of Adults,Third Party Payments,478101,Purchase of Care,21-Feb-2017,3247726-1687197H,"6,687.48",COMMUNITY INTEGRATED CARE LTD.
Adult and Health Services,Head of Adults,Third Party Payments,478101,Purchase of Care,21-Feb-2017,3247726-1687212H,"4,212.00",COMMUNITY INTEGRATED CARE LTD.
Adult and Health Services,Head of Adults,Third Party Payments,478101,Purchase of Care,21-Feb-2017,3247726-1687250H,506.32,COMMUNITY INTEGRATED CARE LTD.
Adult and Health Services,Head of Adults,Third Party Payments,478101,Purchase of Care,21-Feb-2017,3247726-1687290H,"3,008.20",COMMUNITY INTEGRATED CARE LTD.
